Workbook

Sheet Main
B10: 2024-08-09
B12: Sheet No. | C12: Template Name | D12: Summary
B13: 1 | C13: Future Intra | D13: For Intraday trading in F&O segment
B14: 2 | C14: Cash Intra | D14: For Intraday trading in cash market segment
B15: 3 | C15: Mid-cap Intra | D15: For Intraday trading in Mid-cap stocks
B16: 4 | C16: Bulk Deals | D16: Reveals Bulk Deals carried on NSE & BSE
B17: 5 | C17: Call Tracker
K27: `

Sheet Future Intra
M5: Back to Main Page
A6: FOR INTRA DAY TRADING | L6: =Main!B10 -> 2024-08-09
A9: Sr.no | B9: Sector | C9: Scrip | D9: Expiry Date | E9: CLOSE RATE | F9: Pivot Point | G9: Supports | J9: Resistances
E10: Point | F10: Point | G10: S1 | H10: S2 | I10: S3 | J10: R1 | K10: R2 | L10: R3 | M10: HIGH | N10: LOW | O10: OI | P10: % Change in OI
A11: 1 | B11: Index | C11: NIFTY | D11: 2024-08-29 | E11: 24136.55 | F11: 24201.77 | G11: 24045.78 | H11: 23955.02 | I11: 23799.03 | J11: 24292.53 | K11: 24448.52 | L11: 24539.28 | M11: 24357.75 | N11: 24111 | O11: 14089975 | P11: -1.27%
A12: 2 | B12: Index | C12: BANKNIFTY | D12: 2024-08-28 | E12: 50205.90 | F12: 50239.27 | G12: 49946.63 | H12: 49687.37 | I12: 49394.73 | J12: 50498.53 | K12: 50791.17 | L12: 51050.43 | M12: 50531.9 | N12: 49980 | O12: 3347850 | P12: 0.06%
A13: 3 | B13: Index | C13: FINNIFTY | D13: 2024-08-27 | E13: 22852.10 | F13: 22873.03 | G13: 22729.07 | H13: 22606.03 | I13: 22462.07 | J13: 22996.07 | K13: 23140.03 | L13: 23263.07 | M13: 23017 | N13: 22750 | O13: 76250 | P13: -8.22%
A14: 4 | B14: Index | C14: MIDCPNIFTY | D14: 2024-08-26 | E14: 12529.70 | F14: 12556.17 | G14: 12483.53 | H14: 12437.37 | I14: 12364.73 | J14: 12602.33 | K14: 12674.97 | L14: 12721.13 | M14: 12628.8 | N14: 12510 | O14: 2367800 | P14: 0.51%
A15: 5 | B15: Index | C15: NIFTYNXT50 | D15: 2024-08-30 | E15: 72007.95 | F15: 72059.32 | G15: 71448.63 | H15: 70889.32 | I15: 70278.63 | J15: 72618.63 | K15: 73229.32 | L15: 73788.63 | M15: 72670 | N15: 71500 | O15: 12100 | P15: 2.46%
A16: 6 | B16: Chemicals | C16: AARTIIND | D16: 2024-08-29 | E16: 750.95 | F16: 755.90 | G16: 743.30 | H16: 735.65 | I16: 723.05 | J16: 763.55 | K16: 776.15 | L16: 783.80 | M16: 768.5 | N16: 748.25 | O16: 14137000 | P16: 3.70%
A17: 7 | B17: Capital_Goods | C17: ABB | D17: 2024-08-29 | E17: 7960.15 | F17: 7978.62 | G17: 7791.53 | H17: 7622.92 | I17: 7435.83 | J17: 8147.23 | K17: 8334.32 | L17: 8502.93 | M17: 8165.7 | N17: 7810 | O17: 1811125 | P17: 6.80%
A18: 8 | B18: Pharma | C18: ABBOTINDIA | D18: 2024-08-29 | E18: 27260.55 | F18: 28028.97 | G18: 26406.98 | H18: 25553.42 | I18: 23931.43 | J18: 28882.53 | K18: 30504.52 | L18: 31358.08 | M18: 29650.95 | N18: 27175.4 | O18: 155560 | P18: 3.32%
A19: 9 | B19: Finance | C19: ABCAPITAL | D19: 2024-08-29 | E19: 211.65 | F19: 211.78 | G19: 209.07 | H19: 206.48 | I19: 203.77 | J19: 214.37 | K19: 217.08 | L19: 219.67 | M19: 214.5 | N19: 209.2 | O19: 82857600 | P19: -1.34%
A20: 10 | B20: Textile | C20: ABFRL | D20: 2024-08-29 | E20: 319.25 | F20: 320.75 | G20: 314.50 | H20: 309.75 | I20: 303.50 | J20: 325.50 | K20: 331.75 | L20: 336.50 | M20: 327 | N20: 316 | O20: 51264200 | P20: -3.45%
A21: 11 | B21: Cement | C21: ACC | D21: 2024-08-29 | E21: 2361.10 | F21: 2373.25 | G21: 2344.50 | H21: 2327.90 | I21: 2299.15 | J21: 2389.85 | K21: 2418.60 | L21: 2435.20 | M21: 2402 | N21: 2356.65 | O21: 4898100 | P21: 0.90%
A22: 12 | B22: Infrastructure | C22: ADANIENT | D22: 2024-08-29 | E22: 3185.45 | F22: 3207.97 | G22: 3153.93 | H22: 3122.42 | I22: 3068.38 | J22: 3239.48 | K22: 3293.52 | L22: 3325.03 | M22: 3262 | N22: 3176.45 | O22: 20963400 | P22: -0.06%
A23: 13 | B23: Infrastructure | C23: ADANIPORTS | D23: 2024-08-29 | E23: 1525.10 | F23: 1536.53 | G23: 1509.12 | H23: 1493.13 | I23: 1465.72 | J23: 1552.52 | K23: 1579.93 | L23: 1595.92 | M23: 1563.95 | N23: 1520.55 | O23: 28666000 | P23: -0.50%
A24: 14 | B24: Pharma | C24: ALKEM | D24: 2024-08-29 | E24: 5707.15 | F24: 5663.72 | G24: 5565.43 | H24: 5423.72 | I24: 5325.43 | J24: 5805.43 | K24: 5903.72 | L24: 6045.43 | M24: 5762 | N24: 5522 | O24: 2016800 | P24: 9.32%
A25: 15 | B25: Cement | C25: AMBUJACEM | D25: 2024-08-29 | E25: 640.65 | F25: 642.72 | G25: 637.13 | H25: 633.62 | I25: 628.03 | J25: 646.23 | K25: 651.82 | L25: 655.33 | M25: 648.3 | N25: 639.2 | O25: 32508000 | P25: 0.96%
A26: 16 | B26: Pharma | C26: APOLLOHOSP | D26: 2024-08-29 | E26: 6546.45 | F26: 6603.70 | G26: 6454.75 | H26: 6363.05 | I26: 6214.10 | J26: 6695.40 | K26: 6844.35 | L26: 6936.05 | M26: 6752.65 | N26: 6512 | O26: 1520750 | P26: -2.56%
A27: 17 | B27: Automobile | C27: APOLLOTYRE | D27: 2024-08-29 | E27: 510.60 | F27: 512.87 | G27: 501.23 | H27: 491.87 | I27: 480.23 | J27: 522.23 | K27: 533.87 | L27: 543.23 | M27: 524.5 | N27: 503.5 | O27: 13979100 | P27: -11.96%
A28: 18 | B28: Automobile | C28: ASHOKLEY | D28: 2024-08-29 | E28: 246.75 | F28: 247.50 | G28: 245.05 | H28: 243.35 | I28: 240.90 | J28: 249.20 | K28: 251.65 | L28: 253.35 | M28: 249.95 | N28: 245.8 | O28: 55820000 | P28: -3.07%
A29: 19 | B29: FMCG | C29: ASIANPAINT | D29: 2024-08-29 | E29: 3016.15 | F29: 3040.67 | G29: 2977.33 | H29: 2938.52 | I29: 2875.18 | J29: 3079.48 | K29: 3142.82 | L29: 3181.63 | M29: 3104 | N29: 3001.85 | O29: 11126800 | P29: -1.98%
A30: 20 | B30: Capital_Goods | C30: ASTRAL | D30: 2024-08-29 | E30: 2085.90 | F30: 2100.45 | G30: 2062.95 | H30: 2040.00 | I30: 2002.50 | J30: 2123.40 | K30: 2160.90 | L30: 2183.85 | M30: 2137.95 | N30: 2077.5 | O30: 3485032 | P30: 1.58%
A31: 21 | B31: Chemicals | C31: ATUL | D31: 2024-08-29 | E31: 8023.70 | F31: 8069.35 | G31: 7963.40 | H31: 7903.10 | I31: 7797.15 | J31: 8129.65 | K31: 8235.60 | L31: 8295.90 | M31: 8175.3 | N31: 8009.05 | O31: 822800 | P31: 0.82%
A32: 22 | B32: Banking | C32: AUBANK | D32: 2024-08-29 | E32: 627.45 | F32: 630.28 | G32: 623.27 | H32: 619.08 | I32: 612.07 | J32: 634.47 | K32: 641.48 | L32: 645.67 | M32: 637.3 | N32: 626.1 | O32: 23466000 | P32: 1.61%
A33: 23 | B33: Pharma | C33: AUROPHARMA | D33: 2024-08-29 | E33: 1482.35 | F33: 1475.45 | G33: 1461.10 | H33: 1439.85 | I33: 1425.50 | J33: 1496.70 | K33: 1511.05 | L33: 1532.30 | M33: 1489.8 | N33: 1454.2 | O33: 11376200 | P33: 0.54%
A34: 24 | B34: Banking | C34: AXISBANK | D34: 2024-08-29 | E34: 1140.10 | F34: 1138.47 | G34: 1132.03 | H34: 1123.97 | I34: 1117.53 | J34: 1146.53 | K34: 1152.97 | L34: 1161.03 | M34: 1144.9 | N34: 1130.4 | O34: 59510000 | P34: -0.95%
A35: 25 | B35: Automobile | C35: BAJAJ-AUTO | D35: 2024-08-29 | E35: 9668.85 | F35: 9705.82 | G35: 9613.03 | H35: 9557.22 | I35: 9464.43 | J35: 9761.63 | K35: 9854.42 | L35: 9910.23 | M35: 9798.6 | N35: 9650 | O35: 1370175 | P35: -7.80%
A36: 26 | B36: Finance | C36: BAJAJFINSV | D36: 2024-08-29 | E36: 1542.50 | F36: 1552.35 | G36: 1525.20 | H36: 1507.90 | I36: 1480.75 | J36: 1569.65 | K36: 1596.80 | L36: 1614.10 | M36: 1579.5 | N36: 1535.05 | O36: 13470500 | P36: 1.11%
A37: 27 | B37: Finance | C37: BAJFINANCE | D37: 2024-08-29 | E37: 6598.20 | F37: 6630.23 | G37: 6556.47 | H37: 6514.73 | I37: 6440.97 | J37: 6671.97 | K37: 6745.73 | L37: 6787.47 | M37: 6704 | N37: 6588.5 | O37: 10065250 | P37: -0.00%
A38: 28 | B38: Automobile | C38: BALKRISIND | D38: 2024-08-29 | E38: 3121.20 | F38: 3152.12 | G38: 3076.28 | H38: 3031.37 | I38: 2955.53 | J38: 3197.03 | K38: 3272.87 | L38: 3317.78 | M38: 3227.95 | N38: 3107.2 | O38: 2008500 | P38: 2.14%
A39: 29 | B39: FMCG | C39: BALRAMCHIN | D39: 2024-08-29 | E39: 490.15 | F39: 493.25 | G39: 485.50 | H39: 480.85 | I39: 473.10 | J39: 497.90 | K39: 505.65 | L39: 510.30 | M39: 501 | N39: 488.6 | O39: 8398400 | P39: -0.34%
A40: 30 | B40: Banking | C40: BANDHANBNK | D40: 2024-08-29 | E40: 198.21 | F40: 199.72 | G40: 195.89 | H40: 193.58 | I40: 189.75 | J40: 202.03 | K40: 205.86 | L40: 208.17 | M40: 203.54 | N40: 197.4 | O40: 106475600 | P40: 3.11%
A41: 31 | B41: Banking | C41: BANKBARODA | D41: 2024-08-29 | E41: 241.85 | F41: 242.85 | G41: 240.35 | H41: 238.85 | I41: 236.35 | J41: 244.35 | K41: 246.85 | L41: 248.35 | M41: 245.35 | N41: 241.35 | O41: 185597100 | P41: -0.90%
A42: 32 | B42: FMCG | C42: BATAINDIA | D42: 2024-08-29 | E42: 1447.70 | F42: 1454.40 | G42: 1438.30 | H42: 1428.90 | I42: 1412.80 | J42: 1463.80 | K42: 1479.90 | L42: 1489.30 | M42: 1470.5 | N42: 1445 | O42: 3442875 | P42: -5.28%
A43: 33 | B43: Capital_Goods | C43: BEL | D43: 2024-08-29 | E43: 298.15 | F43: 299.58 | G43: 295.97 | H43: 293.78 | I43: 290.17 | J43: 301.77 | K43: 305.38 | L43: 307.57 | M43: 303.2 | N43: 297.4 | O43: 157254450 | P43: -0.36%
A44: 34 | B44: FMCG | C44: BERGEPAINT | D44: 2024-08-29 | E44: 519.35 | F44: 523.87 | G44: 513.68 | H44: 508.02 | I44: 497.83 | J44: 529.53 | K44: 539.72 | L44: 545.38 | M44: 534.05 | N44: 518.2 | O44: 15636720 | P44: 0.88%
A45: 35 | B45: Automobile | C45: BHARATFORG | D45: 2024-08-29 | E45: 1611.70 | F45: 1601.28 | G45: 1552.62 | H45: 1493.53 | I45: 1444.87 | J45: 1660.37 | K45: 1709.03 | L45: 1768.12 | M45: 1649.95 | N45: 1542.2 | O45: 8362500 | P45: -4.18%
A46: 36 | B46: Telecom | C46: BHARTIARTL | D46: 2024-08-29 | E46: 1454.70 | F46: 1452.80 | G46: 1435.60 | H46: 1416.50 | I46: 1399.30 | J46: 1471.90 | K46: 1489.10 | L46: 1508.20 | M46: 1470 | N46: 1433.7 | O46: 40402550 | P46: -3.36%
A47: 37 | B47: Capital_Goods | C47: BHEL | D47: 2024-08-29 | E47: 298.20 | F47: 300.48 | G47: 295.27 | H47: 292.33 | I47: 287.12 | J47: 303.42 | K47: 308.63 | L47: 311.57 | M47: 305.7 | N47: 297.55 | O47: 75988500 | P47: 1.16%
A48: 38 | B48: Pharma | C48: BIOCON | D48: 2024-08-29 | E48: 340.10 | F48: 342.65 | G48: 334.95 | H48: 329.80 | I48: 322.10 | J48: 347.80 | K48: 355.50 | L48: 360.65 | M48: 350.35 | N48: 337.5 | O48: 50512500 | P48: 2.40%
A49: 39 | B49: Automobile | C49: BOSCHLTD | D49: 2024-08-29 | E49: 31807.40 | F49: 32049.18 | G49: 31473.37 | H49: 31139.33 | I49: 30563.52 | J49: 32383.22 | K49: 32959.03 | L49: 33293.07 | M49: 32625 | N49: 31715.15 | O49: 338025 | P49: 0.02%
A50: 40 | B50: Oil_Gas | C50: BPCL | D50: 2024-08-29 | E50: 338.95 | F50: 339.60 | G50: 332.90 | H50: 326.85 | I50: 320.15 | J50: 345.65 | K50: 352.35 | L50: 358.40 | M50: 346.3 | N50: 333.55 | O50: 63738000 | P50: -4.33%
A51: 41 | B51: FMCG | C51: BRITANNIA | D51: 2024-08-29 | E51: 5758.30 | F51: 5791.77 | G51: 5703.68 | H51: 5649.07 | I51: 5560.98 | J51: 5846.38 | K51: 5934.47 | L51: 5989.08 | M51: 5879.85 | N51: 5737.15 | O51: 2403800 | P51: -6.34%
A52: 42 | B52: Technology | C52: BSOFT | D52: 2024-08-29 | E52: 575.10 | F52: 575.13 | G52: 566.27 | H52: 557.43 | I52: 548.57 | J52: 583.97 | K52: 592.83 | L52: 601.67 | M52: 584 | N52: 566.3 | O52: 12650000 | P52: -0.37%
A53: 43 | B53: Banking | C53: CANBK | D53: 2024-08-29 | E53: 107.68 | F53: 107.83 | G53: 106.65 | H53: 105.63 | I53: 104.45 | J53: 108.85 | K53: 110.03 | L53: 111.05 | M53: 109 | N53: 106.8 | O53: 291498750 | P53: 0.51%
A54: 44 | B54: Finance | C54: CANFINHOME | D54: 2024-08-29 | E54: 784.40 | F54: 787.27 | G54: 776.53 | H54: 768.67 | I54: 757.93 | J54: 795.13 | K54: 805.87 | L54: 813.73 | M54: 798 | N54: 779.4 | O54: 5769075 | P54: -2.58%
A55: 45 | B55: Chemicals | C55: CHAMBLFERT | D55: 2024-08-29 | E55: 514.30 | F55: 513.93 | G55: 501.87 | H55: 489.43 | I55: 477.37 | J55: 526.37 | K55: 538.43 | L55: 550.87 | M55: 526 | N55: 501.5 | O55: 12249300 | P55: -12.14%
A56: 46 | B56: Finance | C56: CHOLAFIN | D56: 2024-08-29 | E56: 1354.30 | F56: 1364.03 | G56: 1341.72 | H56: 1329.13 | I56: 1306.82 | J56: 1376.62 | K56: 1398.93 | L56: 1411.52 | M56: 1386.35 | N56: 1351.45 | O56: 9830000 | P56: 1.90%
A57: 47 | B57: Pharma | C57: CIPLA | D57: 2024-08-29 | E57: 1573.20 | F57: 1576.77 | G57: 1558.73 | H57: 1544.27 | I57: 1526.23 | J57: 1591.23 | K57: 1609.27 | L57: 1623.73 | M57: 1594.8 | N57: 1562.3 | O57: 10664550 | P57: -1.04%
A58: 48 | B58: Metals | C58: COALINDIA | D58: 2024-08-29 | E58: 520.10 | F58: 523.35 | G58: 515.60 | H58: 511.10 | I58: 503.35 | J58: 527.85 | K58: 535.60 | L58: 540.10 | M58: 531.1 | N58: 518.85 | O58: 53965800 | P58: -5.32%
A59: 49 | B59: Technology | C59: COFORGE | D59: 2024-08-29 | E59: 5851.00 | F59: 5909.30 | G59: 5778.40 | H59: 5705.80 | I59: 5574.90 | J59: 5981.90 | K59: 6112.80 | L59: 6185.40 | M59: 6040.2 | N59: 5836.7 | O59: 1934850 | P59: 0.96%
A60: 50 | B60: FMCG | C60: COLPAL | D60: 2024-08-29 | E60: 3472.90 | F60: 3471.82 | G60: 3451.08 | H60: 3429.27 | I60: 3408.53 | J60: 3493.63 | K60: 3514.37 | L60: 3536.18 | M60: 3492.55 | N60: 3450 | O60: 3007200 | P60: -0.27%
A61: 51 | B61: Infrastructure | C61: CONCOR | D61: 2024-08-29 | E61: 999.80 | F61: 1003.55 | G61: 991.25 | H61: 982.70 | I61: 970.40 | J61: 1012.10 | K61: 1024.40 | L61: 1032.95 | M61: 1015.85 | N61: 995 | O61: 22068000 | P61: 2.65%
A62: 52 | B62: Chemicals | C62: COROMANDEL | D62: 2024-08-29 | E62: 1643.75 | F62: 1649.95 | G62: 1604.90 | H62: 1566.05 | I62: 1521.00 | J62: 1688.80 | K62: 1733.85 | L62: 1772.70 | M62: 1695 | N62: 1611.1 | O62: 4461100 | P62: -2.54%
A63: 53 | B63: Capital_Goods | C63: CROMPTON | D63: 2024-08-29 | E63: 434.40 | F63: 435.53 | G63: 429.32 | H63: 424.23 | I63: 418.02 | J63: 440.62 | K63: 446.83 | L63: 451.92 | M63: 441.75 | N63: 430.45 | O63: 19458000 | P63: 0.18%
A64: 54 | B64: Banking | C64: CUB | D64: 2024-08-29 | E64: 163.13 | F64: 163.64 | G64: 161.28 | H64: 159.43 | I64: 157.07 | J64: 165.49 | K64: 167.85 | L64: 169.70 | M64: 166 | N64: 161.79 | O64: 30305000 | P64: 0.87%
A65: 55 | B65: Capital_Goods | C65: CUMMINSIND | D65: 2024-08-29 | E65: 3735.15 | F65: 3726.53 | G65: 3678.27 | H65: 3621.38 | I65: 3573.12 | J65: 3783.42 | K65: 3831.68 | L65: 3888.57 | M65: 3774.8 | N65: 3669.65 | O65: 4734900 | P65: -7.79%
A66: 56 | B66: FMCG | C66: DABUR | D66: 2024-08-29 | E66: 638.65 | F66: 639.82 | G66: 635.83 | H66: 633.02 | I66: 629.03 | J66: 642.63 | K66: 646.62 | L66: 649.43 | M66: 643.8 | N66: 637 | O66: 15738750 | P66: -2.30%
A67: 57 | B67: Cement | C67: DALBHARAT | D67: 2024-08-29 | E67: 1772.65 | F67: 1764.40 | G67: 1746.30 | H67: 1719.95 | I67: 1701.85 | J67: 1790.75 | K67: 1808.85 | L67: 1835.20 | M67: 1782.5 | N67: 1738.05 | O67: 4381575 | P67: -2.60%
A68: 58 | B68: Chemicals | C68: DEEPAKNTR | D68: 2024-08-29 | E68: 3061.25 | F68: 3077.45 | G68: 3022.05 | H68: 2982.85 | I68: 2927.45 | J68: 3116.65 | K68: 3172.05 | L68: 3211.25 | M68: 3132.85 | N68: 3038.25 | O68: 2006700 | P68: -3.60%
A69: 59 | B69: Pharma | C69: DIVISLAB | D69: 2024-08-29 | E69: 4853.95 | F69: 4911.97 | G69: 4789.98 | H69: 4726.02 | I69: 4604.03 | J69: 4975.93 | K69: 5097.92 | L69: 5161.88 | M69: 5033.95 | N69: 4848 | O69: 2921000 | P69: -0.49%
A70: 60 | B70: Capital_Goods | C70: DIXON | D70: 2024-08-29 | E70: 11498.85 | F70: 11583.25 | G70: 11382.00 | H70: 11265.15 | I70: 11063.90 | J70: 11700.10 | K70: 11901.35 | L70: 12018.20 | M70: 11784.5 | N70: 11466.4 | O70: 2027000 | P70: 0.89%
A71: 61 | B71: Realty | C71: DLF | D71: 2024-08-29 | E71: 835.50 | F71: 840.70 | G71: 828.65 | H71: 821.80 | I71: 809.75 | J71: 847.55 | K71: 859.60 | L71: 866.45 | M71: 852.75 | N71: 833.85 | O71: 38294025 | P71: 0.42%
A72: 62 | B72: Pharma | C72: DRREDDY | D72: 2024-08-29 | E72: 6939.60 | F72: 6973.73 | G72: 6887.47 | H72: 6835.33 | I72: 6749.07 | J72: 7025.87 | K72: 7112.13 | L72: 7164.27 | M72: 7060 | N72: 6921.6 | O72: 2554750 | P72: 1.56%
A73: 63 | B73: Automobile | C73: EICHERMOT | D73: 2024-08-29 | E73: 4558.10 | F73: 4580.03 | G73: 4522.07 | H73: 4486.03 | I73: 4428.07 | J73: 4616.07 | K73: 4674.03 | L73: 4710.07 | M73: 4638 | N73: 4544 | O73: 3897425 | P73: 1.19%
A74: 64 | B74: Automobile | C74: ESCORTS | D74: 2024-08-29 | E74: 3697.95 | F74: 3710.32 | G74: 3668.63 | H74: 3639.32 | I74: 3597.63 | J74: 3739.63 | K74: 3781.32 | L74: 3810.63 | M74: 3752 | N74: 3681 | O74: 1966525 | P74: 1.29%
A75: 65 | B75: Automobile | C75: EXIDEIND | D75: 2024-08-29 | E75: 487.20 | F75: 490.65 | G75: 482.45 | H75: 477.70 | I75: 469.50 | J75: 495.40 | K75: 503.60 | L75: 508.35 | M75: 498.85 | N75: 485.9 | O75: 33386400 | P75: -0.85%
A76: 66 | B76: Banking | C76: FEDERALBNK | D76: 2024-08-29 | E76: 193.23 | F76: 193.35 | G76: 191.80 | H76: 190.37 | I76: 188.82 | J76: 194.78 | K76: 196.33 | L76: 197.76 | M76: 194.9 | N76: 191.92 | O76: 95700000 | P76: -3.11%
A77: 67 | B77: Oil_Gas | C77: GAIL | D77: 2024-08-29 | E77: 227.75 | F77: 229.25 | G77: 225.60 | H77: 223.45 | I77: 219.80 | J77: 231.40 | K77: 235.05 | L77: 237.20 | M77: 232.9 | N77: 227.1 | O77: 118387275 | P77: 1.51%
A78: 68 | B78: Pharma | C78: GLENMARK | D78: 2024-08-29 | E78: 1455.25 | F78: 1462.55 | G78: 1445.45 | H78: 1435.65 | I78: 1418.55 | J78: 1472.35 | K78: 1489.45 | L78: 1499.25 | M78: 1479.65 | N78: 1452.75 | O78: 5030050 | P78: -2.12%
A79: 69 | B79: Infrastructure | C79: GMRINFRA | D79: 2024-08-29 | E79: 98.78 | F79: 98.61 | G79: 96.77 | H79: 94.77 | I79: 92.93 | J79: 100.61 | K79: 102.45 | L79: 104.45 | M79: 100.44 | N79: 96.6 | O79: 218497500 | P79: -1.20%
A80: 70 | B80: Chemicals | C80: GNFC | D80: 2024-08-29 | E80: 663.50 | F80: 665.83 | G80: 659.67 | H80: 655.83 | I80: 649.67 | J80: 669.67 | K80: 675.83 | L80: 679.67 | M80: 672 | N80: 662 | O80: 7631000 | P80: -0.34%
A81: 71 | B81: FMCG | C81: GODREJCP | D81: 2024-08-29 | E81: 1449.35 | F81: 1453.78 | G81: 1416.57 | H81: 1383.78 | I81: 1346.57 | J81: 1486.57 | K81: 1523.78 | L81: 1556.57 | M81: 1491 | N81: 1421 | O81: 8941500 | P81: 13.77%
A82: 72 | B82: Realty | C82: GODREJPROP | D82: 2024-08-29 | E82: 2889.90 | F82: 2920.32 | G82: 2853.38 | H82: 2816.87 | I82: 2749.93 | J82: 2956.83 | K82: 3023.77 | L82: 3060.28 | M82: 2987.25 | N82: 2883.8 | O82: 5134500 | P82: 0.46%
A83: 73 | B83: Pharma | C83: GRANULES | D83: 2024-08-29 | E83: 656.10 | F83: 654.92 | G83: 644.83 | H83: 633.57 | I83: 623.48 | J83: 666.18 | K83: 676.27 | L83: 687.53 | M83: 665 | N83: 643.65 | O83: 9578000 | P83: -2.13%
A84: 74 | B84: Cement | C84: GRASIM | D84: 2024-08-29 | E84: 2553.60 | F84: 2580.52 | G84: 2513.08 | H84: 2472.57 | I84: 2405.13 | J84: 2621.03 | K84: 2688.47 | L84: 2728.98 | M84: 2647.95 | N84: 2540 | O84: 7951750 | P84: 4.07%
A85: 75 | B85: Oil_Gas | C85: GUJGASLTD | D85: 2024-08-29 | E85: 621.60 | F85: 627.23 | G85: 613.57 | H85: 605.53 | I85: 591.87 | J85: 635.27 | K85: 648.93 | L85: 656.97 | M85: 640.9 | N85: 619.2 | O85: 9987500 | P85: 4.05%
A86: 76 | B86: Capital_Goods | C86: HAL | D86: 2024-08-29 | E86: 4670.25 | F86: 4698.63 | G86: 4634.92 | H86: 4599.58 | I86: 4535.87 | J86: 4733.97 | K86: 4797.68 | L86: 4833.02 | M86: 4762.35 | N86: 4663.3 | O86: 13489200 | P86: 1.57%
A87: 77 | B87: Capital_Goods | C87: HAVELLS | D87: 2024-08-29 | E87: 1792.30 | F87: 1807.25 | G87: 1771.65 | H87: 1751.00 | I87: 1715.40 | J87: 1827.90 | K87: 1863.50 | L87: 1884.15 | M87: 1842.85 | N87: 1786.6 | O87: 8102000 | P87: 2.79%
A88: 78 | B88: Technology | C88: HCLTECH | D88: 2024-08-29 | E88: 1564.50 | F88: 1577.58 | G88: 1549.27 | H88: 1534.03 | I88: 1505.72 | J88: 1592.82 | K88: 1621.13 | L88: 1636.37 | M88: 1605.9 | N88: 1562.35 | O88: 13279700 | P88: -0.88%
A89: 79 | B89: Finance | C89: HDFCAMC | D89: 2024-08-29 | E89: 4119.75 | F89: 4127.17 | G89: 4064.73 | H89: 4009.72 | I89: 3947.28 | J89: 4182.18 | K89: 4244.62 | L89: 4299.63 | M89: 4189.6 | N89: 4072.15 | O89: 3031950 | P89: 1.68%
A90: 80 | B90: Banking | C90: HDFCBANK | D90: 2024-08-29 | E90: 1646.35 | F90: 1644.48 | G90: 1628.77 | H90: 1611.18 | I90: 1595.47 | J90: 1662.07 | K90: 1677.78 | L90: 1695.37 | M90: 1660.2 | N90: 1626.9 | O90: 192547850 | P90: -1.30%
A91: 81 | B91: Finance | C91: HDFCLIFE | D91: 2024-08-29 | E91: 711.35 | F91: 706.37 | G91: 697.98 | H91: 684.62 | I91: 676.23 | J91: 719.73 | K91: 728.12 | L91: 741.48 | M91: 714.75 | N91: 693 | O91: 25829100 | P91: -2.62%
A92: 82 | B92: Automobile | C92: HEROMOTOCO | D92: 2024-08-29 | E92: 5179.35 | F92: 5213.08 | G92: 5138.22 | H92: 5097.08 | I92: 5022.22 | J92: 5254.22 | K92: 5329.08 | L92: 5370.22 | M92: 5287.95 | N92: 5171.95 | O92: 4386600 | P92: -1.53%
A93: 83 | B93: Metals | C93: HINDALCO | D93: 2024-08-29 | E93: 613.35 | F93: 618.80 | G93: 606.95 | H93: 600.55 | I93: 588.70 | J93: 625.20 | K93: 637.05 | L93: 643.45 | M93: 630.65 | N93: 612.4 | O93: 43920800 | P93: 0.69%
A94: 84 | B94: Metals | C94: HINDCOPPER | D94: 2024-08-29 | E94: 296.00 | F94: 297.78 | G94: 291.67 | H94: 287.33 | I94: 281.22 | J94: 302.12 | K94: 308.23 | L94: 312.57 | M94: 303.9 | N94: 293.45 | O94: 37004600 | P94: -1.90%
A95: 85 | B95: Oil_Gas | C95: HINDPETRO | D95: 2024-08-29 | E95: 389.90 | F95: 391.32 | G95: 382.58 | H95: 375.27 | I95: 366.53 | J95: 398.63 | K95: 407.37 | L95: 414.68 | M95: 400.05 | N95: 384 | O95: 59468175 | P95: -1.75%
A96: 86 | B96: FMCG | C96: HINDUNILVR | D96: 2024-08-29 | E96: 2743.65 | F96: 2748.08 | G96: 2729.72 | H96: 2715.78 | I96: 2697.42 | J96: 2762.02 | K96: 2780.38 | L96: 2794.32 | M96: 2766.45 | N96: 2734.15 | O96: 15134400 | P96: -2.26%
A97: 87 | B97: Banking | C97: ICICIBANK | D97: 2024-08-29 | E97: 1159.15 | F97: 1161.17 | G97: 1152.98 | H97: 1146.82 | I97: 1138.63 | J97: 1167.33 | K97: 1175.52 | L97: 1181.68 | M97: 1169.35 | N97: 1155 | O97: 96450900 | P97: -0.08%
A98: 88 | B98: Finance | C98: ICICIGI | D98: 2024-08-29 | E98: 1978.05 | F98: 1970.68 | G98: 1954.37 | H98: 1930.68 | I98: 1914.37 | J98: 1994.37 | K98: 2010.68 | L98: 2034.37 | M98: 1987 | N98: 1947 | O98: 4152500 | P98: 2.11%
A99: 89 | B99: Finance | C99: ICICIPRULI | D99: 2024-08-29 | E99: 740.55 | F99: 735.50 | G99: 725.10 | H99: 709.65 | I99: 699.25 | J99: 750.95 | K99: 761.35 | L99: 776.80 | M99: 745.9 | N99: 720.05 | O99: 10221000 | P99: 4.01%
A100: 90 | B100: Telecom | C100: IDEA | D100: 2024-08-29 | E100: 15.99 | F100: 16.01 | G100: 15.66 | H100: 15.32 | I100: 14.97 | J100: 16.35 | K100: 16.70 | L100: 17.04 | M100: 16.37 | N100: 15.68 | O100: 4727080000 | P100: 0.85%
A101: 91 | B101: Finance | C101: IDFC | D101: 2024-08-29 | E101: 106.93 | F101: 107.41 | G101: 106.28 | H101: 105.62 | I101: 104.49 | J101: 108.07 | K101: 109.20 | L101: 109.86 | M101: 108.55 | N101: 106.76 | O101: 132210000 | P101: -0.33%
A102: 92 | B102: Banking | C102: IDFCFIRSTB | D102: 2024-08-29 | E102: 71.88 | F102: 72.24 | G102: 71.42 | H102: 70.96 | I102: 70.14 | J102: 72.70 | K102: 73.52 | L102: 73.98 | M102: 73.06 | N102: 71.78 | O102: 511395000 | P102: 1.23%
A103: 93 | B103: Power | C103: IEX | D103: 2024-08-29 | E103: 194.17 | F103: 196.44 | G103: 191.49 | H103: 188.80 | I103: 183.85 | J103: 199.13 | K103: 204.08 | L103: 206.77 | M103: 201.4 | N103: 193.76 | O103: 74640000 | P103: -0.33%
A104: 94 | B104: Oil_Gas | C104: IGL | D104: 2024-08-29 | E104: 543.30 | F104: 545.18 | G104: 540.32 | H104: 537.33 | I104: 532.47 | J104: 548.17 | K104: 553.03 | L104: 556.02 | M104: 550.05 | N104: 542.2 | O104: 11176000 | P104: -1.61%
A105: 95 | B105: Infrastructure | C105: INDHOTEL | D105: 2024-08-29 | E105: 616.30 | F105: 618.58 | G105: 611.92 | H105: 607.53 | I105: 600.87 | J105: 622.97 | K105: 629.63 | L105: 634.02 | M105: 625.25 | N105: 614.2 | O105: 19339000 | P105: 0.93%
A106: 96 | B106: Cement | C106: INDIACEM | D106: 2024-08-29 | E106: 369.05 | F106: 368.88 | G106: 367.37 | H106: 365.68 | I106: 364.17 | J106: 370.57 | K106: 372.08 | L106: 373.77 | M106: 370.4 | N106: 367.2 | O106: 22161800 | P106: -0.88%
A107: 97 | B107: FMCG | C107: INDIAMART | D107: 2024-08-29 | E107: 2747.50 | F107: 2742.83 | G107: 2684.67 | H107: 2621.83 | I107: 2563.67 | J107: 2805.67 | K107: 2863.83 | L107: 2926.67 | M107: 2801 | N107: 2680 | O107: 1859400 | P107: -3.34%
A108: 98 | B108: Infrastructure | C108: INDIGO | D108: 2024-08-29 | E108: 4273.15 | F108: 4293.47 | G108: 4238.28 | H108: 4203.42 | I108: 4148.23 | J108: 4328.33 | K108: 4383.52 | L108: 4418.38 | M108: 4348.65 | N108: 4258.6 | O108: 6078600 | P108: 0.53%
A109: 99 | B109: Banking | C109: INDUSINDBK | D109: 2024-08-29 | E109: 1350.05 | F109: 1349.82 | G109: 1340.23 | H109: 1330.42 | I109: 1320.83 | J109: 1359.63 | K109: 1369.22 | L109: 1379.03 | M109: 1359.4 | N109: 1340 | O109: 30988000 | P109: -0.65%
A110: 100 | B110: Telecom | C110: INDUSTOWER | D110: 2024-08-29 | E110: 417.65 | F110: 420.55 | G110: 414.20 | H110: 410.75 | I110: 404.40 | J110: 424.00 | K110: 430.35 | L110: 433.80 | M110: 426.9 | N110: 417.1 | O110: 87618000 | P110: -3.30%
A111: 101 | B111: Technology | C111: INFY | D111: 2024-08-29 | E111: 1748.25 | F111: 1754.82 | G111: 1728.68 | H111: 1709.12 | I111: 1682.98 | J111: 1774.38 | K111: 1800.52 | L111: 1820.08 | M111: 1780.95 | N111: 1735.25 | O111: 45250800 | P111: -1.71%
A112: 102 | B112: Oil_Gas | C112: IOC | D112: 2024-08-29 | E112: 170.54 | F112: 170.98 | G112: 169.26 | H112: 167.99 | I112: 166.27 | J112: 172.25 | K112: 173.97 | L112: 175.24 | M112: 172.69 | N112: 169.7 | O112: 196248000 | P112: -2.29%
A113: 103 | B113: Pharma | C113: IPCALAB | D113: 2024-08-29 | E113: 1366.10 | F113: 1360.35 | G113: 1342.70 | H113: 1319.30 | I113: 1301.65 | J113: 1383.75 | K113: 1401.40 | L113: 1424.80 | M113: 1378 | N113: 1336.95 | O113: 2432950 | P113: -4.86%
A114: 104 | B114: Infrastructure | C114: IRCTC | D114: 2024-08-29 | E114: 925.65 | F114: 929.95 | G114: 919.70 | H114: 913.75 | I114: 903.50 | J114: 935.90 | K114: 946.15 | L114: 952.10 | M114: 940.2 | N114: 924 | O114: 21470750 | P114: 2.08%
A115: 105 | B115: FMCG | C115: ITC | D115: 2024-08-29 | E115: 495.85 | F115: 496.33 | G115: 493.27 | H115: 490.68 | I115: 487.62 | J115: 498.92 | K115: 501.98 | L115: 504.57 | M115: 499.4 | N115: 493.75 | O115: 112542400 | P115: -3.29%
A116: 106 | B116: Metals | C116: JINDALSTEL | D116: 2024-08-29 | E116: 921.45 | F116: 929.95 | G116: 910.90 | H116: 900.35 | I116: 881.30 | J116: 940.50 | K116: 959.55 | L116: 970.10 | M116: 949 | N116: 919.4 | O116: 15752500 | P116: 0.64%
A117: 107 | B117: Cement | C117: JKCEMENT | D117: 2024-08-29 | E117: 4205.85 | F117: 4222.42 | G117: 4134.48 | H117: 4063.12 | I117: 3975.18 | J117: 4293.78 | K117: 4381.72 | L117: 4453.08 | M117: 4310.35 | N117: 4151.05 | O117: 756250 | P117: 8.85%
A118: 108 | B118: Metals | C118: JSWSTEEL | D118: 2024-08-29 | E118: 887.90 | F118: 892.37 | G118: 880.08 | H118: 872.27 | I118: 859.98 | J118: 900.18 | K118: 912.47 | L118: 920.28 | M118: 904.65 | N118: 884.55 | O118: 18675900 | P118: -5.07%
A119: 109 | B119: FMCG | C119: JUBLFOOD | D119: 2024-08-29 | E119: 597.10 | F119: 600.83 | G119: 591.27 | H119: 585.43 | I119: 575.87 | J119: 606.67 | K119: 616.23 | L119: 622.07 | M119: 610.4 | N119: 595 | O119: 22275000 | P119: -0.39%
A120: 110 | B120: Banking | C120: KOTAKBANK | D120: 2024-08-29 | E120: 1776.95 | F120: 1778.57 | G120: 1768.38 | H120: 1759.82 | I120: 1749.63 | J120: 1787.13 | K120: 1797.32 | L120: 1805.88 | M120: 1788.75 | N120: 1770 | O120: 34532000 | P120: -1.73%
A121: 111 | B121: Finance | C121: LTF | D121: 2024-08-29 | E121: 165.98 | F121: 167.13 | G121: 164.40 | H121: 162.83 | I121: 160.10 | J121: 168.70 | K121: 171.43 | L121: 173.00 | M121: 169.85 | N121: 165.55 | O121: 72141616 | P121: 1.67%
A122: 112 | B122: Pharma | C122: LALPATHLAB | D122: 2024-08-29 | E122: 3116.70 | F122: 3147.48 | G122: 3061.07 | H122: 3005.43 | I122: 2919.02 | J122: 3203.12 | K122: 3289.53 | L122: 3345.17 | M122: 3233.9 | N122: 3091.85 | O122: 1230000 | P122: -2.98%
A123: 113 | B123: Pharma | C123: LAURUSLABS | D123: 2024-08-29 | E123: 433.50 | F123: 437.67 | G123: 427.83 | H123: 422.17 | I123: 412.33 | J123: 443.33 | K123: 453.17 | L123: 458.83 | M123: 447.5 | N123: 432 | O123: 18711900 | P123: 0.00%
A124: 114 | B124: Finance | C124: LICHSGFIN | D124: 2024-08-29 | E124: 635.45 | F124: 636.15 | G124: 629.30 | H124: 623.15 | I124: 616.30 | J124: 642.30 | K124: 649.15 | L124: 655.30 | M124: 643 | N124: 630 | O124: 33067000 | P124: -3.21%
A125: 115 | B125: Capital_Goods | C125: LT | D125: 2024-08-29 | E125: 3564.00 | F125: 3586.38 | G125: 3535.77 | H125: 3507.53 | I125: 3456.92 | J125: 3614.62 | K125: 3665.23 | L125: 3693.47 | M125: 3637 | N125: 3558.15 | O125: 17137350 | P125: 1.40%
A126: 116 | B126: Technology | C126: LTIM | D126: 2024-08-29 | E126: 5348.35 | F126: 5412.93 | G126: 5269.57 | H126: 5190.78 | I126: 5047.42 | J126: 5491.72 | K126: 5635.08 | L126: 5713.87 | M126: 5556.3 | N126: 5334.15 | O126: 3175650 | P126: -4.67%
A127: 117 | B127: Technology | C127: LTTS | D127: 2024-08-29 | E127: 4829.20 | F127: 4853.68 | G127: 4789.62 | H127: 4750.03 | I127: 4685.97 | J127: 4893.27 | K127: 4957.33 | L127: 4996.92 | M127: 4917.75 | N127: 4814.1 | O127: 1653000 | P127: 4.18%
A128: 118 | B128: Pharma | C128: LUPIN | D128: 2024-08-29 | E128: 2058.60 | F128: 2048.53 | G128: 2020.07 | H128: 1981.53 | I128: 1953.07 | J128: 2087.07 | K128: 2115.53 | L128: 2154.07 | M128: 2077 | N128: 2010 | O128: 13007975 | P128: 8.44%
A129: 119 | B129: Automobile | C129: M&M | D129: 2024-08-29 | E129: 2688.60 | F129: 2693.07 | G129: 2663.78 | H129: 2638.97 | I129: 2609.68 | J129: 2717.88 | K129: 2747.17 | L129: 2771.98 | M129: 2722.35 | N129: 2668.25 | O129: 14592900 | P129: -3.80%
A130: 120 | B130: Finance | C130: M&MFIN | D130: 2024-08-29 | E130: 293.45 | F130: 295.90 | G130: 290.60 | H130: 287.75 | I130: 282.45 | J130: 298.75 | K130: 304.05 | L130: 306.90 | M130: 301.2 | N130: 293.05 | O130: 42176000 | P130: 2.78%
A131: 121 | B131: Finance | C131: MANAPPURAM | D131: 2024-08-29 | E131: 197.77 | F131: 199.13 | G131: 195.27 | H131: 192.77 | I131: 188.91 | J131: 201.63 | K131: 205.49 | L131: 207.99 | M131: 202.99 | N131: 196.63 | O131: 75228000 | P131: -1.17%
A132: 122 | B132: FMCG | C132: MARICO | D132: 2024-08-29 | E132: 646.85 | F132: 647.47 | G132: 640.03 | H132: 633.22 | I132: 625.78 | J132: 654.28 | K132: 661.72 | L132: 668.53 | M132: 654.9 | N132: 640.65 | O132: 12615600 | P132: 1.63%
A133: 123 | B133: Automobile | C133: MARUTI | D133: 2024-08-29 | E133: 12247.20 | F133: 12293.18 | G133: 12158.12 | H133: 12069.03 | I133: 11933.97 | J133: 12382.27 | K133: 12517.33 | L133: 12606.42 | M133: 12428.25 | N133: 12204.1 | O133: 3009500 | P133: 3.12%
A134: 124 | B134: FMCG | C134: UNITDSPR | D134: 2024-08-29 | E134: 1464.80 | F134: 1466.20 | G134: 1457.60 | H134: 1450.40 | I134: 1441.80 | J134: 1473.40 | K134: 1482.00 | L134: 1489.20 | M134: 1474.8 | N134: 1459 | O134: 10535000 | P134: -1.25%
A135: 125 | B135: Technology | C135: MCX | D135: 2024-08-29 | E135: 4226.65 | F135: 4260.50 | G135: 4149.00 | H135: 4071.35 | I135: 3959.85 | J135: 4338.15 | K135: 4449.65 | L135: 4527.30 | M135: 4372 | N135: 4182.85 | O135: 2178400 | P135: -2.38%
A136: 126 | B136: Pharma | C136: METROPOLIS | D136: 2024-08-29 | E136: 2065.10 | F136: 2085.37 | G136: 2037.23 | H136: 2009.37 | I136: 1961.23 | J136: 2113.23 | K136: 2161.37 | L136: 2189.23 | M136: 2133.5 | N136: 2057.5 | O136: 1539600 | P136: 2.37%
A137: 127 | B137: Finance | C137: MFSL | D137: 2024-08-29 | E137: 1108.30 | F137: 1094.42 | G137: 1075.63 | H137: 1042.97 | I137: 1024.18 | J137: 1127.08 | K137: 1145.87 | L137: 1178.53 | M137: 1113.2 | N137: 1061.75 | O137: 3615200 | P137: -0.75%
A138: 128 | B138: Oil_Gas | C138: MGL | D138: 2024-08-29 | E138: 1788.25 | F138: 1797.75 | G138: 1773.80 | H138: 1759.35 | I138: 1735.40 | J138: 1812.20 | K138: 1836.15 | L138: 1850.60 | M138: 1821.7 | N138: 1783.3 | O138: 2477200 | P138: -1.85%
A139: 129 | B139: Automobile | C139: MOTHERSON | D139: 2024-08-29 | E139: 182.47 | F139: 182.02 | G139: 179.06 | H139: 175.64 | I139: 172.68 | J139: 185.44 | K139: 188.40 | L139: 191.82 | M139: 184.99 | N139: 178.61 | O139: 143952500 | P139: 1.64%
A140: 130 | B140: Technology | C140: MPHASIS | D140: 2024-08-29 | E140: 2658.20 | F140: 2680.90 | G140: 2627.30 | H140: 2596.40 | I140: 2542.80 | J140: 2711.80 | K140: 2765.40 | L140: 2796.30 | M140: 2734.5 | N140: 2650 | O140: 4507250 | P140: 2.02%
A141: 131 | B141: Automobile | C141: MRF | D141: 2024-08-29 | E141: 140887.75 | F141: 138759.23 | G141: 134368.57 | H141: 127849.38 | I141: 123458.72 | J141: 145278.42 | K141: 149669.08 | L141: 156188.27 | M141: 143149.9 | N141: 132240.05 | O141: 67890 | P141: 7.86%
A142: 132 | B142: Finance | C142: MUTHOOTFIN | D142: 2024-08-29 | E142: 1853.10 | F142: 1852.32 | G142: 1835.98 | H142: 1818.87 | I142: 1802.53 | J142: 1869.43 | K142: 1885.77 | L142: 1902.88 | M142: 1868.65 | N142: 1835.2 | O142: 4494600 | P142: 1.18%
A143: 133 | B143: Metals | C143: NATIONALUM | D143: 2024-08-29 | E143: 173.33 | F143: 175.52 | G143: 170.87 | H143: 168.40 | I143: 163.75 | J143: 177.99 | K143: 182.64 | L143: 185.11 | M143: 180.18 | N143: 173.06 | O143: 59355000 | P143: 3.91%
A144: 134 | B144: Technology | C144: NAUKRI | D144: 2024-08-29 | E144: 6941.20 | F144: 6991.85 | G144: 6871.35 | H144: 6801.50 | I144: 6681.00 | J144: 7061.70 | K144: 7182.20 | L144: 7252.05 | M144: 7112.35 | N144: 6922 | O144: 1282650 | P144: -1.78%
A145: 135 | B145: Chemicals | C145: NAVINFLUOR | D145: 2024-08-29 | E145: 3561.95 | F145: 3589.17 | G145: 3525.33 | H145: 3488.72 | I145: 3424.88 | J145: 3625.78 | K145: 3689.62 | L145: 3726.23 | M145: 3653 | N145: 3552.55 | O145: 1881075 | P145: -0.19%
A146: 136 | B146: FMCG | C146: NESTLEIND | D146: 2024-08-29 | E146: 2494.25 | F146: 2507.28 | G146: 2474.17 | H146: 2454.08 | I146: 2420.97 | J146: 2527.37 | K146: 2560.48 | L146: 2580.57 | M146: 2540.4 | N146: 2487.2 | O146: 6375800 | P146: -0.47%
A147: 137 | B147: Metals | C147: NMDC | D147: 2024-08-29 | E147: 222.60 | F147: 224.81 | G147: 219.71 | H147: 216.83 | I147: 211.73 | J147: 227.69 | K147: 232.79 | L147: 235.67 | M147: 229.9 | N147: 221.92 | O147: 90607500 | P147: 3.43%
A148: 138 | B148: Power | C148: NTPC | D148: 2024-08-29 | E148: 409.05 | F148: 411.62 | G148: 405.13 | H148: 401.22 | I148: 394.73 | J148: 415.53 | K148: 422.02 | L148: 425.93 | M148: 418.1 | N148: 407.7 | O148: 86863500 | P148: -6.35%
A149: 139 | B149: Realty | C149: OBEROIRLTY | D149: 2024-08-29 | E149: 1750.35 | F149: 1763.32 | G149: 1733.63 | H149: 1716.92 | I149: 1687.23 | J149: 1780.03 | K149: 1809.72 | L149: 1826.43 | M149: 1793 | N149: 1746.6 | O149: 6946800 | P149: -0.18%
A150: 140 | B150: Technology | C150: OFSS | D150: 2024-08-29 | E150: 10106.40 | F150: 10181.85 | G150: 9925.70 | H150: 9745.00 | I150: 9488.85 | J150: 10362.55 | K150: 10618.70 | L150: 10799.40 | M150: 10438 | N150: 10001.15 | O150: 1834700 | P150: 0.10%
A151: 141 | B151: Oil_Gas | C151: ONGC | D151: 2024-08-29 | E151: 321.40 | F151: 323.32 | G151: 318.63 | H151: 315.87 | I151: 311.18 | J151: 326.08 | K151: 330.77 | L151: 333.53 | M151: 328 | N151: 320.55 | O151: 123814075 | P151: -1.71%
A152: 142 | B152: Textile | C152: PAGEIND | D152: 2024-08-29 | E152: 40451.85 | F152: 40771.87 | G152: 39442.48 | H152: 38433.12 | I152: 37103.73 | J152: 41781.23 | K152: 43110.62 | L152: 44119.98 | M152: 42101.25 | N152: 39762.5 | O152: 193575 | P152: 4.89%
A153: 143 | B153: Pharma | C153: PEL | D153: 2024-08-29 | E153: 941.60 | F153: 954.03 | G153: 926.32 | H153: 911.03 | I153: 883.32 | J153: 969.32 | K153: 997.03 | L153: 1012.32 | M153: 981.75 | N153: 938.75 | O153: 11256750 | P153: -1.15%
A154: 144 | B154: Technology | C154: PERSISTENT | D154: 2024-08-29 | E154: 4621.50 | F154: 4648.90 | G154: 4584.05 | H154: 4546.60 | I154: 4481.75 | J154: 4686.35 | K154: 4751.20 | L154: 4788.65 | M154: 4713.75 | N154: 4611.45 | O154: 2442200 | P154: -3.46%
A155: 145 | B155: Oil_Gas | C155: PETRONET | D155: 2024-08-29 | E155: 364.65 | F155: 365.20 | G155: 362.15 | H155: 359.65 | I155: 356.60 | J155: 367.70 | K155: 370.75 | L155: 373.25 | M155: 368.25 | N155: 362.7 | O155: 26136000 | P155: -2.26%
A156: 146 | B156: Finance | C156: PFC | D156: 2024-08-29 | E156: 493.05 | F156: 495.05 | G156: 485.30 | H156: 477.55 | I156: 467.80 | J156: 502.80 | K156: 512.55 | L156: 520.30 | M156: 504.8 | N156: 487.3 | O156: 52292500 | P156: -2.93%
A157: 147 | B157: FMCG | C157: PIDILITIND | D157: 2024-08-29 | E157: 3181.85 | F157: 3211.87 | G157: 3133.18 | H157: 3084.52 | I157: 3005.83 | J157: 3260.53 | K157: 3339.22 | L157: 3387.88 | M157: 3290.55 | N157: 3163.2 | O157: 2752000 | P157: 5.98%
A158: 148 | B158: Chemicals | C158: PIIND | D158: 2024-08-29 | E158: 4469.95 | F158: 4479.60 | G158: 4398.20 | H158: 4326.45 | I158: 4245.05 | J158: 4551.35 | K158: 4632.75 | L158: 4704.50 | M158: 4561 | N158: 4407.85 | O158: 1928750 | P158: 2.55%
A159: 149 | B159: Banking | C159: PNB | D159: 2024-08-29 | E159: 114.27 | F159: 114.97 | G159: 113.33 | H159: 112.39 | I159: 110.75 | J159: 115.91 | K159: 117.55 | L159: 118.49 | M159: 116.61 | N159: 114.03 | O159: 300496000 | P159: 5.12%
A160: 150 | B160: Capital_Goods | C160: POLYCAB | D160: 2024-08-29 | E160: 6658.30 | F160: 6682.07 | G160: 6619.13 | H160: 6579.97 | I160: 6517.03 | J160: 6721.23 | K160: 6784.17 | L160: 6823.33 | M160: 6745 | N160: 6642.9 | O160: 2986250 | P160: 1.63%
A161: 151 | B161: Power | C161: POWERGRID | D161: 2024-08-29 | E161: 340.95 | F161: 344.23 | G161: 336.82 | H161: 332.68 | I161: 325.27 | J161: 348.37 | K161: 355.78 | L161: 359.92 | M161: 351.65 | N161: 340.1 | O161: 69267600 | P161: -1.68%
A162: 152 | B162: Media | C162: PVRINOX | D162: 2024-08-29 | E162: 1449.40 | F162: 1456.42 | G162: 1435.83 | H162: 1422.27 | I162: 1401.68 | J162: 1469.98 | K162: 1490.57 | L162: 1504.13 | M162: 1477 | N162: 1442.85 | O162: 4525840 | P162: 0.59%
A163: 153 | B163: Cement | C163: RAMCOCEM | D163: 2024-08-29 | E163: 793.65 | F163: 801.32 | G163: 782.68 | H163: 771.72 | I163: 753.08 | J163: 812.28 | K163: 830.92 | L163: 841.88 | M163: 819.95 | N163: 790.35 | O163: 9431600 | P163: 1.02%
A164: 154 | B164: Banking | C164: RBLBANK | D164: 2024-08-29 | E164: 215.49 | F164: 216.06 | G164: 213.12 | H164: 210.75 | I164: 207.81 | J164: 218.43 | K164: 221.37 | L164: 223.74 | M164: 219 | N164: 213.69 | O164: 71875000 | P164: -0.69%
A165: 155 | B165: Finance | C165: RECLTD | D165: 2024-08-29 | E165: 582.10 | F165: 585.40 | G165: 577.10 | H165: 572.10 | I165: 563.80 | J165: 590.40 | K165: 598.70 | L165: 603.70 | M165: 593.7 | N165: 580.4 | O165: 48664000 | P165: -1.40%
A166: 156 | B166: Oil_Gas | C166: RELIANCE | D166: 2024-08-29 | E166: 2901.20 | F166: 2910.40 | G166: 2886.15 | H166: 2871.10 | I166: 2846.85 | J166: 2925.45 | K166: 2949.70 | L166: 2964.75 | M166: 2934.65 | N166: 2895.35 | O166: 44825250 | P166: 3.65%
A167: 157 | B167: Metals | C167: SAIL | D167: 2024-08-29 | E167: 137.26 | F167: 138.34 | G167: 135.18 | H167: 133.10 | I167: 129.94 | J167: 140.42 | K167: 143.58 | L167: 145.66 | M167: 141.5 | N167: 136.26 | O167: 138352000 | P167: 1.31%
A168: 158 | B168: Finance | C168: SBICARD | D168: 2024-08-29 | E168: 702.85 | F168: 703.95 | G168: 700.00 | H168: 697.15 | I168: 693.20 | J168: 706.80 | K168: 710.75 | L168: 713.60 | M168: 707.9 | N168: 701.1 | O168: 25685600 | P168: 2.10%
A169: 159 | B169: Finance | C169: SBILIFE | D169: 2024-08-29 | E169: 1709.90 | F169: 1701.52 | G169: 1684.53 | H169: 1659.17 | I169: 1642.18 | J169: 1726.88 | K169: 1743.87 | L169: 1769.23 | M169: 1718.5 | N169: 1676.15 | O169: 6682125 | P169: -1.45%
A170: 160 | B170: Banking | C170: SBIN | D170: 2024-08-29 | E170: 809.15 | F170: 811.42 | G170: 803.08 | H170: 797.02 | I170: 788.68 | J170: 817.48 | K170: 825.82 | L170: 831.88 | M170: 819.75 | N170: 805.35 | O170: 90761250 | P170: -0.23%
A171: 161 | B171: Cement | C171: SHREECEM | D171: 2024-08-29 | E171: 24241.80 | F171: 24537.15 | G171: 23849.30 | H171: 23456.80 | I171: 22768.95 | J171: 24929.65 | K171: 25617.50 | L171: 26010.00 | M171: 25225 | N171: 24144.65 | O171: 316300 | P171: 7.02%
A172: 162 | B172: Capital_Goods | C172: SIEMENS | D172: 2024-08-29 | E172: 6767.35 | F172: 6760.80 | G172: 6673.65 | H172: 6579.95 | I172: 6492.80 | J172: 6854.50 | K172: 6941.65 | L172: 7035.35 | M172: 6847.95 | N172: 6667.1 | O172: 2555250 | P172: 6.64%
A173: 163 | B173: Textile | C173: SRF | D173: 2024-08-29 | E173: 2545.40 | F173: 2564.27 | G173: 2521.53 | H173: 2497.67 | I173: 2454.93 | J173: 2588.13 | K173: 2630.87 | L173: 2654.73 | M173: 2607 | N173: 2540.4 | O173: 5131875 | P173: 0.54%
A174: 164 | B174: Finance | C174: SHRIRAMFIN | D174: 2024-08-29 | E174: 2876.40 | F174: 2889.78 | G174: 2854.62 | H174: 2832.83 | I174: 2797.67 | J174: 2911.57 | K174: 2946.73 | L174: 2968.52 | M174: 2924.95 | N174: 2868 | O174: 6854100 | P174: -2.49%
A175: 165 | B175: Pharma | C175: SUNPHARMA | D175: 2024-08-29 | E175: 1738.25 | F175: 1739.92 | G175: 1729.33 | H175: 1720.42 | I175: 1709.83 | J175: 1748.83 | K175: 1759.42 | L175: 1768.33 | M175: 1750.5 | N175: 1731 | O175: 15855000 | P175: -3.87%
A176: 166 | B176: Media | C176: SUNTV | D176: 2024-08-29 | E176: 882.60 | F176: 883.72 | G176: 877.88 | H176: 873.17 | I176: 867.33 | J176: 888.43 | K176: 894.27 | L176: 898.98 | M176: 889.55 | N176: 879 | O176: 7492500 | P176: -0.95%
A177: 167 | B177: Pharma | C177: SYNGENE | D177: 2024-08-29 | E177: 844.05 | F177: 853.42 | G177: 831.88 | H177: 819.72 | I177: 798.18 | J177: 865.58 | K177: 887.12 | L177: 899.28 | M177: 874.95 | N177: 841.25 | O177: 6521000 | P177: -1.51%
A178: 168 | B178: Chemicals | C178: TATACHEM | D178: 2024-08-29 | E178: 1032.45 | F178: 1039.27 | G178: 1022.78 | H178: 1013.12 | I178: 996.63 | J178: 1048.93 | K178: 1065.42 | L178: 1075.08 | M178: 1055.75 | N178: 1029.6 | O178: 9543050 | P178: 1.79%
A179: 169 | B179: Telecom | C179: TATACOMM | D179: 2024-08-29 | E179: 1858.85 | F179: 1869.65 | G179: 1845.40 | H179: 1831.95 | I179: 1807.70 | J179: 1883.10 | K179: 1907.35 | L179: 1920.80 | M179: 1893.9 | N179: 1856.2 | O179: 6920000 | P179: 0.79%
A180: 170 | B180: FMCG | C180: TATACONSUM | D180: 2024-08-29 | E180: 1180.00 | F180: 1185.55 | G180: 1171.15 | H180: 1162.30 | I180: 1147.90 | J180: 1194.40 | K180: 1208.80 | L180: 1217.65 | M180: 1199.95 | N180: 1176.7 | O180: 11369448 | P180: 1.13%
A181: 171 | B181: Automobile | C181: TATAMOTORS | D181: 2024-08-29 | E181: 1040.50 | F181: 1040.95 | G181: 1027.00 | H181: 1013.50 | I181: 999.55 | J181: 1054.45 | K181: 1068.40 | L181: 1081.90 | M181: 1054.9 | N181: 1027.45 | O181: 64819150 | P181: -1.35%
A182: 172 | B182: Power | C182: TATAPOWER | D182: 2024-08-29 | E182: 419.05 | F182: 423.67 | G182: 413.68 | H182: 408.32 | I182: 398.33 | J182: 429.03 | K182: 439.02 | L182: 444.38 | M182: 433.65 | N182: 418.3 | O182: 97503750 | P182: 1.55%
A183: 173 | B183: Metals | C183: TATASTEEL | D183: 2024-08-29 | E183: 150.74 | F183: 151.53 | G183: 149.45 | H183: 148.15 | I183: 146.07 | J183: 152.83 | K183: 154.91 | L183: 156.21 | M183: 153.62 | N183: 150.24 | O183: 292660500 | P183: 0.19%
A184: 174 | B184: Technology | C184: TCS | D184: 2024-08-29 | E184: 4180.80 | F184: 4197.98 | G184: 4154.52 | H184: 4128.23 | I184: 4084.77 | J184: 4224.27 | K184: 4267.73 | L184: 4294.02 | M184: 4241.45 | N184: 4171.7 | O184: 14001400 | P184: -3.03%
A185: 175 | B185: Technology | C185: TECHM | D185: 2024-08-29 | E185: 1472.05 | F185: 1476.73 | G185: 1461.97 | H185: 1451.88 | I185: 1437.12 | J185: 1486.82 | K185: 1501.58 | L185: 1511.67 | M185: 1491.5 | N185: 1466.65 | O185: 13861200 | P185: 0.90%
A186: 176 | B186: FMCG | C186: TITAN | D186: 2024-08-29 | E186: 3303.30 | F186: 3322.08 | G186: 3272.67 | H186: 3242.03 | I186: 3192.62 | J186: 3352.72 | K186: 3402.13 | L186: 3432.77 | M186: 3371.5 | N186: 3291.45 | O186: 10206525 | P186: -1.44%
A187: 177 | B187: Pharma | C187: TORNTPHARM | D187: 2024-08-29 | E187: 3316.30 | F187: 3326.55 | G187: 3276.70 | H187: 3237.10 | I187: 3187.25 | J187: 3366.15 | K187: 3416.00 | L187: 3455.60 | M187: 3376.4 | N187: 3286.95 | O187: 1822500 | P187: 3.16%
A188: 178 | B188: Textile | C188: TRENT | D188: 2024-08-29 | E188: 5652.15 | F188: 5631.38 | G188: 5523.82 | H188: 5395.48 | I188: 5287.92 | J188: 5759.72 | K188: 5867.28 | L188: 5995.62 | M188: 5738.95 | N188: 5503.05 | O188: 2958000 | P188: -4.15%
A189: 179 | B189: Automobile | C189: TVSMOTOR | D189: 2024-08-29 | E189: 2538.05 | F189: 2553.33 | G189: 2501.72 | H189: 2465.38 | I189: 2413.77 | J189: 2589.67 | K189: 2641.28 | L189: 2677.62 | M189: 2604.95 | N189: 2517 | O189: 5297950 | P189: 0.89%
A190: 180 | B190: FMCG | C190: UBL | D190: 2024-08-29 | E190: 1941.50 | F190: 1950.98 | G190: 1927.97 | H190: 1914.43 | I190: 1891.42 | J190: 1964.52 | K190: 1987.53 | L190: 2001.07 | M190: 1974 | N190: 1937.45 | O190: 2365200 | P190: 1.23%
A191: 181 | B191: Cement | C191: ULTRACEMCO | D191: 2024-08-29 | E191: 11271.10 | F191: 11369.15 | G191: 11154.95 | H191: 11038.80 | I191: 10824.60 | J191: 11485.30 | K191: 11699.50 | L191: 11815.65 | M191: 11583.35 | N191: 11253 | O191: 2224900 | P191: -0.53%
A192: 182 | B192: Chemicals | C192: UPL | D192: 2024-08-29 | E192: 547.85 | F192: 550.25 | G192: 543.00 | H192: 538.15 | I192: 530.90 | J192: 555.10 | K192: 562.35 | L192: 567.20 | M192: 557.5 | N192: 545.4 | O192: 36639200 | P192: 0.12%
A193: 183 | B193: Metals | C193: VEDL | D193: 2024-08-29 | E193: 423.90 | F193: 426.42 | G193: 419.33 | H193: 414.77 | I193: 407.68 | J193: 430.98 | K193: 438.07 | L193: 442.63 | M193: 433.5 | N193: 421.85 | O193: 159116300 | P193: 0.67%
A194: 184 | B194: Capital_Goods | C194: VOLTAS | D194: 2024-08-29 | E194: 1436.15 | F194: 1460.22 | G194: 1400.38 | H194: 1364.62 | I194: 1304.78 | J194: 1495.98 | K194: 1555.82 | L194: 1591.58 | M194: 1520.05 | N194: 1424.45 | O194: 8920800 | P194: -0.95%
A195: 185 | B195: Technology | C195: WIPRO | D195: 2024-08-29 | E195: 488.30 | F195: 490.73 | G195: 485.12 | H195: 481.93 | I195: 476.32 | J195: 493.92 | K195: 499.53 | L195: 502.72 | M195: 496.35 | N195: 487.55 | O195: 54373500 | P195: 0.22%
A196: 186 | B196: Pharma | C196: ZYDUSLIFE | D196: 2024-08-29 | E196: 1285.85 | F196: 1287.53 | G196: 1272.07 | H196: 1258.28 | I196: 1242.82 | J196: 1301.32 | K196: 1316.78 | L196: 1330.57 | M196: 1303 | N196: 1273.75 | O196: 18648900 | P196: 3.20%
A210: Pivot Point: This is trigger point for intra day buy/sell based on the price range of the previous day
A211: As per the tool,the trader should take BUY position just above Pivot and keep the stop loss of pivot point and the first target would be Resistance 1(R1)
A212: If R1 is crossed then R2 becomes the next target with stop loss of at R1
A213: Similarly if price goes below pivot point then the trader should sell and keep a stop loss of pivot point and the first target would be S1
A214: If S1 is crossed then S2 becomes the next target with stop loss of at S1
A216: Disclaimer:
A217: This document has been prepared by the Retail Research Desk of Asit C Mehta
A218: Investment Intermediates Ltd. and is meant for use of the recipient only
A219: and is not for circulation. This document is not to be reported or
A220: copied or made available to others. It should not be considered to be
... 5 more rows

Sheet Cash Intra
M5: Back to Main Page
A6: FOR INTRA DAY TRADING | K6: =Main!B10 -> 2024-08-09
A8: Sr.no | C8: CLOSE RATE | D8: Pivot Point | E8: Supports | H8: Resistances
E9: S1 | F9: S2 | G9: S3 | H9: R1 | I9: R2 | J9: R3 | K9: HIGH | L9: LOW | M9: Total Trade Quanity in Lakhs
A10: 1 | B10: Nifty 50 | C10: 24117.00 | D10: 24179.07 | E10: 24017.63 | F10: 23918.27 | G10: 23756.83 | H10: 24278.43 | I10: 24439.87 | J10: 24539.23 | K10: 24340.50 | L10: 24079.70
A11: 2 | B11: Nifty Bank | C11: 50156.70 | D11: 50142.35 | E11: 49843.95 | F11: 49531.20 | G11: 49232.80 | H11: 50455.10 | I11: 50753.50 | J11: 51066.25 | K11: 50440.75 | L11: 49829.60
A12: 3 | B12: Nifty CPSE | C12: 7315.05 | D12: 7360.58 | E12: 7250.62 | F12: 7186.18 | G12: 7076.22 | H12: 7425.02 | I12: 7534.98 | J12: 7599.42 | K12: 7470.55 | L12: 7296.15
A13: 4 | B13: Nifty Infra | C13: 9077.50 | D13: 9111.00 | E13: 9028.50 | F13: 8979.50 | G13: 8897.00 | H13: 9160.00 | I13: 9242.50 | J13: 9291.50 | K13: 9193.50 | L13: 9062.00
A14: 5 | B14: Nifty IT | C14: 38448.30 | D14: 38639.40 | E14: 38180.05 | F14: 37911.80 | G14: 37452.45 | H14: 38907.65 | I14: 39367.00 | J14: 39635.25 | K14: 39098.75 | L14: 38371.15
A15: 6 | B15: Nifty PSE | C15: 11199.25 | D15: 11259.23 | E15: 11115.07 | F15: 11030.88 | G15: 10886.72 | H15: 11343.42 | I15: 11487.58 | J15: 11571.77 | K15: 11403.40 | L15: 11175.05
A16: 7 | B16: Nifty Midcap 50 | C16: 16052.60 | D16: 16080.02 | E16: 15980.63 | F16: 15908.67 | G16: 15809.28 | H16: 16151.98 | I16: 16251.37 | J16: 16323.33 | K16: 16179.40 | L16: 16008.05
A17: 8 | B17: ABB | C17: 7942.3 | D17: 7957.43 | E17: 7760.87 | F17: 7579.43 | G17: 7382.87 | H17: 8138.87 | I17: 8335.43 | J17: 8516.87 | K17: 8154 | L17: 7776 | M17: 6.30662
A18: 9 | B18: ACC | C18: 2357.2 | D18: 2367.40 | E18: 2339.80 | F18: 2322.40 | G18: 2294.80 | H18: 2384.80 | I18: 2412.40 | J18: 2429.80 | K18: 2395 | L18: 2350 | M18: 2.26629
A19: 10 | B19: APLAPOLLO | C19: 1435.45 | D19: 1425.82 | E19: 1406.63 | F19: 1377.82 | G19: 1358.63 | H19: 1454.63 | I19: 1473.82 | J19: 1502.63 | K19: 1445 | L19: 1397 | M19: 4.40998
A20: 11 | B20: AUBANK | C20: 626.1 | D20: 628.65 | E20: 622.00 | F20: 617.90 | G20: 611.25 | H20: 632.75 | I20: 639.40 | J20: 643.50 | K20: 635.3 | L20: 624.55 | M20: 13.74881
A21: 12 | B21: ADANIENSOL | C21: 1101.45 | D21: 1110.83 | E21: 1086.67 | F21: 1071.88 | G21: 1047.72 | H21: 1125.62 | I21: 1149.78 | J21: 1164.57 | K21: 1135 | L21: 1096.05 | M21: 27.60169
A22: 13 | B22: ADANIENT | C22: 3167.55 | D22: 3188.92 | E22: 3135.18 | F22: 3102.82 | G22: 3049.08 | H22: 3221.28 | I22: 3275.02 | J22: 3307.38 | K22: 3242.65 | L22: 3156.55 | M22: 21.39376
A23: 14 | B23: ADANIGREEN | C23: 1778.15 | D23: 1782.43 | E23: 1762.77 | F23: 1747.38 | G23: 1727.72 | H23: 1797.82 | I23: 1817.48 | J23: 1832.87 | K23: 1802.1 | L23: 1767.05 | M23: 5.39305
A24: 15 | B24: ADANIPORTS | C24: 1519 | D24: 1529.60 | E24: 1503.20 | F24: 1487.40 | G24: 1461.00 | H24: 1545.40 | I24: 1571.80 | J24: 1587.60 | K24: 1556 | L24: 1513.8 | M24: 24.68123
A25: 16 | B25: ADANIPOWER | C25: 691.55 | D25: 692.30 | E25: 684.60 | F25: 677.65 | G25: 669.95 | H25: 699.25 | I25: 706.95 | J25: 713.90 | K25: 700 | L25: 685.35 | M25: 156.91389
A26: 17 | B26: ATGL | C26: 875 | D26: 878.73 | E26: 869.47 | F26: 863.93 | G26: 854.67 | H26: 884.27 | I26: 893.53 | J26: 899.07 | K26: 888 | L26: 873.2 | M26: 30.023
A27: 18 | B27: AWL | C27: 387.5 | D27: 391.17 | E27: 378.38 | F27: 369.27 | G27: 356.48 | H27: 400.28 | I27: 413.07 | J27: 422.18 | K27: 403.95 | L27: 382.05 | M27: 146.83067
A28: 19 | B28: ABCAPITAL | C28: 210.59 | D28: 211.11 | E28: 208.08 | F28: 205.56 | G28: 202.53 | H28: 213.63 | I28: 216.66 | J28: 219.18 | K28: 214.15 | L28: 208.6 | M28: 35.76123
A29: 20 | B29: ABFRL | C29: 316 | D29: 318.05 | E29: 312.10 | F29: 308.20 | G29: 302.25 | H29: 321.95 | I29: 327.90 | J29: 331.80 | K29: 324 | L29: 314.15 | M29: 48.86544
A30: 21 | B30: ALKEM | C30: 5687.05 | D30: 5642.35 | E30: 5538.10 | F30: 5389.15 | G30: 5284.90 | H30: 5791.30 | I30: 5895.55 | J30: 6044.50 | K30: 5746.6 | L30: 5493.4 | M30: 6.87558
A31: 22 | B31: AMBUJACEM | C31: 638.5 | D31: 640.28 | E31: 635.32 | F31: 632.13 | G31: 627.17 | H31: 643.47 | I31: 648.43 | J31: 651.62 | K31: 645.25 | L31: 637.1 | M31: 11.21594
A32: 23 | B32: APOLLOHOSP | C32: 6541.9 | D32: 6595.42 | E32: 6446.48 | F32: 6351.07 | G32: 6202.13 | H32: 6690.83 | I32: 6839.77 | J32: 6935.18 | K32: 6744.35 | L32: 6500 | M32: 5.09454
A33: 24 | B33: APOLLOTYRE | C33: 511.5 | D33: 510.90 | E33: 505.60 | F33: 499.70 | G33: 494.40 | H33: 516.80 | I33: 522.10 | J33: 528.00 | K33: 516.2 | L33: 505 | M33: 60.58675
A34: 25 | B34: ASHOKLEY | C34: 246.3 | D34: 246.98 | E34: 244.47 | F34: 242.63 | G34: 240.12 | H34: 248.82 | I34: 251.33 | J34: 253.17 | K34: 249.5 | L34: 245.15 | M34: 106.75857
A35: 26 | B35: ASIANPAINT | C35: 3005.4 | D35: 3028.50 | E35: 2967.30 | F35: 2929.20 | G35: 2868.00 | H35: 3066.60 | I35: 3127.80 | J35: 3165.90 | K35: 3089.7 | L35: 2990.4 | M35: 12.80109
A36: 27 | B36: ASTRAL | C36: 2082.2 | D36: 2096.25 | E36: 2060.95 | F36: 2039.70 | G36: 2004.40 | H36: 2117.50 | I36: 2152.80 | J36: 2174.05 | K36: 2131.55 | L36: 2075 | M36: 1.83709
A37: 28 | B37: AUROPHARMA | C37: 1479.3 | D37: 1471.75 | E37: 1455.55 | F37: 1431.80 | G37: 1415.60 | H37: 1495.50 | I37: 1511.70 | J37: 1535.45 | K37: 1487.95 | L37: 1448 | M37: 19.77114
A38: 29 | B38: DMART | C38: 4980.1 | D38: 4995.33 | E38: 4926.77 | F38: 4873.43 | G38: 4804.87 | H38: 5048.67 | I38: 5117.23 | J38: 5170.57 | K38: 5063.9 | L38: 4942 | M38: 3.483
A39: 30 | B39: AXISBANK | C39: 1138.15 | D39: 1135.65 | E39: 1128.50 | F39: 1118.85 | G39: 1111.70 | H39: 1145.30 | I39: 1152.45 | J39: 1162.10 | K39: 1142.8 | L39: 1126 | M39: 79.03428
A40: 31 | B40: BAJAJ-AUTO | C40: 9641.3 | D40: 9676.38 | E40: 9575.07 | F40: 9508.83 | G40: 9407.52 | H40: 9742.62 | I40: 9843.93 | J40: 9910.17 | K40: 9777.7 | L40: 9610.15 | M40: 3.65016
A41: 32 | B41: BAJFINANCE | C41: 6582.2 | D41: 6610.53 | E41: 6543.02 | F41: 6503.83 | G41: 6436.32 | H41: 6649.72 | I41: 6717.23 | J41: 6756.42 | K41: 6678.05 | L41: 6571.35 | M41: 6.90389
A42: 33 | B42: BAJAJFINSV | C42: 1540.05 | D42: 1549.68 | E42: 1522.92 | F42: 1505.78 | G42: 1479.02 | H42: 1566.82 | I42: 1593.58 | J42: 1610.72 | K42: 1576.45 | L42: 1532.55 | M42: 16.83534
A43: 34 | B43: BAJAJHLDNG | C43: 9401.35 | D43: 9412.98 | E43: 9305.97 | F43: 9210.58 | G43: 9103.57 | H43: 9508.37 | I43: 9615.38 | J43: 9710.77 | K43: 9520 | L43: 9317.6 | M43: 0.20264
A44: 35 | B44: BALKRISIND | C44: 3128.25 | D44: 3147.42 | E44: 3084.83 | F44: 3041.42 | G44: 2978.83 | H44: 3190.83 | I44: 3253.42 | J44: 3296.83 | K44: 3210 | L44: 3104 | M44: 3.28216
A45: 36 | B45: BANDHANBNK | C45: 199.18 | D45: 200.42 | E45: 196.96 | F45: 194.73 | G45: 191.27 | H45: 202.65 | I45: 206.11 | J45: 208.34 | K45: 203.89 | L45: 198.2 | M45: 67.62655
A46: 37 | B46: BANKBARODA | C46: 241.35 | D46: 242.20 | E46: 239.65 | F46: 237.95 | G46: 235.40 | H46: 243.90 | I46: 246.45 | J46: 248.15 | K46: 244.75 | L46: 240.5 | M46: 107.38946
A47: 38 | B47: BANKINDIA | C47: 119.38 | D47: 119.34 | E47: 117.29 | F47: 115.19 | G47: 113.14 | H47: 121.44 | I47: 123.49 | J47: 125.59 | K47: 121.4 | L47: 117.25 | M47: 107.34357
A48: 39 | B48: BATAINDIA | C48: 1455.7 | D48: 1461.95 | E48: 1444.00 | F48: 1432.30 | G48: 1414.35 | H48: 1473.65 | I48: 1491.60 | J48: 1503.30 | K48: 1479.9 | L48: 1450.25 | M48: 2.70031
A49: 40 | B49: BERGEPAINT | C49: 518.15 | D49: 522.65 | E49: 512.50 | F49: 506.85 | G49: 496.70 | H49: 528.30 | I49: 538.45 | J49: 544.10 | K49: 532.8 | L49: 517 | M49: 13.14999
A50: 41 | B50: BDL | C50: 1414.25 | D50: 1411.42 | E50: 1378.83 | F50: 1343.42 | G50: 1310.83 | H50: 1446.83 | I50: 1479.42 | J50: 1514.83 | K50: 1444 | L50: 1376 | M50: 14.58258
A51: 42 | B51: BEL | C51: 298.25 | D51: 299.37 | E51: 296.03 | F51: 293.82 | G51: 290.48 | H51: 301.58 | I51: 304.92 | J51: 307.13 | K51: 302.7 | L51: 297.15 | M51: 219.63656
A52: 43 | B52: BHARATFORG | C52: 1605.45 | D52: 1594.87 | E52: 1546.73 | F52: 1488.02 | G52: 1439.88 | H52: 1653.58 | I52: 1701.72 | J52: 1760.43 | K52: 1643 | L52: 1536.15 | M52: 41.08498
A53: 44 | B53: BHEL | C53: 297.85 | D53: 299.95 | E53: 295.00 | F53: 292.15 | G53: 287.20 | H53: 302.80 | I53: 307.75 | J53: 310.60 | K53: 304.9 | L53: 297.1 | M53: 116.40751
A54: 45 | B54: BPCL | C54: 338.3 | D54: 338.35 | E54: 332.75 | F54: 327.20 | G54: 321.60 | H54: 343.90 | I54: 349.50 | J54: 355.05 | K54: 343.95 | L54: 332.8 | M54: 153.78854
A55: 46 | B55: BHARTIARTL | C55: 1451.8 | D55: 1449.43 | E55: 1432.37 | F55: 1412.93 | G55: 1395.87 | H55: 1468.87 | I55: 1485.93 | J55: 1505.37 | K55: 1466.5 | L55: 1430 | M55: 59.8636
A56: 47 | B56: BIOCON | C56: 339.15 | D56: 341.85 | E56: 334.15 | F56: 329.15 | G56: 321.45 | H56: 346.85 | I56: 354.55 | J56: 359.55 | K56: 349.55 | L56: 336.85 | M56: 40.03614
A57: 48 | B57: BOSCHLTD | C57: 31835.65 | D57: 31991.47 | E57: 31463.18 | F57: 31090.72 | G57: 30562.43 | H57: 32363.93 | I57: 32892.22 | J57: 33264.68 | K57: 32519.75 | L57: 31619 | M57: 0.449
A58: 49 | B58: BRITANNIA | C58: 5744.65 | D58: 5777.20 | E58: 5692.45 | F58: 5640.25 | G58: 5555.50 | H58: 5829.40 | I58: 5914.15 | J58: 5966.35 | K58: 5861.95 | L58: 5725 | M58: 2.71628
A59: 50 | B59: CGPOWER | C59: 678.65 | D59: 680.62 | E59: 671.48 | F59: 664.32 | G59: 655.18 | H59: 687.78 | I59: 696.92 | J59: 704.08 | K59: 689.75 | L59: 673.45 | M59: 25.73333
A60: 51 | B60: CANBK | C60: 107.15 | D60: 107.40 | E60: 106.25 | F60: 105.34 | G60: 104.19 | H60: 108.31 | I60: 109.46 | J60: 110.37 | K60: 108.56 | L60: 106.5 | M60: 173.99682
A61: 52 | B61: CHOLAFIN | C61: 1350.25 | D61: 1360.92 | E61: 1335.38 | F61: 1320.52 | G61: 1294.98 | H61: 1375.78 | I61: 1401.32 | J61: 1416.18 | K61: 1386.45 | L61: 1346.05 | M61: 4.51732
A62: 53 | B62: CIPLA | C62: 1569.95 | D62: 1568.20 | E62: 1546.75 | F62: 1523.55 | G62: 1502.10 | H62: 1591.40 | I62: 1612.85 | J62: 1636.05 | K62: 1589.65 | L62: 1545 | M62: 35.41556
A63: 54 | B63: COALINDIA | C63: 523.45 | D63: 526.57 | E63: 518.13 | F63: 512.82 | G63: 504.38 | H63: 531.88 | I63: 540.32 | J63: 545.63 | K63: 535 | L63: 521.25 | M63: 136.24148
A64: 55 | B64: COFORGE | C64: 5845.1 | D64: 5898.43 | E64: 5778.17 | F64: 5711.23 | G64: 5590.97 | H64: 5965.37 | I64: 6085.63 | J64: 6152.57 | K64: 6018.7 | L64: 5831.5 | M64: 2.68749
A65: 56 | B65: COLPAL | C65: 3467.25 | D65: 3465.07 | E65: 3444.28 | F65: 3421.32 | G65: 3400.53 | H65: 3488.03 | I65: 3508.82 | J65: 3531.78 | K65: 3485.85 | L65: 3442.1 | M65: 4.50828
A66: 57 | B66: CONCOR | C66: 997.85 | D66: 1001.52 | E66: 989.33 | F66: 980.82 | G66: 968.63 | H66: 1010.03 | I66: 1022.22 | J66: 1030.73 | K66: 1013.7 | L66: 993 | M66: 13.2961
A67: 58 | B67: COROMANDEL | C67: 1640.8 | D67: 1647.68 | E67: 1601.12 | F67: 1561.43 | G67: 1514.87 | H67: 1687.37 | I67: 1733.93 | J67: 1773.62 | K67: 1694.25 | L67: 1608 | M67: 13.46743
A68: 59 | B68: CROMPTON | C68: 433.55 | D68: 433.95 | E68: 427.65 | F68: 421.75 | G68: 415.45 | H68: 439.85 | I68: 446.15 | J68: 452.05 | K68: 440.25 | L68: 428.05 | M68: 21.03583
A69: 60 | B69: CUMMINSIND | C69: 3728.5 | D69: 3719.67 | E69: 3671.83 | F69: 3615.17 | G69: 3567.33 | H69: 3776.33 | I69: 3824.17 | J69: 3880.83 | K69: 3767.5 | L69: 3663 | M69: 9.93412
A70: 61 | B70: DLF | C70: 832.6 | D70: 837.87 | E70: 825.23 | F70: 817.87 | G70: 805.23 | H70: 845.23 | I70: 857.87 | J70: 865.23 | K70: 850.5 | L70: 830.5 | M70: 23.65759
A71: 62 | B71: DABUR | C71: 637.45 | D71: 637.97 | E71: 634.13 | F71: 630.82 | G71: 626.98 | H71: 641.28 | I71: 645.12 | J71: 648.43 | K71: 641.8 | L71: 634.65 | M71: 15.28269
A72: 63 | B72: DALBHARAT | C72: 1770.05 | D72: 1760.87 | E72: 1744.18 | F72: 1718.32 | G72: 1701.63 | H72: 1786.73 | I72: 1803.42 | J72: 1829.28 | K72: 1777.55 | L72: 1735 | M72: 8.90191
A73: 64 | B73: DEEPAKNTR | C73: 3055.3 | D73: 3076.28 | E73: 3019.07 | F73: 2982.83 | G73: 2925.62 | H73: 3112.52 | I73: 3169.73 | J73: 3205.97 | K73: 3133.5 | L73: 3040.05 | M73: 2.52128
A74: 65 | B74: DELHIVERY | C74: 408.65 | D74: 410.23 | E74: 405.72 | F74: 402.78 | G74: 398.27 | H74: 413.17 | I74: 417.68 | J74: 420.62 | K74: 414.75 | L74: 407.3 | M74: 44.45881
A75: 66 | B75: DEVYANI | C75: 175 | D75: 175.18 | E75: 173.22 | F75: 171.43 | G75: 169.47 | H75: 176.97 | I75: 178.93 | J75: 180.72 | K75: 177.15 | L75: 173.4 | M75: 17.99742
A76: 67 | B76: DIVISLAB | C76: 4834.5 | D76: 4894.12 | E76: 4763.38 | F76: 4692.27 | G76: 4561.53 | H76: 4965.23 | I76: 5095.97 | J76: 5167.08 | K76: 5024.85 | L76: 4823 | M76: 7.22958
A77: 68 | B77: DIXON | C77: 11453.75 | D77: 11536.28 | E77: 11328.57 | F77: 11203.38 | G77: 10995.67 | H77: 11661.47 | I77: 11869.18 | J77: 11994.37 | K77: 11744 | L77: 11411.1 | M77: 2.87
A78: 69 | B78: LALPATHLAB | C78: 3186.35 | D78: 3205.92 | E78: 3132.88 | F78: 3079.42 | G78: 3006.38 | H78: 3259.38 | I78: 3332.42 | J78: 3385.88 | K78: 3278.95 | L78: 3152.45 | M78: 8.69466
A79: 70 | B79: DRREDDY | C79: 6938.3 | D79: 6962.58 | E79: 6890.17 | F79: 6842.03 | G79: 6769.62 | H79: 7010.72 | I79: 7083.13 | J79: 7131.27 | K79: 7035 | L79: 6914.45 | M79: 5.41168
A80: 71 | B80: EICHERMOT | C80: 4576.9 | D80: 4588.95 | E80: 4535.95 | F80: 4495.00 | G80: 4442.00 | H80: 4629.90 | I80: 4682.90 | J80: 4723.85 | K80: 4641.95 | L80: 4548 | M80: 9.79435
A81: 72 | B81: ESCORTS | C81: 3689.5 | D81: 3697.42 | E81: 3662.08 | F81: 3634.67 | G81: 3599.33 | H81: 3724.83 | I81: 3760.17 | J81: 3787.58 | K81: 3732.75 | L81: 3670 | M81: 2.41999
A82: 73 | B82: NYKAA | C82: 189.78 | D82: 190.76 | E82: 186.83 | F82: 183.87 | G82: 179.94 | H82: 193.72 | I82: 197.65 | J82: 200.61 | K82: 194.7 | L82: 187.81 | M82: 64.20931
A83: 74 | B83: FEDERALBNK | C83: 193.78 | D83: 193.77 | E83: 192.28 | F83: 190.77 | G83: 189.28 | H83: 195.28 | I83: 196.77 | J83: 198.28 | K83: 195.27 | L83: 192.27 | M83: 56.30502
A84: 75 | B84: FACT | C84: 959.45 | D84: 966.82 | E84: 947.63 | F84: 935.82 | G84: 916.63 | H84: 978.63 | I84: 997.82 | J84: 1009.63 | K84: 986 | L84: 955 | M84: 2.93169
A85: 76 | B85: FORTIS | C85: 489.15 | D85: 486.73 | E85: 482.97 | F85: 476.78 | G85: 473.02 | H85: 492.92 | I85: 496.68 | J85: 502.87 | K85: 490.5 | L85: 480.55 | M85: 8.43964
A86: 77 | B86: GAIL | C86: 227.31 | D86: 228.74 | E86: 225.24 | F86: 223.18 | G86: 219.68 | H86: 230.80 | I86: 234.30 | J86: 236.36 | K86: 232.23 | L86: 226.67 | M86: 136.56192
A87: 78 | B87: GLAND | C87: 2027.55 | D87: 2018.15 | E87: 1986.40 | F87: 1945.25 | G87: 1913.50 | H87: 2059.30 | I87: 2091.05 | J87: 2132.20 | K87: 2049.9 | L87: 1977 | M87: 3.84599
A88: 79 | B88: GODREJCP | C88: 1463.9 | D88: 1466.97 | E88: 1428.98 | F88: 1394.07 | G88: 1356.08 | H88: 1501.88 | I88: 1539.87 | J88: 1574.78 | K88: 1504.95 | L88: 1432.05 | M88: 27.86418
A89: 80 | B89: GODREJPROP | C89: 2876.55 | D89: 2905.55 | E89: 2841.45 | F89: 2806.35 | G89: 2742.25 | H89: 2940.65 | I89: 3004.75 | J89: 3039.85 | K89: 2969.65 | L89: 2870.45 | M89: 5.13992
A90: 81 | B90: GRASIM | C90: 2544.65 | D90: 2569.85 | E90: 2505.90 | F90: 2467.15 | G90: 2403.20 | H90: 2608.60 | I90: 2672.55 | J90: 2711.30 | K90: 2633.8 | L90: 2531.1 | M90: 11.99236
A91: 82 | B91: FLUOROCHEM | C91: 3391.1 | D91: 3382.40 | E91: 3313.70 | F91: 3236.30 | G91: 3167.60 | H91: 3459.80 | I91: 3528.50 | J91: 3605.90 | K91: 3451.1 | L91: 3305 | M91: 1.09543
A92: 83 | B92: GUJGASLTD | C92: 621.65 | D92: 627.22 | E92: 614.53 | F92: 607.42 | G92: 594.73 | H92: 634.33 | I92: 647.02 | J92: 654.13 | K92: 639.9 | L92: 620.1 | M92: 4.8811
A93: 84 | B93: HCLTECH | C93: 1557.85 | D93: 1571.47 | E93: 1540.93 | F93: 1524.02 | G93: 1493.48 | H93: 1588.38 | I93: 1618.92 | J93: 1635.83 | K93: 1602 | L93: 1554.55 | M93: 23.73805
A94: 85 | B94: HDFCAMC | C94: 4108.75 | D94: 4114.67 | E94: 4049.48 | F94: 3990.22 | G94: 3925.03 | H94: 4173.93 | I94: 4239.12 | J94: 4298.38 | K94: 4179.85 | L94: 4055.4 | M94: 3.8641
A95: 86 | B95: HDFCBANK | C95: 1642.7 | D95: 1638.42 | E95: 1623.53 | F95: 1604.37 | G95: 1589.48 | H95: 1657.58 | I95: 1672.47 | J95: 1691.63 | K95: 1653.3 | L95: 1619.25 | M95: 169.88475
A96: 87 | B96: HDFCLIFE | C96: 710.35 | D96: 704.42 | E96: 695.63 | F96: 680.92 | G96: 672.13 | H96: 719.13 | I96: 727.92 | J96: 742.63 | K96: 713.2 | L96: 689.7 | M96: 59.53315
A97: 88 | B97: HAVELLS | C97: 1785.55 | D97: 1800.08 | E97: 1767.27 | F97: 1748.98 | G97: 1716.17 | H97: 1818.37 | I97: 1851.18 | J97: 1869.47 | K97: 1832.9 | L97: 1781.8 | M97: 8.11391
A98: 89 | B98: HEROMOTOCO | C98: 5158.9 | D98: 5185.93 | E98: 5119.87 | F98: 5080.83 | G98: 5014.77 | H98: 5224.97 | I98: 5291.03 | J98: 5330.07 | K98: 5252 | L98: 5146.9 | M98: 2.43559
A99: 90 | B99: HINDALCO | C99: 614.05 | D99: 619.35 | E99: 607.70 | F99: 601.35 | G99: 589.70 | H99: 625.70 | I99: 637.35 | J99: 643.70 | K99: 631 | L99: 613 | M99: 53.96272
A100: 91 | B100: HAL | C100: 4667.85 | D100: 4695.93 | E100: 4631.92 | F100: 4595.98 | G100: 4531.97 | H100: 4731.87 | I100: 4795.88 | J100: 4831.82 | K100: 4759.95 | L100: 4660 | M100: 13.01394
A101: 92 | B101: HINDPETRO | C101: 389.15 | D101: 390.47 | E101: 381.93 | F101: 374.72 | G101: 366.18 | H101: 397.68 | I101: 406.22 | J101: 413.43 | K101: 399 | L101: 383.25 | M101: 147.23158
A102: 93 | B102: HINDUNILVR | C102: 2733.2 | D102: 2737.62 | E102: 2715.98 | F102: 2698.77 | G102: 2677.13 | H102: 2754.83 | I102: 2776.47 | J102: 2793.68 | K102: 2759.25 | L102: 2720.4 | M102: 14.64161
A103: 94 | B103: ICICIBANK | C103: 1164.6 | D103: 1165.97 | E103: 1157.53 | F103: 1150.47 | G103: 1142.03 | H103: 1173.03 | I103: 1181.47 | J103: 1188.53 | K103: 1174.4 | L103: 1158.9 | M103: 108.06438
A104: 95 | B104: ICICIGI | C104: 1970 | D104: 1962.65 | E104: 1943.35 | F104: 1916.70 | G104: 1897.40 | H104: 1989.30 | I104: 2008.60 | J104: 2035.25 | K104: 1981.95 | L104: 1936 | M104: 9.93016
A105: 96 | B105: ICICIPRULI | C105: 738.65 | D105: 733.23 | E105: 722.47 | F105: 706.28 | G105: 695.52 | H105: 749.42 | I105: 760.18 | J105: 776.37 | K105: 744 | L105: 717.05 | M105: 19.31611
A106: 97 | B106: IDFCFIRSTB | C106: 72.03 | D106: 72.30 | E106: 71.64 | F106: 71.26 | G106: 70.60 | H106: 72.68 | I106: 73.34 | J106: 73.72 | K106: 72.95 | L106: 71.91 | M106: 157.57882
A107: 98 | B107: ITC | C107: 494.75 | D107: 495.08 | E107: 492.17 | F107: 489.58 | G107: 486.67 | H107: 497.67 | I107: 500.58 | J107: 503.17 | K107: 498 | L107: 492.5 | M107: 205.58134
A108: 99 | B108: INDIANB | C108: 555.7 | D108: 559.58 | E108: 549.17 | F108: 542.63 | G108: 532.22 | H108: 566.12 | I108: 576.53 | J108: 583.07 | K108: 570 | L108: 553.05 | M108: 8.23836
A109: 100 | B109: INDHOTEL | C109: 614.2 | D109: 615.75 | E109: 609.50 | F109: 604.80 | G109: 598.55 | H109: 620.45 | I109: 626.70 | J109: 631.40 | K109: 622 | L109: 611.05 | M109: 18.45858
A110: 101 | B110: IOC | C110: 170.23 | D110: 170.52 | E110: 168.91 | F110: 167.60 | G110: 165.99 | H110: 171.83 | I110: 173.44 | J110: 174.75 | K110: 172.12 | L110: 169.2 | M110: 149.32165
A111: 102 | B111: IRCTC | C111: 925.8 | D111: 929.75 | E111: 919.60 | F111: 913.40 | G111: 903.25 | H111: 935.95 | I111: 946.10 | J111: 952.30 | K111: 939.9 | L111: 923.55 | M111: 11.50268
A112: 103 | B112: IRFC | C112: 180.92 | D112: 181.82 | E112: 179.13 | F112: 177.35 | G112: 174.66 | H112: 183.60 | I112: 186.29 | J112: 188.07 | K112: 184.5 | L112: 180.03 | M112: 380.2194
A113: 104 | B113: IGL | C113: 541.95 | D113: 543.00 | E113: 539.05 | F113: 536.15 | G113: 532.20 | H113: 545.90 | I113: 549.85 | J113: 552.75 | K113: 546.95 | L113: 540.1 | M113: 10.93035
A114: 105 | B114: INDUSTOWER | C114: 417 | D114: 419.80 | E114: 413.55 | F114: 410.10 | G114: 403.85 | H114: 423.25 | I114: 429.50 | J114: 432.95 | K114: 426.05 | L114: 416.35 | M114: 140.07899
A115: 106 | B115: INDUSINDBK | C115: 1347.3 | D115: 1345.70 | E115: 1335.60 | F115: 1323.90 | G115: 1313.80 | H115: 1357.40 | I115: 1367.50 | J115: 1379.20 | K115: 1355.8 | L115: 1334 | M115: 36.69342
A116: 107 | B116: NAUKRI | C116: 6912.6 | D116: 6951.90 | E116: 6852.75 | F116: 6792.90 | G116: 6693.75 | H116: 7011.75 | I116: 7110.90 | J116: 7170.75 | K116: 7051.05 | L116: 6892.05 | M116: 1.09028
A117: 108 | B117: INFY | C117: 1743.15 | D117: 1750.07 | E117: 1720.18 | F117: 1697.22 | G117: 1667.33 | H117: 1773.03 | I117: 1802.92 | J117: 1825.88 | K117: 1779.95 | L117: 1727.1 | M117: 62.2791
A118: 109 | B118: INDIGO | C118: 4256.95 | D118: 4277.65 | E118: 4220.30 | F118: 4183.65 | G118: 4126.30 | H118: 4314.30 | I118: 4371.65 | J118: 4408.30 | K118: 4335 | L118: 4241 | M118: 3.74911
A119: 110 | B119: IPCALAB | C119: 1361.35 | D119: 1358.20 | E119: 1341.85 | F119: 1322.35 | G119: 1306.00 | H119: 1377.70 | I119: 1394.05 | J119: 1413.55 | K119: 1374.55 | L119: 1338.7 | M119: 7.7376
A120: 111 | B120: JSWENERGY | C120: 699.45 | D120: 699.92 | E120: 681.83 | F120: 664.22 | G120: 646.13 | H120: 717.53 | I120: 735.62 | J120: 753.23 | K120: 718 | L120: 682.3 | M120: 28.22564
A121: 112 | B121: JSWSTEEL | C121: 887.55 | D121: 891.30 | E121: 879.65 | F121: 871.75 | G121: 860.10 | H121: 899.20 | I121: 910.85 | J121: 918.75 | K121: 902.95 | L121: 883.4 | M121: 27.96559
A122: 113 | B122: JINDALSTEL | C122: 919.15 | D122: 924.05 | E122: 910.10 | F122: 901.05 | G122: 887.10 | H122: 933.10 | I122: 947.05 | J122: 956.10 | K122: 938 | L122: 915 | M122: 22.04897
A123: 114 | B123: JUBLFOOD | C123: 597.2 | D123: 601.10 | E123: 591.10 | F123: 585.00 | G123: 575.00 | H123: 607.20 | I123: 617.20 | J123: 623.30 | K123: 611.1 | L123: 595 | M123: 20.03421
A124: 115 | B124: KPITTECH | C124: 1708.3 | D124: 1728.10 | E124: 1684.20 | F124: 1660.10 | G124: 1616.20 | H124: 1752.20 | I124: 1796.10 | J124: 1820.20 | K124: 1772 | L124: 1704 | M124: 5.90227
A125: 116 | B125: KOTAKBANK | C125: 1772.75 | D125: 1772.40 | E125: 1763.00 | F125: 1753.25 | G125: 1743.85 | H125: 1782.15 | I125: 1791.55 | J125: 1801.30 | K125: 1781.8 | L125: 1762.65 | M125: 24.72221
A126: 117 | B126: LTF | C126: 165.65 | D126: 166.89 | E126: 163.86 | F126: 162.08 | G126: 159.05 | H126: 168.67 | I126: 171.70 | J126: 173.48 | K126: 169.91 | L126: 165.1 | M126: 39.09508
A127: 118 | B127: LTTS | C127: 4896.35 | D127: 4907.40 | E127: 4853.80 | F127: 4811.25 | G127: 4757.65 | H127: 4949.95 | I127: 5003.55 | J127: 5046.10 | K127: 4961 | L127: 4864.85 | M127: 1.05542
A128: 119 | B128: LICHSGFIN | C128: 640 | D128: 641.58 | E128: 632.42 | F128: 624.83 | G128: 615.67 | H128: 649.17 | I128: 658.33 | J128: 665.92 | K128: 650.75 | L128: 634 | M128: 43.62479
A129: 120 | B129: LTIM | C129: 5338.3 | D129: 5402.05 | E129: 5257.10 | F129: 5175.90 | G129: 5030.95 | H129: 5483.25 | I129: 5628.20 | J129: 5709.40 | K129: 5547 | L129: 5320.85 | M129: 4.96812
A130: 121 | B130: LT | C130: 3553.55 | D130: 3576.58 | E130: 3524.42 | F130: 3495.28 | G130: 3443.12 | H130: 3605.72 | I130: 3657.88 | J130: 3687.02 | K130: 3628.75 | L130: 3547.45 | M130: 20.38088
A131: 122 | B131: LAURUSLABS | C131: 431.75 | D131: 436.07 | E131: 426.13 | F131: 420.52 | G131: 410.58 | H131: 441.68 | I131: 451.62 | J131: 457.23 | K131: 446 | L131: 430.45 | M131: 21.50488
A132: 123 | B132: LICI | C132: 1125.6 | D132: 1130.97 | E132: 1113.53 | F132: 1101.47 | G132: 1084.03 | H132: 1143.03 | I132: 1160.47 | J132: 1172.53 | K132: 1148.4 | L132: 1118.9 | M132: 26.1589
A133: 124 | B133: LUPIN | C133: 2050.8 | D133: 2040.27 | E133: 2013.63 | F133: 1976.47 | G133: 1949.83 | H133: 2077.43 | I133: 2104.07 | J133: 2141.23 | K133: 2066.9 | L133: 2003.1 | M133: 41.73443
A134: 125 | B134: MRF | C134: 140391.55 | D134: 138297.18 | E134: 134094.37 | F134: 127797.18 | G134: 123594.37 | H134: 144594.37 | I134: 148797.18 | J134: 155094.37 | K134: 142500 | L134: 132000 | M134: 0.39876
A135: 126 | B135: LODHA | C135: 1188.1 | D135: 1198.73 | E135: 1169.47 | F135: 1150.83 | G135: 1121.57 | H135: 1217.37 | I135: 1246.63 | J135: 1265.27 | K135: 1228 | L135: 1180.1 | M135: 5.68868
A136: 127 | B136: M&MFIN | C136: 295.9 | D136: 298.23 | E136: 292.27 | F136: 288.63 | G136: 282.67 | H136: 301.87 | I136: 307.83 | J136: 311.47 | K136: 304.2 | L136: 294.6 | M136: 21.49531
A137: 128 | B137: M&M | C137: 2682.95 | D137: 2685.32 | E137: 2654.13 | F137: 2625.32 | G137: 2594.13 | H137: 2714.13 | I137: 2745.32 | J137: 2774.13 | K137: 2716.5 | L137: 2656.5 | M137: 26.73182
A138: 129 | B138: MANKIND | C138: 2072.35 | D138: 2061.43 | E138: 2038.97 | F138: 2005.58 | G138: 1983.12 | H138: 2094.82 | I138: 2117.28 | J138: 2150.67 | K138: 2083.9 | L138: 2028.05 | M138: 7.40605
A139: 130 | B139: MARICO | C139: 652.25 | D139: 651.30 | E139: 643.70 | F139: 635.15 | G139: 627.55 | H139: 659.85 | I139: 667.45 | J139: 676.00 | K139: 658.9 | L139: 642.75 | M139: 29.38101
A140: 131 | B140: MARUTI | C140: 12218.85 | D140: 12254.57 | E140: 12116.43 | F140: 12014.02 | G140: 11875.88 | H140: 12356.98 | I140: 12495.12 | J140: 12597.53 | K140: 12392.7 | L140: 12152.15 | M140: 3.58577
A141: 132 | B141: MFSL | C141: 1106.6 | D141: 1095.63 | E141: 1080.32 | F141: 1054.03 | G141: 1038.72 | H141: 1121.92 | I141: 1137.23 | J141: 1163.52 | K141: 1110.95 | L141: 1069.35 | M141: 8.49512
A142: 133 | B142: MAXHEALTH | C142: 874.95 | D142: 870.60 | E142: 855.50 | F142: 836.05 | G142: 820.95 | H142: 890.05 | I142: 905.15 | J142: 924.60 | K142: 885.7 | L142: 851.15 | M142: 14.90179
A143: 134 | B143: MAZDOCK | C143: 4885.1 | D143: 4893.37 | E143: 4781.73 | F143: 4678.37 | G143: 4566.73 | H143: 4996.73 | I143: 5108.37 | J143: 5211.73 | K143: 5005 | L143: 4790 | M143: 15.85213
A144: 139 | B144: MSUMI | C144: 72 | D144: 71.72 | E144: 71.15 | F144: 70.30 | G144: 69.73 | H144: 72.57 | I144: 73.14 | J144: 73.99 | K144: 72.29 | L144: 70.87 | M144: 48.31601
A145: 140 | B145: MPHASIS | C145: 2645.5 | D145: 2668.88 | E145: 2613.77 | F145: 2582.03 | G145: 2526.92 | H145: 2700.62 | I145: 2755.73 | J145: 2787.47 | K145: 2724 | L145: 2637.15 | M145: 4.37051
A146: 141 | B146: MUTHOOTFIN | C146: 1848.05 | D146: 1846.55 | E146: 1830.00 | F146: 1811.95 | G146: 1795.40 | H146: 1864.60 | I146: 1881.15 | J146: 1899.20 | K146: 1863.1 | L146: 1828.5 | M146: 5.70449
A147: 142 | B147: NHPC | C147: 98.78 | D147: 99.08 | E147: 97.96 | F147: 97.14 | G147: 96.02 | H147: 99.90 | I147: 101.02 | J147: 101.84 | K147: 100.2 | L147: 98.26 | M147: 270.76745
A148: 143 | B148: NMDC | C148: 222.49 | D148: 224.71 | E148: 219.69 | F148: 216.88 | G148: 211.86 | H148: 227.52 | I148: 232.54 | J148: 235.35 | K148: 229.74 | L148: 221.91 | M148: 61.63968
A149: 144 | B149: NTPC | C149: 407.7 | D149: 410.17 | E149: 403.33 | F149: 398.97 | G149: 392.13 | H149: 414.53 | I149: 421.37 | J149: 425.73 | K149: 417 | L149: 405.8 | M149: 164.47385
A150: 145 | B150: NAVINFLUOR | C150: 3549.45 | D150: 3576.90 | E150: 3509.80 | F150: 3470.15 | G150: 3403.05 | H150: 3616.55 | I150: 3683.65 | J150: 3723.30 | K150: 3644 | L150: 3537.25 | M150: 0.94435
A151: 146 | B151: NESTLEIND | C151: 2489.1 | D151: 2497.37 | E151: 2469.73 | F151: 2450.37 | G151: 2422.73 | H151: 2516.73 | I151: 2544.37 | J151: 2563.73 | K151: 2525 | L151: 2478 | M151: 14.25006
A152: 147 | B152: OBEROIRLTY | C152: 1744.6 | D152: 1757.12 | E152: 1728.28 | F152: 1711.97 | G152: 1683.13 | H152: 1773.43 | I152: 1802.27 | J152: 1818.58 | K152: 1785.95 | L152: 1740.8 | M152: 6.60451
A153: 148 | B153: ONGC | C153: 322.7 | D153: 324.47 | E153: 319.93 | F153: 317.17 | G153: 312.63 | H153: 327.23 | I153: 331.77 | J153: 334.53 | K153: 329 | L153: 321.7 | M153: 234.78224
A154: 149 | B154: OIL | C154: 612.85 | D154: 609.53 | E154: 600.57 | F154: 588.28 | G154: 579.32 | H154: 621.82 | I154: 630.78 | J154: 643.07 | K154: 618.5 | L154: 597.25 | M154: 71.45183
A155: 150 | B155: PAYTM | C155: 508.5 | D155: 515.08 | E155: 495.17 | F155: 481.83 | G155: 461.92 | H155: 528.42 | I155: 548.33 | J155: 561.67 | K155: 535 | L155: 501.75 | M155: 104.67494
A156: 151 | B156: POLICYBZR | C156: 1476 | D156: 1480.33 | E156: 1450.67 | F156: 1425.33 | G156: 1395.67 | H156: 1505.67 | I156: 1535.33 | J156: 1560.67 | K156: 1510 | L156: 1455 | M156: 10.06758
A157: 152 | B157: PIIND | C157: 4457.25 | D157: 4466.25 | E157: 4382.50 | F157: 4307.75 | G157: 4224.00 | H157: 4541.00 | I157: 4624.75 | J157: 4699.50 | K157: 4550 | L157: 4391.5 | M157: 4.62552
A158: 153 | B158: PAGEIND | C158: 40734 | D158: 40991.72 | E158: 40008.28 | F158: 39282.57 | G158: 38299.13 | H158: 41717.43 | I158: 42700.87 | J158: 43426.58 | K158: 41975.15 | L158: 40266 | M158: 0.33948
A159: 154 | B159: PATANJALI | C159: 1792.35 | D159: 1793.78 | E159: 1748.57 | F159: 1704.78 | G159: 1659.57 | H159: 1837.57 | I159: 1882.78 | J159: 1926.57 | K159: 1839 | L159: 1750 | M159: 7.70393
A160: 155 | B160: PERSISTENT | C160: 4611.4 | D160: 4636.80 | E160: 4574.60 | F160: 4537.80 | G160: 4475.60 | H160: 4673.60 | I160: 4735.80 | J160: 4772.60 | K160: 4699 | L160: 4600 | M160: 2.93069
A161: 156 | B161: PETRONET | C161: 364 | D161: 364.50 | E161: 361.30 | F161: 358.60 | G161: 355.40 | H161: 367.20 | I161: 370.40 | J161: 373.10 | K161: 367.7 | L161: 361.8 | M161: 35.17242
A162: 157 | B162: PIDILITIND | C162: 3168.3 | D162: 3199.08 | E162: 3119.22 | F162: 3070.13 | G162: 2990.27 | H162: 3248.17 | I162: 3328.03 | J162: 3377.12 | K162: 3278.95 | L162: 3150 | M162: 13.97468
A163: 158 | B163: PEL | C163: 939.95 | D163: 952.33 | E163: 924.92 | F163: 909.88 | G163: 882.47 | H163: 967.37 | I163: 994.78 | J163: 1009.82 | K163: 979.75 | L163: 937.3 | M163: 32.57284
A164: 159 | B164: POLYCAB | C164: 6632.4 | D164: 6651.83 | E164: 6595.67 | F164: 6558.93 | G164: 6502.77 | H164: 6688.57 | I164: 6744.73 | J164: 6781.47 | K164: 6708 | L164: 6615.1 | M164: 2.11234
A165: 160 | B165: POONAWALLA | C165: 368.8 | D165: 365.27 | E165: 353.63 | F165: 338.47 | G165: 326.83 | H165: 380.43 | I165: 392.07 | J165: 407.23 | K165: 376.9 | L165: 350.1 | M165: 76.46376
A166: 161 | B166: PFC | C166: 492.15 | D166: 493.97 | E166: 484.53 | F166: 476.92 | G166: 467.48 | H166: 501.58 | I166: 511.02 | J166: 518.63 | K166: 503.4 | L166: 486.35 | M166: 139.99802
A167: 162 | B167: POWERGRID | C167: 342.65 | D167: 346.30 | E167: 337.60 | F167: 332.55 | G167: 323.85 | H167: 351.35 | I167: 360.05 | J167: 365.10 | K167: 355 | L167: 341.25 | M167: 154.89731
A168: 163 | B168: PRESTIGE | C168: 1669 | D168: 1672.18 | E168: 1645.87 | F168: 1622.73 | G168: 1596.42 | H168: 1695.32 | I168: 1721.63 | J168: 1744.77 | K168: 1698.5 | L168: 1649.05 | M168: 9.55043
A169: 164 | B169: PGHH | C169: 17048.35 | D169: 17178.95 | E169: 16859.90 | F169: 16671.45 | G169: 16352.40 | H169: 17367.40 | I169: 17686.45 | J169: 17874.90 | K169: 17498 | L169: 16990.5 | M169: 0.06705
A170: 165 | B170: PNB | C170: 114.02 | D170: 114.71 | E170: 113.11 | F170: 112.21 | G170: 110.61 | H170: 115.61 | I170: 117.21 | J170: 118.11 | K170: 116.3 | L170: 113.8 | M170: 279.41633
A171: 166 | B171: RECLTD | C171: 583.55 | D171: 586.55 | E171: 578.90 | F171: 574.25 | G171: 566.60 | H171: 591.20 | I171: 598.85 | J171: 603.50 | K171: 594.2 | L171: 581.9 | M171: 72.33983
A172: 167 | B172: RVNL | C172: 538.45 | D172: 550.95 | E172: 518.90 | F172: 499.35 | G172: 467.30 | H172: 570.50 | I172: 602.55 | J172: 622.10 | K172: 583 | L172: 531.4 | M172: 304.89387
A173: 168 | B173: RELIANCE | C173: 2898.25 | D173: 2906.70 | E173: 2883.40 | F173: 2868.55 | G173: 2845.25 | H173: 2921.55 | I173: 2944.85 | J173: 2959.70 | K173: 2930 | L173: 2891.85 | M173: 61.93596
A174: 169 | B174: SBICARD | C174: 715.6 | D174: 713.80 | E174: 710.20 | F174: 704.80 | G174: 701.20 | H174: 719.20 | I174: 722.80 | J174: 728.20 | K174: 717.4 | L174: 708.4 | M174: 7.7752
A175: 170 | B175: SBILIFE | C175: 1706.3 | D175: 1697.17 | E175: 1679.18 | F175: 1652.07 | G175: 1634.08 | H175: 1724.28 | I175: 1742.27 | J175: 1769.38 | K175: 1715.15 | L175: 1670.05 | M175: 12.91138
A176: 171 | B176: SRF | C176: 2537.1 | D176: 2561.03 | E176: 2507.07 | F176: 2477.03 | G176: 2423.07 | H176: 2591.07 | I176: 2645.03 | J176: 2675.07 | K176: 2615 | L176: 2531 | M176: 2.52629
A177: 172 | B177: MOTHERSON | C177: 182.47 | D177: 181.99 | E177: 179.08 | F177: 175.69 | G177: 172.78 | H177: 185.38 | I177: 188.29 | J177: 191.68 | K177: 184.9 | L177: 178.6 | M177: 117.72632
A178: 173 | B178: SHREECEM | C178: 24143.4 | D178: 24406.95 | E178: 23763.90 | F178: 23384.40 | G178: 22741.35 | H178: 24786.45 | I178: 25429.50 | J178: 25809.00 | K178: 25050 | L178: 24027.45 | M178: 2.51869
A179: 174 | B179: SHRIRAMFIN | C179: 2872.2 | D179: 2883.60 | E179: 2847.20 | F179: 2822.20 | G179: 2785.80 | H179: 2908.60 | I179: 2945.00 | J179: 2970.00 | K179: 2920 | L179: 2858.6 | M179: 8.8681
A180: 175 | B180: SIEMENS | C180: 6769 | D180: 6758.75 | E180: 6668.55 | F180: 6568.10 | G180: 6477.90 | H180: 6859.20 | I180: 6949.40 | J180: 7049.85 | K180: 6848.95 | L180: 6658.3 | M180: 4.75189
A181: 176 | B181: SONACOMS | C181: 655.3 | D181: 657.28 | E181: 646.72 | F181: 638.13 | G181: 627.57 | H181: 665.87 | I181: 676.43 | J181: 685.02 | K181: 667.85 | L181: 648.7 | M181: 11.50238
A182: 177 | B182: SBIN | C182: 808.05 | D182: 809.55 | E182: 801.30 | F182: 794.55 | G182: 786.30 | H182: 816.30 | I182: 824.55 | J182: 831.30 | K182: 817.8 | L182: 802.8 | M182: 147.69069
A183: 178 | B183: SAIL | C183: 137.45 | D183: 138.42 | E183: 135.53 | F183: 133.62 | G183: 130.73 | H183: 140.33 | I183: 143.22 | J183: 145.13 | K183: 141.3 | L183: 136.5 | M183: 258.49915
A184: 179 | B184: SUNPHARMA | C184: 1737.05 | D184: 1738.02 | E184: 1727.38 | F184: 1717.72 | G184: 1707.08 | H184: 1747.68 | I184: 1758.32 | J184: 1767.98 | K184: 1748.65 | L184: 1728.35 | M184: 24.80113
A185: 180 | B185: SUNTV | C185: 884.3 | D185: 884.80 | E185: 878.60 | F185: 872.90 | G185: 866.70 | H185: 890.50 | I185: 896.70 | J185: 902.40 | K185: 891 | L185: 879.1 | M185: 3.83813
A186: 181 | B186: SYNGENE | C186: 841.35 | D186: 851.58 | E186: 828.62 | F186: 815.88 | G186: 792.92 | H186: 864.32 | I186: 887.28 | J186: 900.02 | K186: 874.55 | L186: 838.85 | M186: 14.52895
A187: 182 | B187: TVSMOTOR | C187: 2529.05 | D187: 2541.28 | E187: 2491.92 | F187: 2454.78 | G187: 2405.42 | H187: 2578.42 | I187: 2627.78 | J187: 2664.92 | K187: 2590.65 | L187: 2504.15 | M187: 6.08596
A188: 183 | B188: TATACHEM | C188: 1029.9 | D188: 1036.13 | E188: 1021.12 | F188: 1012.33 | G188: 997.32 | H188: 1044.92 | I188: 1059.93 | J188: 1068.72 | K188: 1051.15 | L188: 1027.35 | M188: 7.11931
A189: 184 | B189: TATACOMM | C189: 1854.5 | D189: 1864.87 | E189: 1840.68 | F189: 1826.87 | G189: 1802.68 | H189: 1878.68 | I189: 1902.87 | J189: 1916.68 | K189: 1889.05 | L189: 1851.05 | M189: 2.18275
A190: 185 | B190: TCS | C190: 4172.55 | D190: 4188.18 | E190: 4144.37 | F190: 4116.18 | G190: 4072.37 | H190: 4216.37 | I190: 4260.18 | J190: 4288.37 | K190: 4232 | L190: 4160 | M190: 24.41283
A191: 186 | B191: TATACONSUM | C191: 1178.3 | D191: 1182.43 | E191: 1169.87 | F191: 1161.43 | G191: 1148.87 | H191: 1190.87 | I191: 1203.43 | J191: 1211.87 | K191: 1195 | L191: 1174 | M191: 12.98997
A192: 187 | B192: TATAELXSI | C192: 6819.5 | D192: 6821.17 | E192: 6778.33 | F192: 6737.17 | G192: 6694.33 | H192: 6862.33 | I192: 6905.17 | J192: 6946.33 | K192: 6864 | L192: 6780 | M192: 0.43024
A193: 188 | B193: TATAMTRDVR | C193: 716.45 | D193: 717.78 | E193: 707.12 | F193: 697.78 | G193: 687.12 | H193: 727.12 | I193: 737.78 | J193: 747.12 | K193: 728.45 | L193: 708.45 | M193: 44.58812
A194: 189 | B194: TATAMOTORS | C194: 1041.75 | D194: 1041.72 | E194: 1027.03 | F194: 1012.32 | G194: 997.63 | H194: 1056.43 | I194: 1071.12 | J194: 1085.83 | K194: 1056.4 | L194: 1027 | M194: 195.2979
A195: 190 | B195: TATAPOWER | C195: 417.95 | D195: 422.48 | E195: 412.47 | F195: 406.98 | G195: 396.97 | H195: 427.97 | I195: 437.98 | J195: 443.47 | K195: 432.5 | L195: 417 | M195: 251.48625
A196: 191 | B196: TATASTEEL | C196: 150.28 | D196: 151.24 | E196: 149.04 | F196: 147.80 | G196: 145.60 | H196: 152.48 | I196: 154.68 | J196: 155.92 | K196: 153.44 | L196: 150 | M196: 518.58615
A197: 192 | B197: TECHM | C197: 1466.45 | D197: 1472.20 | E197: 1456.25 | F197: 1446.05 | G197: 1430.10 | H197: 1482.40 | I197: 1498.35 | J197: 1508.55 | K197: 1488.15 | L197: 1462 | M197: 23.33194
A198: 193 | B198: RAMCOCEM | C198: 795 | D198: 802.38 | E198: 784.77 | F198: 774.53 | G198: 756.92 | H198: 812.62 | I198: 830.23 | J198: 840.47 | K198: 820 | L198: 792.15 | M198: 5.55076
A199: 194 | B199: TITAN | C199: 3296.5 | D199: 3313.45 | E199: 3266.95 | F199: 3237.40 | G199: 3190.90 | H199: 3343.00 | I199: 3389.50 | J199: 3419.05 | K199: 3359.95 | L199: 3283.9 | M199: 12.80733
A200: 195 | B200: TORNTPHARM | C200: 3333.4 | D200: 3335.60 | E200: 3298.35 | F200: 3263.30 | G200: 3226.05 | H200: 3370.65 | I200: 3407.90 | J200: 3442.95 | K200: 3372.85 | L200: 3300.55 | M200: 2.89623
A201: 196 | B201: TORNTPOWER | C201: 1747.4 | D201: 1767.65 | E201: 1711.75 | F201: 1676.10 | G201: 1620.20 | H201: 1803.30 | I201: 1859.20 | J201: 1894.85 | K201: 1823.55 | L201: 1732 | M201: 8.24083
A202: 197 | B202: TRENT | C202: 5644.1 | D202: 5620.50 | E202: 5513.60 | F202: 5383.10 | G202: 5276.20 | H202: 5751.00 | I202: 5857.90 | J202: 5988.40 | K202: 5727.4 | L202: 5490 | M202: 11.83241
A203: 198 | B203: TIINDIA | C203: 4007.8 | D203: 4032.90 | E203: 3954.95 | F203: 3902.10 | G203: 3824.15 | H203: 4085.75 | I203: 4163.70 | J203: 4216.55 | K203: 4110.85 | L203: 3980.05 | M203: 1.26117
A204: 199 | B204: UPL | C204: 547.8 | D204: 549.22 | E204: 542.63 | F204: 537.47 | G204: 530.88 | H204: 554.38 | I204: 560.97 | J204: 566.13 | K204: 555.8 | L204: 544.05 | M204: 27.63841
A205: 200 | B205: ULTRACEMCO | C205: 11258 | D205: 11336.98 | E205: 11149.77 | F205: 11041.53 | G205: 10854.32 | H205: 11445.22 | I205: 11632.43 | J205: 11740.67 | K205: 11524.2 | L205: 11228.75 | M205: 2.90349
... 30 more rows

Sheet MidCap Intra
L5: Back To Main Page
A6: FOR INTRA DAY TRADING | K6: =Main!B10 -> 2024-08-09
A9: Sr.no | B9: Scrip | C9: CLOSE RATE | D9: Pivot Point | E9: Supports | H9: Resistances
E10: S1 | F10: S2 | G10: S3 | H10: R1 | I10: R2 | J10: R3 | K10: HIGH | L10: LOW | M10: Total Trade Quanity in Lakhs
A11: 1 | B11: 360ONE | C11: 1030.35 | D11: 1023.45 | E11: 1004.90 | F11: 979.45 | G11: 960.90 | H11: 1048.90 | I11: 1067.45 | J11: 1092.90 | K11: 1042 | L11: 998 | M11: 3.1755
A12: 2 | B12: 3MINDIA | C12: 37122.2 | D12: 37347.80 | E12: 36777.40 | F12: 36432.60 | G12: 35862.20 | H12: 37692.60 | I12: 38263.00 | J12: 38607.80 | K12: 37918.2 | L12: 37003 | M12: 0.02296
A13: 3 | B13: ABB | C13: 7942.3 | D13: 7957.43 | E13: 7760.87 | F13: 7579.43 | G13: 7382.87 | H13: 8138.87 | I13: 8335.43 | J13: 8516.87 | K13: 8154 | L13: 7776 | M13: 6.30662
A14: 4 | B14: ACC | C14: 2357.2 | D14: 2367.40 | E14: 2339.80 | F14: 2322.40 | G14: 2294.80 | H14: 2384.80 | I14: 2412.40 | J14: 2429.80 | K14: 2395 | L14: 2350 | M14: 2.26629
A15: 5 | B15: AIAENG | C15: 4593.3 | D15: 4569.60 | E15: 4523.70 | F15: 4454.10 | G15: 4408.20 | H15: 4639.20 | I15: 4685.10 | J15: 4754.70 | K15: 4615.5 | L15: 4500 | M15: 0.66081
A16: 6 | B16: APLAPOLLO | C16: 1435.45 | D16: 1425.82 | E16: 1406.63 | F16: 1377.82 | G16: 1358.63 | H16: 1454.63 | I16: 1473.82 | J16: 1502.63 | K16: 1445 | L16: 1397 | M16: 4.40998
A17: 7 | B17: AUBANK | C17: 626.1 | D17: 628.65 | E17: 622.00 | F17: 617.90 | G17: 611.25 | H17: 632.75 | I17: 639.40 | J17: 643.50 | K17: 635.3 | L17: 624.55 | M17: 13.74881
A18: 8 | B18: AARTIIND | C18: 747.7 | D18: 752.73 | E18: 739.97 | F18: 732.23 | G18: 719.47 | H18: 760.47 | I18: 773.23 | J18: 780.97 | K18: 765.5 | L18: 745 | M18: 16.61511
A19: 9 | B19: AAVAS | C19: 1648.15 | D19: 1634.15 | E19: 1617.30 | F19: 1586.45 | G19: 1569.60 | H19: 1665.00 | I19: 1681.85 | J19: 1712.70 | K19: 1651 | L19: 1603.3 | M19: 0.83487
A20: 10 | B20: ABBOTINDIA | C20: 27219.7 | D20: 27941.60 | E20: 26382.20 | F20: 25544.70 | G20: 23985.30 | H20: 28779.10 | I20: 30338.50 | J20: 31176.00 | K20: 29501 | L20: 27104.1 | M20: 0.84434
A21: 11 | B21: ACE | C21: 1300.6 | D21: 1305.73 | E21: 1289.87 | F21: 1279.13 | G21: 1263.27 | H21: 1316.47 | I21: 1332.33 | J21: 1343.07 | K21: 1321.6 | L21: 1295 | M21: 1.49002
A22: 12 | B22: ADANIENSOL | C22: 1101.45 | D22: 1110.83 | E22: 1086.67 | F22: 1071.88 | G22: 1047.72 | H22: 1125.62 | I22: 1149.78 | J22: 1164.57 | K22: 1135 | L22: 1096.05 | M22: 27.60169
A23: 13 | B23: ADANIENT | C23: 3167.55 | D23: 3188.92 | E23: 3135.18 | F23: 3102.82 | G23: 3049.08 | H23: 3221.28 | I23: 3275.02 | J23: 3307.38 | K23: 3242.65 | L23: 3156.55 | M23: 21.39376
A24: 14 | B24: ADANIGREEN | C24: 1778.15 | D24: 1782.43 | E24: 1762.77 | F24: 1747.38 | G24: 1727.72 | H24: 1797.82 | I24: 1817.48 | J24: 1832.87 | K24: 1802.1 | L24: 1767.05 | M24: 5.39305
A25: 15 | B25: ADANIPORTS | C25: 1519 | D25: 1529.60 | E25: 1503.20 | F25: 1487.40 | G25: 1461.00 | H25: 1545.40 | I25: 1571.80 | J25: 1587.60 | K25: 1556 | L25: 1513.8 | M25: 24.68123
A26: 16 | B26: ADANIPOWER | C26: 691.55 | D26: 692.30 | E26: 684.60 | F26: 677.65 | G26: 669.95 | H26: 699.25 | I26: 706.95 | J26: 713.90 | K26: 700 | L26: 685.35 | M26: 156.91389
A27: 17 | B27: ATGL | C27: 875 | D27: 878.73 | E27: 869.47 | F27: 863.93 | G27: 854.67 | H27: 884.27 | I27: 893.53 | J27: 899.07 | K27: 888 | L27: 873.2 | M27: 30.023
A28: 18 | B28: AWL | C28: 387.5 | D28: 391.17 | E28: 378.38 | F28: 369.27 | G28: 356.48 | H28: 400.28 | I28: 413.07 | J28: 422.18 | K28: 403.95 | L28: 382.05 | M28: 146.83067
A29: 19 | B29: ABCAPITAL | C29: 210.59 | D29: 211.11 | E29: 208.08 | F29: 205.56 | G29: 202.53 | H29: 213.63 | I29: 216.66 | J29: 219.18 | K29: 214.15 | L29: 208.6 | M29: 35.76123
A30: 20 | B30: ABFRL | C30: 316 | D30: 318.05 | E30: 312.10 | F30: 308.20 | G30: 302.25 | H30: 321.95 | I30: 327.90 | J30: 331.80 | K30: 324 | L30: 314.15 | M30: 48.86544
A31: 21 | B31: AEGISLOG | C31: 730.95 | D31: 730.83 | E31: 722.62 | F31: 714.28 | G31: 706.07 | H31: 739.17 | I31: 747.38 | J31: 755.72 | K31: 739.05 | L31: 722.5 | M31: 3.4428
A32: 22 | B32: AETHER | C32: 873.9 | D32: 873.37 | E32: 864.48 | F32: 855.07 | G32: 846.18 | H32: 882.78 | I32: 891.67 | J32: 901.08 | K32: 882.25 | L32: 863.95 | M32: 0.31176
A33: 23 | B33: AFFLE | C33: 1482.2 | D33: 1488.73 | E33: 1468.47 | F33: 1454.73 | G33: 1434.47 | H33: 1502.47 | I33: 1522.73 | J33: 1536.47 | K33: 1509 | L33: 1475 | M33: 2.88481
A34: 24 | B34: AJANTPHARM | C34: 2961.7 | D34: 2953.92 | E34: 2917.88 | F34: 2874.07 | G34: 2838.03 | H34: 2997.73 | I34: 3033.77 | J34: 3077.58 | K34: 2989.95 | L34: 2910.1 | M34: 3.18391
A35: 25 | B35: APLLTD | C35: 1214 | D35: 1233.98 | E35: 1183.02 | F35: 1152.03 | G35: 1101.07 | H35: 1264.97 | I35: 1315.93 | J35: 1346.92 | K35: 1284.95 | L35: 1203 | M35: 7.24102
A36: 26 | B36: ALKEM | C36: 5687.05 | D36: 5642.35 | E36: 5538.10 | F36: 5389.15 | G36: 5284.90 | H36: 5791.30 | I36: 5895.55 | J36: 6044.50 | K36: 5746.6 | L36: 5493.4 | M36: 6.87558
A37: 27 | B37: ALKYLAMINE | C37: 2087.35 | D37: 2095.37 | E37: 2060.98 | F37: 2034.62 | G37: 2000.23 | H37: 2121.73 | I37: 2156.12 | J37: 2182.48 | K37: 2129.75 | L37: 2069 | M37: 0.37573
A38: 28 | B38: ALLCARGO | C38: 60.41 | D38: 60.88 | E38: 59.83 | F38: 59.24 | G38: 58.19 | H38: 61.47 | I38: 62.52 | J38: 63.11 | K38: 61.94 | L38: 60.3 | M38: 21.15775
A39: 29 | B39: ALOKINDS | C39: 26.07 | D39: 26.33 | E39: 25.75 | F39: 25.44 | G39: 24.86 | H39: 26.64 | I39: 27.22 | J39: 27.53 | K39: 26.9 | L39: 26.01 | M39: 112.43144
A40: 30 | B40: ARE&M | C40: 1498.9 | D40: 1514.88 | E40: 1477.12 | F40: 1455.33 | G40: 1417.57 | H40: 1536.67 | I40: 1574.43 | J40: 1596.22 | K40: 1552.65 | L40: 1493.1 | M40: 6.55882
A41: 31 | B41: AMBER | C41: 4342.6 | D41: 4320.85 | E41: 4269.75 | F41: 4196.90 | G41: 4145.80 | H41: 4393.70 | I41: 4444.80 | J41: 4517.65 | K41: 4371.95 | L41: 4248 | M41: 0.51699
A42: 32 | B42: AMBUJACEM | C42: 638.5 | D42: 640.28 | E42: 635.32 | F42: 632.13 | G42: 627.17 | H42: 643.47 | I42: 648.43 | J42: 651.62 | K42: 645.25 | L42: 637.1 | M42: 11.21594
A43: 33 | B43: ANANDRATHI | C43: 3584.55 | D43: 3589.87 | E43: 3569.73 | F43: 3554.92 | G43: 3534.78 | H43: 3604.68 | I43: 3624.82 | J43: 3639.63 | K43: 3610 | L43: 3575.05 | M43: 0.22194
A44: 34 | B44: ANGELONE | C44: 2150.7 | D44: 2156.92 | E44: 2128.73 | F44: 2106.77 | G44: 2078.58 | H44: 2178.88 | I44: 2207.07 | J44: 2229.03 | K44: 2185.1 | L44: 2134.95 | M44: 4.87068
A45: 35 | B45: ANURAS | C45: 779.15 | D45: 779.72 | E45: 775.03 | F45: 770.92 | G45: 766.23 | H45: 783.83 | I45: 788.52 | J45: 792.63 | K45: 784.4 | L45: 775.6 | M45: 0.7093
A46: 36 | B46: APARINDS | C46: 8288.25 | D46: 8277.40 | E46: 8174.80 | F46: 8061.35 | G46: 7958.75 | H46: 8390.85 | I46: 8493.45 | J46: 8606.90 | K46: 8380 | L46: 8163.95 | M46: 0.93654
A47: 37 | B47: APOLLOHOSP | C47: 6541.9 | D47: 6595.42 | E47: 6446.48 | F47: 6351.07 | G47: 6202.13 | H47: 6690.83 | I47: 6839.77 | J47: 6935.18 | K47: 6744.35 | L47: 6500 | M47: 5.09454
A48: 38 | B48: APOLLOTYRE | C48: 511.5 | D48: 510.90 | E48: 505.60 | F48: 499.70 | G48: 494.40 | H48: 516.80 | I48: 522.10 | J48: 528.00 | K48: 516.2 | L48: 505 | M48: 60.58675
A49: 39 | B49: APTUS | C49: 309.4 | D49: 309.78 | E49: 306.87 | F49: 304.33 | G49: 301.42 | H49: 312.32 | I49: 315.23 | J49: 317.77 | K49: 312.7 | L49: 307.25 | M49: 4.77441
A50: 40 | B50: ACI | C50: 680.15 | D50: 681.18 | E50: 672.97 | F50: 665.78 | G50: 657.57 | H50: 688.37 | I50: 696.58 | J50: 703.77 | K50: 689.4 | L50: 674 | M50: 6.51654
A51: 41 | B51: ASAHIINDIA | C51: 641.45 | D51: 645.25 | E51: 634.20 | F51: 626.95 | G51: 615.90 | H51: 652.50 | I51: 663.55 | J51: 670.80 | K51: 656.3 | L51: 638 | M51: 0.9392
A52: 42 | B52: ASHOKLEY | C52: 246.3 | D52: 246.98 | E52: 244.47 | F52: 242.63 | G52: 240.12 | H52: 248.82 | I52: 251.33 | J52: 253.17 | K52: 249.5 | L52: 245.15 | M52: 106.75857
A53: 43 | B53: ASIANPAINT | C53: 3005.4 | D53: 3028.50 | E53: 2967.30 | F53: 2929.20 | G53: 2868.00 | H53: 3066.60 | I53: 3127.80 | J53: 3165.90 | K53: 3089.7 | L53: 2990.4 | M53: 12.80109
A54: 44 | B54: ASTERDM | C54: 397.9 | D54: 396.22 | E54: 391.68 | F54: 385.47 | G54: 380.93 | H54: 402.43 | I54: 406.97 | J54: 413.18 | K54: 400.75 | L54: 390 | M54: 23.09329
A55: 45 | B55: ASTRAZEN | C55: 6622.65 | D55: 6804.23 | E55: 6358.42 | F55: 6094.18 | G55: 5648.37 | H55: 7068.47 | I55: 7514.28 | J55: 7778.52 | K55: 7250.05 | L55: 6540 | M55: 0.79675
A56: 46 | B56: ASTRAL | C56: 2082.2 | D56: 2096.25 | E56: 2060.95 | F56: 2039.70 | G56: 2004.40 | H56: 2117.50 | I56: 2152.80 | J56: 2174.05 | K56: 2131.55 | L56: 2075 | M56: 1.83709
A57: 47 | B57: ATUL | C57: 8004.1 | D57: 8037.82 | E57: 7941.73 | F57: 7879.37 | G57: 7783.28 | H57: 8100.18 | I57: 8196.27 | J57: 8258.63 | K57: 8133.9 | L57: 7975.45 | M57: 0.56267
A58: 48 | B58: AUROPHARMA | C58: 1479.3 | D58: 1471.75 | E58: 1455.55 | F58: 1431.80 | G58: 1415.60 | H58: 1495.50 | I58: 1511.70 | J58: 1535.45 | K58: 1487.95 | L58: 1448 | M58: 19.77114
A59: 49 | B59: AVANTIFEED | C59: 668.2 | D59: 678.82 | E59: 653.08 | F59: 637.97 | G59: 612.23 | H59: 693.93 | I59: 719.67 | J59: 734.78 | K59: 704.55 | L59: 663.7 | M59: 14.97138
A60: 50 | B60: DMART | C60: 4980.1 | D60: 4995.33 | E60: 4926.77 | F60: 4873.43 | G60: 4804.87 | H60: 5048.67 | I60: 5117.23 | J60: 5170.57 | K60: 5063.9 | L60: 4942 | M60: 3.483
A61: 51 | B61: AXISBANK | C61: 1138.15 | D61: 1135.65 | E61: 1128.50 | F61: 1118.85 | G61: 1111.70 | H61: 1145.30 | I61: 1152.45 | J61: 1162.10 | K61: 1142.8 | L61: 1126 | M61: 79.03428
A62: 52 | B62: BEML | C62: 4021.7 | D62: 4054.23 | E62: 3957.47 | F62: 3893.23 | G62: 3796.47 | H62: 4118.47 | I62: 4215.23 | J62: 4279.47 | K62: 4151 | L62: 3990 | M62: 3.21678
A63: 53 | B63: BLS | C63: 400.05 | D63: 394.37 | E63: 385.23 | F63: 370.42 | G63: 361.28 | H63: 409.18 | I63: 418.32 | J63: 433.13 | K63: 403.5 | L63: 379.55 | M63: 155.34011
A64: 54 | B64: BSE | C64: 2599.8 | D64: 2595.60 | E64: 2534.20 | F64: 2468.60 | G64: 2407.20 | H64: 2661.20 | I64: 2722.60 | J64: 2788.20 | K64: 2657 | L64: 2530 | M64: 36.43222
A65: 55 | B65: BAJAJ-AUTO | C65: 9641.3 | D65: 9676.38 | E65: 9575.07 | F65: 9508.83 | G65: 9407.52 | H65: 9742.62 | I65: 9843.93 | J65: 9910.17 | K65: 9777.7 | L65: 9610.15 | M65: 3.65016
A66: 56 | B66: BAJFINANCE | C66: 6582.2 | D66: 6610.53 | E66: 6543.02 | F66: 6503.83 | G66: 6436.32 | H66: 6649.72 | I66: 6717.23 | J66: 6756.42 | K66: 6678.05 | L66: 6571.35 | M66: 6.90389
A67: 57 | B67: BAJAJFINSV | C67: 1540.05 | D67: 1549.68 | E67: 1522.92 | F67: 1505.78 | G67: 1479.02 | H67: 1566.82 | I67: 1593.58 | J67: 1610.72 | K67: 1576.45 | L67: 1532.55 | M67: 16.83534
A68: 58 | B68: BAJAJHLDNG | C68: 9401.35 | D68: 9412.98 | E68: 9305.97 | F68: 9210.58 | G68: 9103.57 | H68: 9508.37 | I68: 9615.38 | J68: 9710.77 | K68: 9520 | L68: 9317.6 | M68: 0.20264
A69: 59 | B69: BALAMINES | C69: 2222.3 | D69: 2250.10 | E69: 2181.20 | F69: 2140.10 | G69: 2071.20 | H69: 2291.20 | I69: 2360.10 | J69: 2401.20 | K69: 2319 | L69: 2209 | M69: 3.77215
A70: 60 | B70: BALKRISIND | C70: 3128.25 | D70: 3147.42 | E70: 3084.83 | F70: 3041.42 | G70: 2978.83 | H70: 3190.83 | I70: 3253.42 | J70: 3296.83 | K70: 3210 | L70: 3104 | M70: 3.28216
A71: 61 | B71: BALRAMCHIN | C71: 488.85 | D71: 491.80 | E71: 483.85 | F71: 478.85 | G71: 470.90 | H71: 496.80 | I71: 504.75 | J71: 509.75 | K71: 499.75 | L71: 486.8 | M71: 17.13901
A72: 62 | B72: BANDHANBNK | C72: 199.18 | D72: 200.42 | E72: 196.96 | F72: 194.73 | G72: 191.27 | H72: 202.65 | I72: 206.11 | J72: 208.34 | K72: 203.89 | L72: 198.2 | M72: 67.62655
A73: 63 | B73: BANKBARODA | C73: 241.35 | D73: 242.20 | E73: 239.65 | F73: 237.95 | G73: 235.40 | H73: 243.90 | I73: 246.45 | J73: 248.15 | K73: 244.75 | L73: 240.5 | M73: 107.38946
A74: 64 | B74: BANKINDIA | C74: 119.38 | D74: 119.34 | E74: 117.29 | F74: 115.19 | G74: 113.14 | H74: 121.44 | I74: 123.49 | J74: 125.59 | K74: 121.4 | L74: 117.25 | M74: 107.34357
A75: 65 | B75: MAHABANK | C75: 62.09 | D75: 62.49 | E75: 61.50 | F75: 60.91 | G75: 59.92 | H75: 63.08 | I75: 64.07 | J75: 64.66 | K75: 63.48 | L75: 61.9 | M75: 114.28507
A76: 66 | B76: BATAINDIA | C76: 1455.7 | D76: 1461.95 | E76: 1444.00 | F76: 1432.30 | G76: 1414.35 | H76: 1473.65 | I76: 1491.60 | J76: 1503.30 | K76: 1479.9 | L76: 1450.25 | M76: 2.70031
A77: 67 | B77: BAYERCROP | C77: 6924.55 | D77: 7008.25 | E77: 6819.65 | F77: 6714.75 | G77: 6526.15 | H77: 7113.15 | I77: 7301.75 | J77: 7406.65 | K77: 7196.85 | L77: 6903.35 | M77: 0.3236
A78: 68 | B78: BERGEPAINT | C78: 518.15 | D78: 522.65 | E78: 512.50 | F78: 506.85 | G78: 496.70 | H78: 528.30 | I78: 538.45 | J78: 544.10 | K78: 532.8 | L78: 517 | M78: 13.14999
A79: 69 | B79: BDL | C79: 1414.25 | D79: 1411.42 | E79: 1378.83 | F79: 1343.42 | G79: 1310.83 | H79: 1446.83 | I79: 1479.42 | J79: 1514.83 | K79: 1444 | L79: 1376 | M79: 14.58258
A80: 70 | B80: BEL | C80: 298.25 | D80: 299.37 | E80: 296.03 | F80: 293.82 | G80: 290.48 | H80: 301.58 | I80: 304.92 | J80: 307.13 | K80: 302.7 | L80: 297.15 | M80: 219.63656
A81: 71 | B81: BHARATFORG | C81: 1605.45 | D81: 1594.87 | E81: 1546.73 | F81: 1488.02 | G81: 1439.88 | H81: 1653.58 | I81: 1701.72 | J81: 1760.43 | K81: 1643 | L81: 1536.15 | M81: 41.08498
A82: 72 | B82: BHEL | C82: 297.85 | D82: 299.95 | E82: 295.00 | F82: 292.15 | G82: 287.20 | H82: 302.80 | I82: 307.75 | J82: 310.60 | K82: 304.9 | L82: 297.1 | M82: 116.40751
A83: 73 | B83: BPCL | C83: 338.3 | D83: 338.35 | E83: 332.75 | F83: 327.20 | G83: 321.60 | H83: 343.90 | I83: 349.50 | J83: 355.05 | K83: 343.95 | L83: 332.8 | M83: 153.78854
A84: 74 | B84: BHARTIARTL | C84: 1451.8 | D84: 1449.43 | E84: 1432.37 | F84: 1412.93 | G84: 1395.87 | H84: 1468.87 | I84: 1485.93 | J84: 1505.37 | K84: 1466.5 | L84: 1430 | M84: 59.8636
A85: 75 | B85: BIKAJI | C85: 799.3 | D85: 798.73 | E85: 778.47 | F85: 757.63 | G85: 737.37 | H85: 819.57 | I85: 839.83 | J85: 860.67 | K85: 819 | L85: 777.9 | M85: 17.4031
A86: 76 | B86: BIOCON | C86: 339.15 | D86: 341.85 | E86: 334.15 | F86: 329.15 | G86: 321.45 | H86: 346.85 | I86: 354.55 | J86: 359.55 | K86: 349.55 | L86: 336.85 | M86: 40.03614
A87: 77 | B87: BIRLACORPN | C87: 1425.8 | D87: 1440.10 | E87: 1407.75 | F87: 1389.70 | G87: 1357.35 | H87: 1458.15 | I87: 1490.50 | J87: 1508.55 | K87: 1472.45 | L87: 1422.05 | M87: 0.66231
A88: 78 | B88: BSOFT | C88: 571.45 | D88: 572.62 | E88: 564.78 | F88: 558.12 | G88: 550.28 | H88: 579.28 | I88: 587.12 | J88: 593.78 | K88: 580.45 | L88: 565.95 | M88: 36.25933
A89: 79 | B89: BLUEDART | C89: 8033.65 | D89: 8081.97 | E89: 7948.93 | F89: 7864.22 | G89: 7731.18 | H89: 8166.68 | I89: 8299.72 | J89: 8384.43 | K89: 8215 | L89: 7997.25 | M89: 0.0409
A90: 80 | B90: BLUESTARCO | C90: 1619.05 | D90: 1620.67 | E90: 1593.33 | F90: 1567.62 | G90: 1540.28 | H90: 1646.38 | I90: 1673.72 | J90: 1699.43 | K90: 1648 | L90: 1594.95 | M90: 2.88203
A91: 81 | B91: BBTC | C91: 2234.65 | D91: 2223.88 | E91: 2157.77 | F91: 2080.88 | G91: 2014.77 | H91: 2300.77 | I91: 2366.88 | J91: 2443.77 | K91: 2290 | L91: 2147 | M91: 3.52391
A92: 82 | B92: BORORENEW | C92: 509.6 | D92: 510.92 | E92: 495.93 | F92: 482.27 | G92: 467.28 | H92: 524.58 | I92: 539.57 | J92: 553.23 | K92: 525.9 | L92: 497.25 | M92: 16.24199
A93: 83 | B93: BOSCHLTD | C93: 31835.65 | D93: 31991.47 | E93: 31463.18 | F93: 31090.72 | G93: 30562.43 | H93: 32363.93 | I93: 32892.22 | J93: 33264.68 | K93: 32519.75 | L93: 31619 | M93: 0.449
A94: 84 | B94: BRIGADE | C94: 1159.65 | D94: 1170.75 | E94: 1142.60 | F94: 1125.55 | G94: 1097.40 | H94: 1187.80 | I94: 1215.95 | J94: 1233.00 | K94: 1198.9 | L94: 1153.7 | M94: 3.38145
A95: 85 | B95: BRITANNIA | C95: 5744.65 | D95: 5777.20 | E95: 5692.45 | F95: 5640.25 | G95: 5555.50 | H95: 5829.40 | I95: 5914.15 | J95: 5966.35 | K95: 5861.95 | L95: 5725 | M95: 2.71628
A96: 86 | B96: MAPMYINDIA | C96: 2181.7 | D96: 2193.05 | E96: 2163.65 | F96: 2145.60 | G96: 2116.20 | H96: 2211.10 | I96: 2240.50 | J96: 2258.55 | K96: 2222.45 | L96: 2175 | M96: 0.54096
A97: 87 | B97: CCL | C97: 661.9 | D97: 670.67 | E97: 649.33 | F97: 636.77 | G97: 615.43 | H97: 683.23 | I97: 704.57 | J97: 717.13 | K97: 692 | L97: 658.1 | M97: 16.0559
A98: 88 | B98: CESC | C98: 174.72 | D98: 173.74 | E98: 171.98 | F98: 169.24 | G98: 167.48 | H98: 176.48 | I98: 178.24 | J98: 180.98 | K98: 175.5 | L98: 171 | M98: 58.89711
A99: 89 | B99: CGPOWER | C99: 678.65 | D99: 680.62 | E99: 671.48 | F99: 664.32 | G99: 655.18 | H99: 687.78 | I99: 696.92 | J99: 704.08 | K99: 689.75 | L99: 673.45 | M99: 25.73333
A100: 90 | B100: CIEINDIA | C100: 545.45 | D100: 550.93 | E100: 538.52 | F100: 531.58 | G100: 519.17 | H100: 557.87 | I100: 570.28 | J100: 577.22 | K100: 563.35 | L100: 544 | M100: 2.17856
A101: 91 | B101: CRISIL | C101: 4471.55 | D101: 4403.28 | E101: 4304.57 | F101: 4137.58 | G101: 4038.87 | H101: 4570.27 | I101: 4668.98 | J101: 4835.97 | K101: 4502 | L101: 4236.3 | M101: 1.05398
A102: 92 | B102: CSBBANK | C102: 322.9 | D102: 325.68 | E102: 318.47 | F102: 314.03 | G102: 306.82 | H102: 330.12 | I102: 337.33 | J102: 341.77 | K102: 332.9 | L102: 321.25 | M102: 1.9536
A103: 93 | B103: CAMPUS | C103: 297.55 | D103: 299.03 | E103: 295.17 | F103: 292.78 | G103: 288.92 | H103: 301.42 | I103: 305.28 | J103: 307.67 | K103: 302.9 | L103: 296.65 | M103: 3.17544
A104: 94 | B104: CANFINHOME | C104: 786.1 | D104: 789.17 | E104: 777.48 | F104: 768.87 | G104: 757.18 | H104: 797.78 | I104: 809.47 | J104: 818.08 | K104: 800.85 | L104: 780.55 | M104: 10.32271
A105: 95 | B105: CANBK | C105: 107.15 | D105: 107.40 | E105: 106.25 | F105: 105.34 | G105: 104.19 | H105: 108.31 | I105: 109.46 | J105: 110.37 | K105: 108.56 | L105: 106.5 | M105: 173.99682
A106: 96 | B106: CAPLIPOINT | C106: 1481.7 | D106: 1521.12 | E106: 1428.58 | F106: 1375.47 | G106: 1282.93 | H106: 1574.23 | I106: 1666.77 | J106: 1719.88 | K106: 1613.65 | L106: 1468 | M106: 3.12147
A107: 97 | B107: CGCL | C107: 205.02 | D107: 206.12 | E107: 203.65 | F107: 202.27 | G107: 199.80 | H107: 207.50 | I107: 209.97 | J107: 211.35 | K107: 208.6 | L107: 204.75 | M107: 1.15628
A108: 98 | B108: CARBORUNIV | C108: 1547.55 | D108: 1563.30 | E108: 1522.45 | F108: 1497.35 | G108: 1456.50 | H108: 1588.40 | I108: 1629.25 | J108: 1654.35 | K108: 1604.15 | L108: 1538.2 | M108: 2.85303
A109: 99 | B109: CASTROLIND | C109: 255.55 | D109: 255.48 | E109: 251.47 | F109: 247.38 | G109: 243.37 | H109: 259.57 | I109: 263.58 | J109: 267.67 | K109: 259.5 | L109: 251.4 | M109: 60.78049
A110: 100 | B110: CEATLTD | C110: 2640.3 | D110: 2642.40 | E110: 2596.80 | F110: 2553.30 | G110: 2507.70 | H110: 2685.90 | I110: 2731.50 | J110: 2775.00 | K110: 2688 | L110: 2598.9 | M110: 2.75647
A111: 101 | B111: CELLO | C111: 921.8 | D111: 919.12 | E111: 911.28 | F111: 900.77 | G111: 892.93 | H111: 929.63 | I111: 937.47 | J111: 947.98 | K111: 926.95 | L111: 908.6 | M111: 0.62332
A112: 102 | B112: CENTRALBK | C112: 59.87 | D112: 59.97 | E112: 59.02 | F112: 58.17 | G112: 57.22 | H112: 60.82 | I112: 61.77 | J112: 62.62 | K112: 60.92 | L112: 59.12 | M112: 76.22637
A113: 103 | B113: CDSL | C113: 2453.2 | D113: 2433.43 | E113: 2371.87 | F113: 2290.53 | G113: 2228.97 | H113: 2514.77 | I113: 2576.33 | J113: 2657.67 | K113: 2495 | L113: 2352.1 | M113: 34.75027
A114: 104 | B114: CENTURYPLY | C114: 719.55 | D114: 718.90 | E114: 707.80 | F114: 696.05 | G114: 684.95 | H114: 730.65 | I114: 741.75 | J114: 753.50 | K114: 730 | L114: 707.15 | M114: 1.96016
A115: 105 | B115: CENTURYTEX | C115: 2167.4 | D115: 2182.77 | E115: 2140.73 | F115: 2114.07 | G115: 2072.03 | H115: 2209.43 | I115: 2251.47 | J115: 2278.13 | K115: 2224.8 | L115: 2156.1 | M115: 1.6489
A116: 106 | B116: CERA | C116: 10377.15 | D116: 10285.33 | E116: 10071.67 | F116: 9766.18 | G116: 9552.52 | H116: 10590.82 | I116: 10804.48 | J116: 11109.97 | K116: 10499 | L116: 9979.85 | M116: 0.92897
A117: 107 | B117: CHALET | C117: 789.3 | D117: 793.17 | E117: 779.63 | F117: 769.97 | G117: 756.43 | H117: 802.83 | I117: 816.37 | J117: 826.03 | K117: 806.7 | L117: 783.5 | M117: 0.37211
A118: 108 | B118: CHAMBLFERT | C118: 513.15 | D118: 512.43 | E118: 500.82 | F118: 488.48 | G118: 476.87 | H118: 524.77 | I118: 536.38 | J118: 548.72 | K118: 524.05 | L118: 500.1 | M118: 50.3838
A119: 109 | B119: CHEMPLASTS | C119: 524.6 | D119: 547.98 | E119: 493.62 | F119: 462.63 | G119: 408.27 | H119: 578.97 | I119: 633.33 | J119: 664.32 | K119: 602.35 | L119: 517 | M119: 29.66576
A120: 110 | B120: CHENNPETRO | C120: 921.6 | D120: 928.73 | E120: 910.67 | F120: 899.73 | G120: 881.67 | H120: 939.67 | I120: 957.73 | J120: 968.67 | K120: 946.8 | L120: 917.8 | M120: 4.21105
A121: 111 | B121: CHOLAHLDNG | C121: 1477.85 | D121: 1480.57 | E121: 1454.18 | F121: 1430.52 | G121: 1404.13 | H121: 1504.23 | I121: 1530.62 | J121: 1554.28 | K121: 1506.95 | L121: 1456.9 | M121: 1.06335
A122: 112 | B122: CHOLAFIN | C122: 1350.25 | D122: 1360.92 | E122: 1335.38 | F122: 1320.52 | G122: 1294.98 | H122: 1375.78 | I122: 1401.32 | J122: 1416.18 | K122: 1386.45 | L122: 1346.05 | M122: 4.51732
A123: 113 | B123: CIPLA | C123: 1569.95 | D123: 1568.20 | E123: 1546.75 | F123: 1523.55 | G123: 1502.10 | H123: 1591.40 | I123: 1612.85 | J123: 1636.05 | K123: 1589.65 | L123: 1545 | M123: 35.41556
A124: 114 | B124: CUB | C124: 164.12 | D124: 164.50 | E124: 162.27 | F124: 160.41 | G124: 158.18 | H124: 166.36 | I124: 168.59 | J124: 170.45 | K124: 166.74 | L124: 162.65 | M124: 22.70065
A125: 115 | B125: CLEAN | C125: 1590.75 | D125: 1601.73 | E125: 1569.07 | F125: 1547.38 | G125: 1514.72 | H125: 1623.42 | I125: 1656.08 | J125: 1677.77 | K125: 1634.4 | L125: 1580.05 | M125: 2.11946
A126: 116 | B126: COALINDIA | C126: 523.45 | D126: 526.57 | E126: 518.13 | F126: 512.82 | G126: 504.38 | H126: 531.88 | I126: 540.32 | J126: 545.63 | K126: 535 | L126: 521.25 | M126: 136.24148
A127: 117 | B127: COCHINSHIP | C127: 2312.15 | D127: 2335.05 | E127: 2278.10 | F127: 2244.05 | G127: 2187.10 | H127: 2369.10 | I127: 2426.05 | J127: 2460.10 | K127: 2392 | L127: 2301 | M127: 16.55089
A128: 118 | B128: COFORGE | C128: 5845.1 | D128: 5898.43 | E128: 5778.17 | F128: 5711.23 | G128: 5590.97 | H128: 5965.37 | I128: 6085.63 | J128: 6152.57 | K128: 6018.7 | L128: 5831.5 | M128: 2.68749
A129: 119 | B129: COLPAL | C129: 3467.25 | D129: 3465.07 | E129: 3444.28 | F129: 3421.32 | G129: 3400.53 | H129: 3488.03 | I129: 3508.82 | J129: 3531.78 | K129: 3485.85 | L129: 3442.1 | M129: 4.50828
A130: 120 | B130: CAMS | C130: 4254.55 | D130: 4267.20 | E130: 4158.20 | F130: 4061.85 | G130: 3952.85 | H130: 4363.55 | I130: 4472.55 | J130: 4568.90 | K130: 4376.2 | L130: 4170.85 | M130: 10.61607
A131: 121 | B131: CONCORDBIO | C131: 1585.45 | D131: 1594.92 | E131: 1560.63 | F131: 1535.82 | G131: 1501.53 | H131: 1619.73 | I131: 1654.02 | J131: 1678.83 | K131: 1629.2 | L131: 1570.1 | M131: 0.50212
A132: 122 | B132: CONCOR | C132: 997.85 | D132: 1001.52 | E132: 989.33 | F132: 980.82 | G132: 968.63 | H132: 1010.03 | I132: 1022.22 | J132: 1030.73 | K132: 1013.7 | L132: 993 | M132: 13.2961
A133: 123 | B133: COROMANDEL | C133: 1640.8 | D133: 1647.68 | E133: 1601.12 | F133: 1561.43 | G133: 1514.87 | H133: 1687.37 | I133: 1733.93 | J133: 1773.62 | K133: 1694.25 | L133: 1608 | M133: 13.46743
A134: 124 | B134: CRAFTSMAN | C134: 5274 | D134: 5269.60 | E134: 5204.20 | F134: 5134.40 | G134: 5069.00 | H134: 5339.40 | I134: 5404.80 | J134: 5474.60 | K134: 5335 | L134: 5199.8 | M134: 0.49446
A135: 125 | B135: CREDITACC | C135: 1252.85 | D135: 1263.93 | E135: 1238.92 | F135: 1224.98 | G135: 1199.97 | H135: 1277.87 | I135: 1302.88 | J135: 1316.82 | K135: 1288.95 | L135: 1250 | M135: 1.96392
A136: 126 | B136: CROMPTON | C136: 433.55 | D136: 433.95 | E136: 427.65 | F136: 421.75 | G136: 415.45 | H136: 439.85 | I136: 446.15 | J136: 452.05 | K136: 440.25 | L136: 428.05 | M136: 21.03583
A137: 127 | B137: CUMMINSIND | C137: 3728.5 | D137: 3719.67 | E137: 3671.83 | F137: 3615.17 | G137: 3567.33 | H137: 3776.33 | I137: 3824.17 | J137: 3880.83 | K137: 3767.5 | L137: 3663 | M137: 9.93412
A138: 128 | B138: CYIENT | C138: 1690.7 | D138: 1698.63 | E138: 1674.57 | F138: 1658.43 | G138: 1634.37 | H138: 1714.77 | I138: 1738.83 | J138: 1754.97 | K138: 1722.7 | L138: 1682.5 | M138: 3.94204
A139: 129 | B139: DCMSHRIRAM | C139: 1150.85 | D139: 1144.02 | E139: 1100.03 | F139: 1049.22 | G139: 1005.23 | H139: 1194.83 | I139: 1238.82 | J139: 1289.63 | K139: 1188 | L139: 1093.2 | M139: 9.68417
A140: 130 | B140: DLF | C140: 832.6 | D140: 837.87 | E140: 825.23 | F140: 817.87 | G140: 805.23 | H140: 845.23 | I140: 857.87 | J140: 865.23 | K140: 850.5 | L140: 830.5 | M140: 23.65759
A141: 131 | B141: DOMS | C141: 2388.35 | D141: 2397.22 | E141: 2374.43 | F141: 2360.52 | G141: 2337.73 | H141: 2411.13 | I141: 2433.92 | J141: 2447.83 | K141: 2420 | L141: 2383.3 | M141: 0.2384
A142: 132 | B142: DABUR | C142: 637.45 | D142: 637.97 | E142: 634.13 | F142: 630.82 | G142: 626.98 | H142: 641.28 | I142: 645.12 | J142: 648.43 | K142: 641.8 | L142: 634.65 | M142: 15.28269
A143: 133 | B143: DALBHARAT | C143: 1770.05 | D143: 1760.87 | E143: 1744.18 | F143: 1718.32 | G143: 1701.63 | H143: 1786.73 | I143: 1803.42 | J143: 1829.28 | K143: 1777.55 | L143: 1735 | M143: 8.90191
A144: 134 | B144: DATAPATTNS | C144: 2959.6 | D144: 2981.20 | E144: 2928.40 | F144: 2897.20 | G144: 2844.40 | H144: 3012.40 | I144: 3065.20 | J144: 3096.40 | K144: 3034 | L144: 2950 | M144: 1.39457
A145: 135 | B145: DEEPAKFERT | C145: 983.7 | D145: 998.35 | E145: 960.60 | F145: 937.50 | G145: 899.75 | H145: 1021.45 | I145: 1059.20 | J145: 1082.30 | K145: 1036.1 | L145: 975.25 | M145: 19.82316
A146: 136 | B146: DEEPAKNTR | C146: 3055.3 | D146: 3076.28 | E146: 3019.07 | F146: 2982.83 | G146: 2925.62 | H146: 3112.52 | I146: 3169.73 | J146: 3205.97 | K146: 3133.5 | L146: 3040.05 | M146: 2.52128
A147: 137 | B147: DELHIVERY | C147: 408.65 | D147: 410.23 | E147: 405.72 | F147: 402.78 | G147: 398.27 | H147: 413.17 | I147: 417.68 | J147: 420.62 | K147: 414.75 | L147: 407.3 | M147: 44.45881
A148: 138 | B148: DEVYANI | C148: 175 | D148: 175.18 | E148: 173.22 | F148: 171.43 | G148: 169.47 | H148: 176.97 | I148: 178.93 | J148: 180.72 | K148: 177.15 | L148: 173.4 | M148: 17.99742
A149: 139 | B149: DIVISLAB | C149: 4834.5 | D149: 4894.12 | E149: 4763.38 | F149: 4692.27 | G149: 4561.53 | H149: 4965.23 | I149: 5095.97 | J149: 5167.08 | K149: 5024.85 | L149: 4823 | M149: 7.22958
A150: 140 | B150: DIXON | C150: 11453.75 | D150: 11536.28 | E150: 11328.57 | F150: 11203.38 | G150: 10995.67 | H150: 11661.47 | I150: 11869.18 | J150: 11994.37 | K150: 11744 | L150: 11411.1 | M150: 2.87
A151: 141 | B151: LALPATHLAB | C151: 3186.35 | D151: 3205.92 | E151: 3132.88 | F151: 3079.42 | G151: 3006.38 | H151: 3259.38 | I151: 3332.42 | J151: 3385.88 | K151: 3278.95 | L151: 3152.45 | M151: 8.69466
A152: 142 | B152: DRREDDY | C152: 6938.3 | D152: 6962.58 | E152: 6890.17 | F152: 6842.03 | G152: 6769.62 | H152: 7010.72 | I152: 7083.13 | J152: 7131.27 | K152: 7035 | L152: 6914.45 | M152: 5.41168
A153: 143 | B153: EIDPARRY | C153: 763.3 | D153: 767.43 | E153: 751.62 | F153: 739.93 | G153: 724.12 | H153: 779.12 | I153: 794.93 | J153: 806.62 | K153: 783.25 | L153: 755.75 | M153: 3.13923
A154: 144 | B154: EIHOTEL | C154: 373.45 | D154: 375.65 | E154: 368.80 | F154: 364.15 | G154: 357.30 | H154: 380.30 | I154: 387.15 | J154: 391.80 | K154: 382.5 | L154: 371 | M154: 7.46151
A155: 145 | B155: EPL | C155: 211.17 | D155: 213.03 | E155: 209.09 | F155: 207.00 | G155: 203.06 | H155: 215.12 | I155: 219.06 | J155: 221.15 | K155: 216.98 | L155: 210.95 | M155: 4.99433
A156: 146 | B156: EASEMYTRIP | C156: 39.34 | D156: 39.32 | E156: 39.12 | F156: 38.89 | G156: 38.69 | H156: 39.55 | I156: 39.75 | J156: 39.98 | K156: 39.53 | L156: 39.1 | M156: 53.7078
A157: 147 | B157: EICHERMOT | C157: 4576.9 | D157: 4588.95 | E157: 4535.95 | F157: 4495.00 | G157: 4442.00 | H157: 4629.90 | I157: 4682.90 | J157: 4723.85 | K157: 4641.95 | L157: 4548 | M157: 9.79435
A158: 148 | B158: ELECON | C158: 588.8 | D158: 589.18 | E158: 581.72 | F158: 574.63 | G158: 567.17 | H158: 596.27 | I158: 603.73 | J158: 610.82 | K158: 596.65 | L158: 582.1 | M158: 2.76266
A159: 149 | B159: ELGIEQUIP | C159: 631.8 | D159: 636.63 | E159: 624.42 | F159: 617.03 | G159: 604.82 | H159: 644.02 | I159: 656.23 | J159: 663.62 | K159: 648.85 | L159: 629.25 | M159: 0.67054
A160: 150 | B160: EMAMILTD | C160: 778.1 | D160: 781.97 | E160: 771.13 | F160: 764.17 | G160: 753.33 | H160: 788.93 | I160: 799.77 | J160: 806.73 | K160: 792.8 | L160: 775 | M160: 2.86995
A161: 151 | B161: ENDURANCE | C161: 2587.2 | D161: 2563.60 | E161: 2527.20 | F161: 2467.20 | G161: 2430.80 | H161: 2623.60 | I161: 2660.00 | J161: 2720.00 | K161: 2600 | L161: 2503.6 | M161: 0.50864
A162: 152 | B162: ENGINERSIN | C162: 228.15 | D162: 230.18 | E162: 224.82 | F162: 221.48 | G162: 216.12 | H162: 233.52 | I162: 238.88 | J162: 242.22 | K162: 235.55 | L162: 226.85 | M162: 41.1827
A163: 153 | B163: EQUITASBNK | C163: 78.93 | D163: 79.18 | E163: 78.50 | F163: 78.08 | G163: 77.40 | H163: 79.60 | I163: 80.28 | J163: 80.70 | K163: 79.85 | L163: 78.75 | M163: 35.87285
A164: 154 | B164: ERIS | C164: 1164.85 | D164: 1156.15 | E164: 1137.30 | F164: 1109.75 | G164: 1090.90 | H164: 1183.70 | I164: 1202.55 | J164: 1230.10 | K164: 1175 | L164: 1128.6 | M164: 3.12945
A165: 155 | B165: ESCORTS | C165: 3689.5 | D165: 3697.42 | E165: 3662.08 | F165: 3634.67 | G165: 3599.33 | H165: 3724.83 | I165: 3760.17 | J165: 3787.58 | K165: 3732.75 | L165: 3670 | M165: 2.41999
A166: 156 | B166: EXIDEIND | C166: 486.15 | D166: 489.95 | E166: 481.20 | F166: 476.25 | G166: 467.50 | H166: 494.90 | I166: 503.65 | J166: 508.60 | K166: 498.7 | L166: 485 | M166: 26.88578
A167: 157 | B167: FDC | C167: 500.9 | D167: 509.60 | E167: 488.80 | F167: 476.70 | G167: 455.90 | H167: 521.70 | I167: 542.50 | J167: 554.60 | K167: 530.4 | L167: 497.5 | M167: 4.18177
A168: 158 | B168: NYKAA | C168: 189.78 | D168: 190.76 | E168: 186.83 | F168: 183.87 | G168: 179.94 | H168: 193.72 | I168: 197.65 | J168: 200.61 | K168: 194.7 | L168: 187.81 | M168: 64.20931
A169: 159 | B169: FEDERALBNK | C169: 193.78 | D169: 193.77 | E169: 192.28 | F169: 190.77 | G169: 189.28 | H169: 195.28 | I169: 196.77 | J169: 198.28 | K169: 195.27 | L169: 192.27 | M169: 56.30502
A170: 160 | B170: FACT | C170: 959.45 | D170: 966.82 | E170: 947.63 | F170: 935.82 | G170: 916.63 | H170: 978.63 | I170: 997.82 | J170: 1009.63 | K170: 986 | L170: 955 | M170: 2.93169
A171: 161 | B171: FINEORG | C171: 5248.85 | D171: 5277.87 | E171: 5182.48 | F171: 5116.12 | G171: 5020.73 | H171: 5344.23 | I171: 5439.62 | J171: 5505.98 | K171: 5373.25 | L171: 5211.5 | M171: 0.23668
A172: 162 | B172: FINCABLES | C172: 1497.3 | D172: 1497.87 | E172: 1484.93 | F172: 1472.57 | G172: 1459.63 | H172: 1510.23 | I172: 1523.17 | J172: 1535.53 | K172: 1510.8 | L172: 1485.5 | M172: 1.07762
A173: 163 | B173: FINPIPE | C173: 290.3 | D173: 290.93 | E173: 287.42 | F173: 284.53 | G173: 281.02 | H173: 293.82 | I173: 297.33 | J173: 300.22 | K173: 294.45 | L173: 288.05 | M173: 3.13492
A174: 164 | B174: FSL | C174: 283.3 | D174: 287.02 | E174: 278.48 | F174: 273.67 | G174: 265.13 | H174: 291.83 | I174: 300.37 | J174: 305.18 | K174: 295.55 | L174: 282.2 | M174: 46.74985
A175: 165 | B175: FIVESTAR | C175: 726.4 | D175: 726.02 | E175: 720.58 | F175: 714.77 | G175: 709.33 | H175: 731.83 | I175: 737.27 | J175: 743.08 | K175: 731.45 | L175: 720.2 | M175: 3.33037
A176: 166 | B176: FORTIS | C176: 489.15 | D176: 486.73 | E176: 482.97 | F176: 476.78 | G176: 473.02 | H176: 492.92 | I176: 496.68 | J176: 502.87 | K176: 490.5 | L176: 480.55 | M176: 8.43964
A177: 167 | B177: GAIL | C177: 227.31 | D177: 228.74 | E177: 225.24 | F177: 223.18 | G177: 219.68 | H177: 230.80 | I177: 234.30 | J177: 236.36 | K177: 232.23 | L177: 226.67 | M177: 136.56192
A178: 168 | B178: GMMPFAUDLR | C178: 1353.85 | D178: 1355.95 | E178: 1327.90 | F178: 1301.95 | G178: 1273.90 | H178: 1381.90 | I178: 1409.95 | J178: 1435.90 | K178: 1384 | L178: 1330 | M178: 3.30987
A179: 169 | B179: GMRINFRA | C179: 98.69 | D179: 98.42 | E179: 96.63 | F179: 94.58 | G179: 92.79 | H179: 100.47 | I179: 102.26 | J179: 104.31 | K179: 100.2 | L179: 96.36 | M179: 314.02322
A180: 170 | B180: GRSE | C180: 2086.45 | D180: 2122.13 | E180: 2035.32 | F180: 1984.18 | G180: 1897.37 | H180: 2173.27 | I180: 2260.08 | J180: 2311.22 | K180: 2208.95 | L180: 2071 | M180: 17.71919
A181: 171 | B181: GICRE | C181: 391.05 | D181: 394.48 | E181: 381.97 | F181: 372.88 | G181: 360.37 | H181: 403.57 | I181: 416.08 | J181: 425.17 | K181: 407 | L181: 385.4 | M181: 26.94746
A182: 172 | B182: GILLETTE | C182: 8018.75 | D182: 7981.25 | E182: 7887.50 | F182: 7756.25 | G182: 7662.50 | H182: 8112.50 | I182: 8206.25 | J182: 8337.50 | K182: 8075 | L182: 7850 | M182: 0.20541
A183: 173 | B183: GLAND | C183: 2027.55 | D183: 2018.15 | E183: 1986.40 | F183: 1945.25 | G183: 1913.50 | H183: 2059.30 | I183: 2091.05 | J183: 2132.20 | K183: 2049.9 | L183: 1977 | M183: 3.84599
A184: 174 | B184: GLAXO | C184: 2873.65 | D184: 2882.77 | E184: 2825.53 | F184: 2777.42 | G184: 2720.18 | H184: 2930.88 | I184: 2988.12 | J184: 3036.23 | K184: 2940 | L184: 2834.65 | M184: 1.7841
A185: 175 | B185: GLS | C185: 925.25 | D185: 929.73 | E185: 915.52 | F185: 905.78 | G185: 891.57 | H185: 939.47 | I185: 953.68 | J185: 963.42 | K185: 943.95 | L185: 920 | M185: 1.03355
A186: 176 | B186: GLENMARK | C186: 1451.75 | D186: 1458.40 | E186: 1441.90 | F186: 1432.05 | G186: 1415.55 | H186: 1468.25 | I186: 1484.75 | J186: 1494.60 | K186: 1474.9 | L186: 1448.55 | M186: 4.21207
A187: 177 | B187: MEDANTA | C187: 1173.95 | D187: 1177.03 | E187: 1156.97 | F187: 1139.98 | G187: 1119.92 | H187: 1194.02 | I187: 1214.08 | J187: 1231.07 | K187: 1197.1 | L187: 1160.05 | M187: 1.40567
A188: 178 | B188: GPIL | C188: 1127.8 | D188: 1139.92 | E188: 1112.88 | F188: 1097.97 | G188: 1070.93 | H188: 1154.83 | I188: 1181.87 | J188: 1196.78 | K188: 1166.95 | L188: 1125 | M188: 4.6387
A189: 179 | B189: GODFRYPHLP | C189: 4127.7 | D189: 4149.27 | E189: 4088.53 | F189: 4049.37 | G189: 3988.63 | H189: 4188.43 | I189: 4249.17 | J189: 4288.33 | K189: 4210 | L189: 4110.1 | M189: 0.52186
A190: 180 | B190: GODREJCP | C190: 1463.9 | D190: 1466.97 | E190: 1428.98 | F190: 1394.07 | G190: 1356.08 | H190: 1501.88 | I190: 1539.87 | J190: 1574.78 | K190: 1504.95 | L190: 1432.05 | M190: 27.86418
A191: 181 | B191: GODREJIND | C191: 870.2 | D191: 871.42 | E191: 860.83 | F191: 851.47 | G191: 840.88 | H191: 880.78 | I191: 891.37 | J191: 900.73 | K191: 882 | L191: 862.05 | M191: 0.63067
A192: 182 | B192: GODREJPROP | C192: 2876.55 | D192: 2905.55 | E192: 2841.45 | F192: 2806.35 | G192: 2742.25 | H192: 2940.65 | I192: 3004.75 | J192: 3039.85 | K192: 2969.65 | L192: 2870.45 | M192: 5.13992
A193: 183 | B193: GRANULES | C193: 652.85 | D193: 652.13 | E193: 642.32 | F193: 631.78 | G193: 621.97 | H193: 662.67 | I193: 672.48 | J193: 683.02 | K193: 661.95 | L193: 641.6 | M193: 26.09639
A194: 184 | B194: GRAPHITE | C194: 521.35 | D194: 523.87 | E194: 514.73 | F194: 508.12 | G194: 498.98 | H194: 530.48 | I194: 539.62 | J194: 546.23 | K194: 533 | L194: 517.25 | M194: 13.98888
A195: 185 | B195: GRASIM | C195: 2544.65 | D195: 2569.85 | E195: 2505.90 | F195: 2467.15 | G195: 2403.20 | H195: 2608.60 | I195: 2672.55 | J195: 2711.30 | K195: 2633.8 | L195: 2531.1 | M195: 11.99236
A196: 186 | B196: GESHIP | C196: 1358.55 | D196: 1349.52 | E196: 1334.03 | F196: 1309.52 | G196: 1294.03 | H196: 1374.03 | I196: 1389.52 | J196: 1414.03 | K196: 1365 | L196: 1325 | M196: 7.57146
A197: 187 | B197: GRINDWELL | C197: 2399.15 | D197: 2414.45 | E197: 2363.90 | F197: 2328.65 | G197: 2278.10 | H197: 2449.70 | I197: 2500.25 | J197: 2535.50 | K197: 2465 | L197: 2379.2 | M197: 0.22096
A198: 188 | B198: GAEL | C198: 129.14 | D198: 129.73 | E198: 128.36 | F198: 127.58 | G198: 126.21 | H198: 130.51 | I198: 131.88 | J198: 132.66 | K198: 131.1 | L198: 128.95 | M198: 5.11362
A199: 189 | B199: FLUOROCHEM | C199: 3391.1 | D199: 3382.40 | E199: 3313.70 | F199: 3236.30 | G199: 3167.60 | H199: 3459.80 | I199: 3528.50 | J199: 3605.90 | K199: 3451.1 | L199: 3305 | M199: 1.09543
A200: 190 | B200: GUJGASLTD | C200: 621.65 | D200: 627.22 | E200: 614.53 | F200: 607.42 | G200: 594.73 | H200: 634.33 | I200: 647.02 | J200: 654.13 | K200: 639.9 | L200: 620.1 | M200: 4.8811
A201: 191 | B201: GMDCLTD | C201: 368.9 | D201: 372.92 | E201: 363.83 | F201: 358.77 | G201: 349.68 | H201: 377.98 | I201: 387.07 | J201: 392.13 | K201: 382 | L201: 367.85 | M201: 9.58113
A202: 192 | B202: GNFC | C202: 662.9 | D202: 665.25 | E202: 658.10 | F202: 653.30 | G202: 646.15 | H202: 670.05 | I202: 677.20 | J202: 682.00 | K202: 672.4 | L202: 660.45 | M202: 8.22495
A203: 193 | B203: GPPL | C203: 228.9 | D203: 230.80 | E203: 223.80 | F203: 218.71 | G203: 211.71 | H203: 235.89 | I203: 242.89 | J203: 247.98 | K203: 237.79 | L203: 225.7 | M203: 141.72607
A204: 194 | B204: GSFC | C204: 228.09 | D204: 228.09 | E204: 225.40 | F204: 222.70 | G204: 220.01 | H204: 230.79 | I204: 233.48 | J204: 236.18 | K204: 230.79 | L204: 225.4 | M204: 18.77308
A205: 195 | B205: GSPL | C205: 336.25 | D205: 335.65 | E205: 332.55 | F205: 328.85 | G205: 325.75 | H205: 339.35 | I205: 342.45 | J205: 346.15 | K205: 338.75 | L205: 331.95 | M205: 8.25283
A206: 196 | B206: HEG | C206: 2048.35 | D206: 2058.68 | E206: 2031.87 | F206: 2015.38 | G206: 1988.57 | H206: 2075.17 | I206: 2101.98 | J206: 2118.47 | K206: 2085.5 | L206: 2042.2 | M206: 0.7538
... 320 more rows

Sheet Bulk Deals
E6: Back To Main Page
A7: Subject : | B7: BULK DEAL | D7: =Main!B10 -> 2024-08-09
A9: Date | B9: Scrip code | C9: Scrip Name | D9: Client Name | E9: Buy / Sell | F9: Quantity Traded | G9: Trade Price / Wt.Avg.trade price | H9: Exchange
A10: 2024-08-08 | B10: 538351 | C10: AFEL | D10: SHAILESH KANJIBHAI DHAMELIYA | E10: SELL | F10: 122,259 | G10: 17.9 | H10: BSE
A11: 2024-08-08 | B11: 538351 | C11: AFEL | D11: SEIFER RICHARD MASCARENHAS | E11: BUY | F11: 50,000 | G11: 17.9 | H11: BSE
A12: 2024-08-08 | B12: 538351 | C12: AFEL | D12: SEIFER RICHARD MASCARENHAS | E12: SELL | F12: 165,249 | G12: 17.9 | H12: BSE
A13: 2024-08-08 | B13: 541303 | C13: AKSHAR | D13: SANJAYBHAIBHAGWANBHAIJALODRA | E13: BUY | F13: 1,700,000 | G13: 2.19 | H13: BSE
A14: 2024-08-08 | B14: 541303 | C14: AKSHAR | D14: SILONI UPPAL | E14: BUY | F14: 1,773,222 | G14: 2.24 | H14: BSE
A15: 2024-08-08 | B15: 541303 | C15: AKSHAR | D15: SILONI UPPAL | E15: SELL | F15: 1,757,537 | G15: 2.21 | H15: BSE
A16: 2024-08-08 | B16: 541303 | C16: AKSHAR | D16: VIKRAMBHAI GOKALBHAI CHAUDHARI | E16: BUY | F16: 1,504,396 | G16: 2.19 | H16: BSE
A17: 2024-08-08 | B17: 541303 | C17: AKSHAR | D17: VIKRAMBHAI GOKALBHAI CHAUDHARI | E17: SELL | F17: 504,396 | G17: 2.19 | H17: BSE
A18: 2024-08-08 | B18: 526662 | C18: ARENTERP | D18: BONANZA PORTFOLIO LIMITED | E18: SELL | F18: 7,488 | G18: 78.02 | H18: BSE
A19: 2024-08-08 | B19: 526662 | C19: ARENTERP | D19: BONANZA PORTFOLIO LIMITED | E19: BUY | F19: 30,008 | G19: 78.96 | H19: BSE
A20: 2024-08-08 | B20: 526662 | C20: ARENTERP | D20: KIRAN TRIVEDI HUF | E20: SELL | F20: 20,158 | G20: 79.08 | H20: BSE
A21: 2024-08-08 | B21: 526662 | C21: ARENTERP | D21: KIRAN TRIVEDI HUF | E21: BUY | F21: 5,158 | G21: 78.52 | H21: BSE
A22: 2024-08-08 | B22: 524434 | C22: ASINPET | D22: VIVEK KANDA | E22: BUY | F22: 46,745 | G22: 20.24 | H22: BSE
A23: 2024-08-08 | B23: 535267 | C23: COMFINCAP | D23: WEALTH MINE NETWORKS PRIVATE LIMITED | E23: SELL | F23: 349,882 | G23: 10.04 | H23: BSE
A24: 2024-08-08 | B24: 543606 | C24: CONTAINE | D24: BOTCHA BHAVANI | E24: SELL | F24: 50,000 | G24: 70.63 | H24: BSE
A25: 2024-08-08 | B25: 511074 | C25: EASYFIN | D25: LOTUS GLOBAL INVESTMENTS LIMITED | E25: SELL | F25: 5,950 | G25: 990 | H25: BSE
A26: 2024-08-08 | B26: 511074 | C26: EASYFIN | D26: ALBULA INVESTMENT FUND LTD | E26: BUY | F26: 5,949 | G26: 990 | H26: BSE
A27: 2024-08-08 | B27: 544173 | C27: FTL | D27: MANASAGARWAL | E27: SELL | F27: 37,000 | G27: 49.01 | H27: BSE
A28: 2024-08-08 | B28: 500160 | C28: GTL | D28: GREEN PEAKS ENTERPRISES LLP | E28: SELL | F28: 251,607 | G28: 15.27 | H28: BSE
A29: 2024-08-08 | B29: 500160 | C29: GTL | D29: GREEN PEAKS ENTERPRISES LLP | E29: BUY | F29: 870,008 | G29: 15.38 | H29: BSE
A30: 2024-08-08 | B30: 513337 | C30: GUJTLRM | D30: MULTIPLIER SHARE & STOCK ADVISORS PRIVATE LIMITED | E30: BUY | F30: 1,000,000 | G30: 12.1 | H30: BSE
A31: 2024-08-08 | B31: 513337 | C31: GUJTLRM | D31: SANJAYBHAIBHAGWANBHAIJALODRA | E31: SELL | F31: 2,200,000 | G31: 12.43 | H31: BSE
A32: 2024-08-08 | B32: 513337 | C32: GUJTLRM | D32: HARDIKHASUBHAIKANANI | E32: SELL | F32: 928,424 | G32: 12.1 | H32: BSE
A33: 2024-08-08 | B33: 524614 | C33: INDXTRA | D33: SUMIT SINGHANIA | E33: BUY | F33: 1 | G33: 6.24 | H33: BSE
A34: 2024-08-08 | B34: 524614 | C34: INDXTRA | D34: SUMIT SINGHANIA | E34: SELL | F34: 504,228 | G34: 5.58 | H34: BSE
A35: 2024-08-08 | B35: 542924 | C35: JANUSCORP | D35: KAMLESHBHAI JIVRAMBHAI GAMBHAVA | E35: BUY | F35: 84,000 | G35: 14.1 | H35: BSE
A36: 2024-08-08 | B36: 517063 | C36: JETKINGQ | D36: MANISHVERMA | E36: BUY | F36: 3,000 | G36: 79 | H36: BSE
A37: 2024-08-08 | B37: 517063 | C37: JETKINGQ | D37: MANISHVERMA | E37: SELL | F37: 30,500 | G37: 78.4 | H37: BSE
A38: 2024-08-08 | B38: 531163 | C38: KEMISTAR | D38: KIFS ENTERPRISE | E38: BUY | F38: 53,931 | G38: 81.49 | H38: BSE
A39: 2024-08-08 | B39: 534532 | C39: LYPSAGEMS | D39: AMIT KUMAR JAIN | E39: SELL | F39: 171,002 | G39: 6.48 | H39: BSE
A40: 2024-08-08 | B40: 539519 | C40: MAYUKH | D40: RAVI JABBAR SHARMA | E40: BUY | F40: 168,200 | G40: 7.53 | H40: BSE
A41: 2024-08-08 | B41: 540243 | C41: NEWLIGHT | D41: RAJ KUMAR BHATIA | E41: BUY | F41: 50,000 | G41: 47.69 | H41: BSE
A42: 2024-08-08 | B42: 526723 | C42: NTCIND | D42: RAMAKANT RAMNIWAS KASAT | E42: SELL | F42: 83,481 | G42: 242.4 | H42: BSE
A43: 2024-08-08 | B43: 530095 | C43: PRADHIN | D43: ANILKUMAR | E43: SELL | F43: 27,730 | G43: 46.86 | H43: BSE
A44: 2024-08-08 | B44: 511557 | C44: PROFINC | D44: SHRENI SHARES LTD | E44: SELL | F44: 1,300,000 | G44: 1.01 | H44: BSE
A45: 2024-08-08 | B45: 544021 | C45: PROTEAN | D45: STANDARD CHARTERED BANK | E45: SELL | F45: 1,250,000 | G45: 1799.79 | H45: BSE
A46: 2024-08-08 | B46: 544021 | C46: PROTEAN | D46: SETU SECURITIES PVT. LTD. | E46: BUY | F46: 220,095 | G46: 1803.54 | H46: BSE
A47: 2024-08-08 | B47: 544021 | C47: PROTEAN | D47: SETU SECURITIES PVT. LTD. | E47: SELL | F47: 170,144 | G47: 1836.96 | H47: BSE
A48: 2024-08-08 | B48: 536659 | C48: PVVINFRA | D48: CTIL MEDIA PRIVATE LIMITED | E48: SELL | F48: 243,655 | G48: 15.38 | H48: BSE
A49: 2024-08-08 | B49: 536659 | C49: PVVINFRA | D49: CTIL MEDIA PRIVATE LIMITED | E49: BUY | F49: 1 | G49: 15.56 | H49: BSE
A50: 2024-08-08 | B50: 536659 | C50: PVVINFRA | D50: KTR CONSTRUCTIONS LLP | E50: SELL | F50: 154,387 | G50: 15.34 | H50: BSE
A51: 2024-08-08 | B51: 539760 | C51: RELICAB | D51: EMRALD COMMERCIAL LIMITED | E51: SELL | F51: 127,681 | G51: 134.3 | H51: BSE
A52: 2024-08-08 | B52: 539760 | C52: RELICAB | D52: SANJIB KUMAR PATWARI | E52: BUY | F52: 100,000 | G52: 134 | H52: BSE
A53: 2024-08-08 | B53: 543256 | C53: RFLL | D53: KIRAN MITTAL | E53: SELL | F53: 61,561 | G53: 18.85 | H53: BSE
A54: 2024-08-08 | B54: 526193 | C54: ROYALCU | D54: TRUPTI KETAN KARANI | E54: SELL | F54: 265,154 | G54: 25.52 | H54: BSE
A55: 2024-08-08 | B55: 539226 | C55: RUDRA | D55: JYOTHI KAILASH KABRA | E55: BUY | F55: 548,841 | G55: 65.26 | H55: BSE
A56: 2024-08-08 | B56: 539226 | C56: RUDRA | D56: JYOTHI KAILASH KABRA | E56: SELL | F56: 548,841 | G56: 65.26 | H56: BSE
A57: 2024-08-08 | B57: 543537 | C57: SCARNOSE | D57: GIRIRAJ STOCK BROKING PRIVATE LIMITED | E57: SELL | F57: 18,000 | G57: 77.35 | H57: BSE
A58: 2024-08-08 | B58: 543537 | C58: SCARNOSE | D58: GIRIRAJ STOCK BROKING PRIVATE LIMITED | E58: BUY | F58: 3,000 | G58: 74.54 | H58: BSE
A59: 2024-08-08 | B59: 544080 | C59: SHILINDORE | D59: CENTURY 21 OFFICESPACE PRIVATE LIMITED | E59: BUY | F59: 72,500 | G59: 1001 | H59: BSE
A60: 2024-08-08 | B60: 544080 | C60: SHILINDORE | D60: MP ENTERTAINMENT AND DEVELOPERS PRIVATE LIMITED | E60: BUY | F60: 97,661 | G60: 1001.01 | H60: BSE
A61: 2024-08-08 | B61: 544080 | C61: SHILINDORE | D61: KAYUM RAZAK DHANANI | E61: SELL | F61: 170,081 | G61: 1001 | H61: BSE
A62: 2024-08-08 | B62: 511493 | C62: SHRYDUS | D62: J M FINANCIAL AND INVESTMENT CONSULTANCY SERVICES PRIVATE LIMITED | E62: SELL | F62: 132,733 | G62: 18.08 | H62: BSE
A63: 2024-08-08 | B63: 539584 | C63: SIPTL | D63: PANKAJ KUMAR BAHETI | E63: BUY | F63: 1,100,000 | G63: 0.81 | H63: BSE
A64: 2024-08-08 | B64: 539217 | C64: SRESTHA | D64: VIKRAM JAIN | E64: BUY | F64: 8,100,000 | G64: 2.02 | H64: BSE
A65: 2024-08-08 | B65: 539017 | C65: STARHFL | D65: SAPAN ANIL SHAH HUF | E65: BUY | F65: 1,000,000 | G65: 45.52 | H65: BSE
A66: 2024-08-08 | B66: 543274 | C66: SUUMAYA | D66: SUNRISE GILTS AND SECURITIES PVT LTD | E66: BUY | F66: 1,270,350 | G66: 3.93 | H66: BSE
A67: 2024-08-08 | B67: 543274 | C67: SUUMAYA | D67: IRIS COMPUTERS LIMITED | E67: SELL | F67: 1,399,950 | G67: 3.93 | H67: BSE
A68: 2024-08-08 | B68: 503659 | C68: SW1 | D68: SNEHA SANJEEV LUNKAD | E68: SELL | F68: 4,505 | G68: 78.99 | H68: BSE
A69: 2024-08-08 | B69: 503659 | C69: SW1 | D69: LAXMIPAT DUDHERIA | E69: BUY | F69: 12,000 | G69: 79.41 | H69: BSE
A70: 2024-08-08 | B70: 539040 | C70: TTIL | D70: PARAG COMMOSALES | E70: SELL | F70: 287,000 | G70: 31.11 | H70: BSE
A71: 2024-08-08 | B71: 539040 | C71: TTIL | D71: GAURI NANDAN TRADERS | E71: SELL | F71: 125,756 | G71: 31.11 | H71: BSE
A72: 2024-08-08 | B72: 539040 | C72: TTIL | D72: PARAG COMMOSALES | E72: BUY | F72: 417,800 | G72: 31.09 | H72: BSE
A73: 2024-08-08 | B73: 539040 | C73: TTIL | D73: PARAG MULTI TRADE LLP | E73: SELL | F73: 1,161,066 | G73: 31.11 | H73: BSE
A74: 2024-08-08 | B74: 539040 | C74: TTIL | D74: RAJESH PARASMAL SHAH | E74: SELL | F74: 139,197 | G74: 31.09 | H74: BSE
A75: 2024-08-08 | B75: 539040 | C75: TTIL | D75: ZAHERA TRADERS LLP | E75: SELL | F75: 125,000 | G75: 31.11 | H75: BSE
A76: 2024-08-08 | B76: 539040 | C76: TTIL | D76: ZAHERA TRADERS LLP | E76: BUY | F76: 90,000 | G76: 31.09 | H76: BSE
A77: 2024-08-08 | B77: 539040 | C77: TTIL | D77: SIDDHANT SHIRISH SHAH | E77: SELL | F77: 350,576 | G77: 31.11 | H77: BSE
A78: 2024-08-08 | B78: 539040 | C78: TTIL | D78: KUNAL NAHAR HUF | E78: SELL | F78: 204,690 | G78: 31.11 | H78: BSE
A79: 2024-08-08 | B79: 539291 | C79: VASUDHAGAM | D79: ASHIABANU ANVARLI SAIYAD | E79: BUY | F79: 164,772 | G79: 18.84 | H79: BSE
A80: 2024-08-08 | B80: 539291 | C80: VASUDHAGAM | D80: ANANDBHAI BALDEVBHAI DESAI | E80: BUY | F80: 100,000 | G80: 18.81 | H80: BSE
A81: 2024-08-08 | B81: 516098 | C81: VENTURA | D81: ASHA UMAKANT VASAIKAR | E81: SELL | F81: 275,223 | G81: 21.36 | H81: BSE
A82: 2024-08-08 | B82: 20MICRONS | C82: 20 Microns Limited | D82: GRAVITON RESEARCH CAPITAL LLP | E82: BUY | F82: 189,927 | G82: 305.71 | H82: NSE
A83: 2024-08-08 | B83: AKASH | C83: Akash Infra-Projects Ltd | D83: KHANT PIYUSHKUMAR | E83: BUY | F83: 97,125 | G83: 41.39 | H83: NSE
A84: 2024-08-08 | B84: AKSHAR | C84: Akshar Spintex Limited | D84: SANJAYBHAIBHAGWANBHAIJALODRA | E84: BUY | F84: 2,500,000 | G84: 2.18 | H84: NSE
A85: 2024-08-08 | B85: AKSHAR | C85: Akshar Spintex Limited | D85: VIKRAMBHAI GOKALBHAI CHAUDHARI | E85: BUY | F85: 17,580,145 | G85: 2.35 | H85: NSE
A86: 2024-08-08 | B86: AKSHAR | C86: Akshar Spintex Limited | D86: SHUBHAM ASHOKBHAI PATEL | E86: BUY | F86: 2,500,000 | G86: 2.35 | H86: NSE
A87: 2024-08-08 | B87: AKSHAR | C87: Akshar Spintex Limited | D87: DHRUV GANJI | E87: BUY | F87: 12,228,655 | G87: 2.35 | H87: NSE
A88: 2024-08-08 | B88: AKSHAR | C88: Akshar Spintex Limited | D88: CHANDAN CHAURASIYA | E88: BUY | F88: 5,000,000 | G88: 2.35 | H88: NSE
A89: 2024-08-08 | B89: AKSHAR | C89: Akshar Spintex Limited | D89: MAKVANA MITESH | E89: BUY | F89: 5,300,000 | G89: 2.19 | H89: NSE
A90: 2024-08-08 | B90: AKSHAR | C90: Akshar Spintex Limited | D90: SETU SECURITIES PVT LTD | E90: BUY | F90: 5,168,540 | G90: 2.19 | H90: NSE
A91: 2024-08-08 | B91: AKSHAR | C91: Akshar Spintex Limited | D91: JIGAR SURENDRA NANDU | E91: BUY | F91: 2,192,731 | G91: 2.18 | H91: NSE
A92: 2024-08-08 | B92: AKSHAR | C92: Akshar Spintex Limited | D92: SILONI UPPAL | E92: BUY | F92: 6,081,138 | G92: 2.25 | H92: NSE
A93: 2024-08-08 | B93: AKSHAR | C93: Akshar Spintex Limited | D93: MULTIPLIER SHARE & STOCK ADVISORS PRIVATE LIMITED | E93: BUY | F93: 10,000,000 | G93: 2.18 | H93: NSE
A94: 2024-08-08 | B94: ANNAPURNA | C94: Annapurna Swadisht Ltd | D94: AJAY SHIV NARAYAN UPADHYAYA | E94: BUY | F94: 160,000 | G94: 339.89 | H94: NSE
A95: 2024-08-08 | B95: ANTGRAPHIC | C95: Antarctica Graphics Ltd | D95: VIBRANT SECURITIES PVT. LTD | E95: BUY | F95: 900,057 | G95: 1.51 | H95: NSE
A96: 2024-08-08 | B96: ARENTERP | C96: Rajdharshan Inds Ltd | D96: MANISH VERMA | E96: BUY | F96: 17,000 | G96: 78.4 | H96: NSE
A97: 2024-08-08 | B97: ARENTERP | C97: Rajdharshan Inds Ltd | D97: PRADEEP GUPTA | E97: BUY | F97: 16,491 | G97: 76.67 | H97: NSE
A98: 2024-08-08 | B98: ARENTERP | C98: Rajdharshan Inds Ltd | D98: ACHINTYA SECURITIES PRIVATE LIMITED | E98: BUY | F98: 38,341 | G98: 77.82 | H98: NSE
A99: 2024-08-08 | B99: ARENTERP | C99: Rajdharshan Inds Ltd | D99: KIRAN TRIVEDI HUF | E99: BUY | F99: 22,457 | G99: 77.75 | H99: NSE
A100: 2024-08-08 | B100: ARENTERP | C100: Rajdharshan Inds Ltd | D100: TRANSGLOBAL SECURITIES LTD | E100: BUY | F100: 39,409 | G100: 78.25 | H100: NSE
A101: 2024-08-08 | B101: ARENTERP | C101: Rajdharshan Inds Ltd | D101: YUGA STOCKS AND COMMODITIES PRIVATE LIMITED . | E101: BUY | F101: 41,981 | G101: 78.35 | H101: NSE
A102: 2024-08-08 | B102: ARENTERP | C102: Rajdharshan Inds Ltd | D102: POOJA JAIN | E102: BUY | F102: 45,000 | G102: 77.07 | H102: NSE
A103: 2024-08-08 | B103: ARENTERP | C103: Rajdharshan Inds Ltd | D103: ARPIT JAIN HUF | E103: BUY | F103: 92,001 | G103: 77.67 | H103: NSE
A104: 2024-08-08 | B104: ARENTERP | C104: Rajdharshan Inds Ltd | D104: TRIMURTI CAPITAL BROKING LLP | E104: BUY | F104: 16,399 | G104: 77.41 | H104: NSE
A105: 2024-08-08 | B105: ARENTERP | C105: Rajdharshan Inds Ltd | D105: BONANZA PORTFOLIO LTD | E105: BUY | F105: 7,514 | G105: 77.26 | H105: NSE
A106: 2024-08-08 | B106: ARENTERP | C106: Rajdharshan Inds Ltd | D106: LIESHA CORPORATION PRIVATE LIMITED . | E106: BUY | F106: 60,214 | G106: 78.35 | H106: NSE
A107: 2024-08-08 | B107: ASHALOG | C107: Ashapura Logistics Ltd | D107: MANSI SHARE AND STOCK ADVISORS PVT LTD | E107: BUY | F107: 235,000 | G107: 158.66 | H107: NSE
A108: 2024-08-08 | B108: BLS | C108: BLS Intl Servs Ltd | D108: SW CAPITAL PRIVATE LIMITED | E108: BUY | F108: 2,269,334 | G108: 398.97 | H108: NSE
A109: 2024-08-08 | B109: DCW | C109: DCW Ltd | D109: ALBULA INVESTMENT FUND LTD | E109: BUY | F109: 2,464,733 | G109: 71.35 | H109: NSE
A110: 2024-08-08 | B110: DHARIWAL | C110: Dhariwalcorp Limited | D110: MULTIPLIER SHARE & STOCK ADVISORS PRIVATE LIMITED | E110: BUY | F110: 120,000 | G110: 146.25 | H110: NSE
A111: 2024-08-08 | B111: DHARIWAL | C111: Dhariwalcorp Limited | D111: SETU SECURITIES PVT LTD | E111: BUY | F111: 48,000 | G111: 142.89 | H111: NSE
A112: 2024-08-08 | B112: DHARIWAL | C112: Dhariwalcorp Limited | D112: SAHASTRAA ADVISORS PRIVATE LIMITED | E112: BUY | F112: 56,400 | G112: 149.43 | H112: NSE
A113: 2024-08-08 | B113: DHARIWAL | C113: Dhariwalcorp Limited | D113: BIREN P GANDHI | E113: BUY | F113: 72,000 | G113: 150 | H113: NSE
A114: 2024-08-08 | B114: DHTL | C114: Docmode Health Tech Ltd | D114: RAMESH KUMAR JAIN | E114: BUY | F114: 16,800 | G114: 94.3 | H114: NSE
A115: 2024-08-08 | B115: FUSION | C115: Fusion Micro Finance Ltd | D115: GRAVITON RESEARCH CAPITAL LLP | E115: BUY | F115: 607,151 | G115: 318.48 | H115: NSE
A116: 2024-08-08 | B116: GACMDVR-RE | C116: GACM Technologies Limited | D116: KINJAL TAPANKUMAR PATEL | E116: BUY | F116: 521,342 | G116: 0.42 | H116: NSE
A117: 2024-08-08 | B117: GATECH-RE | C117: GACM Technologies Limited | D117: JAIN PREDEEP | E117: BUY | F117: 2,001,350 | G117: 0.06 | H117: NSE
A118: 2024-08-08 | B118: GATECH-RE | C118: GACM Technologies Limited | D118: ABHI RAJESHKUMAR PATEL | E118: BUY | F118: 4,892,560 | G118: 0.06 | H118: NSE
A119: 2024-08-08 | B119: HFCL | C119: HFCL Limited | D119: HRTI PRIVATE LIMITED | E119: BUY | F119: 8,155,806 | G119: 139.92 | H119: NSE
A120: 2024-08-08 | B120: IGARASHI | C120: Igarashi Motors India Lim | D120: GRAVITON RESEARCH CAPITAL LLP | E120: BUY | F120: 237,525 | G120: 649.46 | H120: NSE
A121: 2024-08-08 | B121: IITL | C121: Industrial Inv Trust Ltd | D121: NARESH MITTAL | E121: BUY | F121: 400,000 | G121: 245 | H121: NSE
A122: 2024-08-08 | B122: IITL | C122: Industrial Inv Trust Ltd | D122: MADHUKAR SHETH | E122: BUY | F122: 189 | G122: 251.74 | H122: NSE
A123: 2024-08-08 | B123: ITDCEM | C123: ITD Cementation India Lim | D123: QE SECURITIES LLP | E123: BUY | F123: 906,214 | G123: 537.41 | H123: NSE
A124: 2024-08-08 | B124: ITDCEM | C124: ITD Cementation India Lim | D124: GRAVITON RESEARCH CAPITAL LLP | E124: BUY | F124: 1,085,376 | G124: 531.96 | H124: NSE
A125: 2024-08-08 | B125: KSHITIJPOL | C125: Kshitij Polyline Limited | D125: YMD FINANCIAL CONSULTANCY PRIVATE LIMITED | E125: BUY | F125: 2,012,031 | G125: 6.41 | H125: NSE
A126: 2024-08-08 | B126: KSHITIJPOL | C126: Kshitij Polyline Limited | D126: JAI KUMAR BAID | E126: BUY | F126: 800,000 | G126: 6.74 | H126: NSE
A127: 2024-08-08 | B127: LXCHEM | C127: Laxmi Organic Indus Ltd | D127: GRAVITON RESEARCH CAPITAL LLP | E127: BUY | F127: 1,470,631 | G127: 273.08 | H127: NSE
A128: 2024-08-08 | B128: LYPSAGEMS | C128: Lypsa Gems & Jewel Ltd | D128: AMIT KUMAR JAIN | E128: BUY | F128: 352,559 | G128: 6.85 | H128: NSE
A129: 2024-08-08 | B129: LYPSAGEMS | C129: Lypsa Gems & Jewel Ltd | D129: SAMIMA PRAVEEN | E129: BUY | F129: 190,000 | G129: 7.06 | H129: NSE
A130: 2024-08-08 | B130: MAZDA | C130: Mazda Limited | D130: SHAH SHARAD KANAYALAL | E130: BUY | F130: 21,000 | G130: 1316.98 | H130: NSE
A131: 2024-08-08 | B131: MTNL | C131: Maha Tel Nigam Ltd. | D131: ASHWIN STOCKS AND INVESTMENT PRIVATE LIMITED | E131: BUY | F131: 584,853 | G131: 70.4 | H131: NSE
A132: 2024-08-08 | B132: MTNL | C132: Maha Tel Nigam Ltd. | D132: QE SECURITIES LLP | E132: BUY | F132: 1,427,741 | G132: 69.38 | H132: NSE
A133: 2024-08-08 | B133: MTNL | C133: Maha Tel Nigam Ltd. | D133: HRTI PRIVATE LIMITED | E133: BUY | F133: 823,108 | G133: 69.69 | H133: NSE
A134: 2024-08-08 | B134: NOVAAGRI | C134: Nova Agritech Limited | D134: GRAVITON RESEARCH CAPITAL LLP | E134: BUY | F134: 510,656 | G134: 86.5 | H134: NSE
A135: 2024-08-08 | B135: NOVAAGRI | C135: Nova Agritech Limited | D135: HRTI PRIVATE LIMITED | E135: BUY | F135: 450,852 | G135: 86.04 | H135: NSE
A136: 2024-08-08 | B136: ORTINLAB | C136: Ortin Laboratories Ltd | D136: FLYONTRIP SERVICES PRIVATE LIMITED . | E136: BUY | F136: 80,000 | G136: 20.5 | H136: NSE
A137: 2024-08-08 | B137: OSWALGREEN | C137: Oswal Greentech Limited | D137: GRAVITON RESEARCH CAPITAL LLP | E137: BUY | F137: 1,715,070 | G137: 51.53 | H137: NSE
A138: 2024-08-08 | B138: PLATIND | C138: Platinum Industries Ltd | D138: GRAVITON RESEARCH CAPITAL LLP | E138: BUY | F138: 309,855 | G138: 344.86 | H138: NSE
A139: 2024-08-08 | B139: RAJINDLTD | C139: Rajputana Industries Ltd | D139: CAMELLIA TRADEX PRIVATE LIMITED | E139: BUY | F139: 198,000 | G139: 83.5 | H139: NSE
A140: 2024-08-08 | B140: SAKUMA | C140: Sakuma Exports Limited | D140: HRTI PRIVATE LIMITED | E140: BUY | F140: 1,706,266 | G140: 32.88 | H140: NSE
A141: 2024-08-08 | B141: SAKUMA | C141: Sakuma Exports Limited | D141: VIKRAMBHAI GOKALBHAI CHAUDHARI | E141: BUY | F141: 2,491,851 | G141: 33.16 | H141: NSE
A142: 2024-08-08 | B142: SAKUMA | C142: Sakuma Exports Limited | D142: CITADEL SECURITIES INDIA MARKETS PRIVATE LIMITED | E142: BUY | F142: 2,377,248 | G142: 32.56 | H142: NSE
A143: 2024-08-08 | B143: SANGHVIMOV | C143: Sanghvi Movers Ltd. | D143: GRAVITON RESEARCH CAPITAL LLP | E143: BUY | F143: 263,803 | G143: 822.91 | H143: NSE
A144: 2024-08-08 | B144: SANGINITA | C144: Sanginita Chemicals Limit | D144: MITTAL RIMPY | E144: BUY | F144: 251,107 | G144: 17.42 | H144: NSE
A145: 2024-08-08 | B145: SARTELE | C145: Sar Televenture Limited | D145: CRONY VYAPAR PVT LTD | E145: BUY | F145: 231,000 | G145: 263.2 | H145: NSE
A146: 2024-08-08 | B146: SHREYAS | C146: Shreyas Shipping & Logist | D146: GRAVITON RESEARCH CAPITAL LLP | E146: BUY | F146: 135,529 | G146: 381.59 | H146: NSE
A147: 2024-08-08 | B147: SNOWMAN | C147: Snowman Logistics Ltd. | D147: GRAVITON RESEARCH CAPITAL LLP | E147: BUY | F147: 1,637,249 | G147: 84.56 | H147: NSE
A148: 2024-08-08 | B148: SNOWMAN | C148: Snowman Logistics Ltd. | D148: HRTI PRIVATE LIMITED | E148: BUY | F148: 1,013,798 | G148: 84.2 | H148: NSE
A149: 2024-08-08 | B149: SPRL | C149: SP Refractories Limited | D149: SPEXTRA MULTIBIZ PRIVATE LIMITED | E149: BUY | F149: 12,000 | G149: 262.06 | H149: NSE
A150: 2024-08-08 | B150: SSEGL | C150: Sathlokhar Syn E&C Glob L | D150: ISHAAN TRADEFIN LLP | E150: BUY | F150: 153,000 | G150: 222.95 | H150: NSE
A151: 2024-08-08 | B151: SSEGL | C151: Sathlokhar Syn E&C Glob L | D151: GIRIRAJ STOCK BROKING PRIVATE LIMITED | E151: BUY | F151: 2,000 | G151: 246.35 | H151: NSE
A152: 2024-08-08 | B152: SSEGL | C152: Sathlokhar Syn E&C Glob L | D152: MULTIPLIER SHARE & STOCK ADVISORS PRIVATE LIMITED | E152: BUY | F152: 200,000 | G152: 222.95 | H152: NSE
A153: 2024-08-08 | B153: SYMPHONY | C153: Symphony Limited | D153: GRAVITON RESEARCH CAPITAL LLP | E153: BUY | F153: 347,100 | G153: 1649.31 | H153: NSE
A154: 2024-08-08 | B154: TATACON-RE | C154: TATA CONSUMER PRODUCT LTD | D154: ARB MAESTRO | E154: BUY | F154: 185,752 | G154: 360.31 | H154: NSE
A155: 2024-08-08 | B155: TBZ | C155: Trib Bhimji Zaveri Ltd | D155: GRAVITON RESEARCH CAPITAL LLP | E155: BUY | F155: 471,603 | G155: 169.86 | H155: NSE
A156: 2024-08-08 | B156: TCNSBRANDS | C156: TCNS Clothing Co. Limited | D156: KHAZANA TRADELINKS PRIVATE LIMITED | E156: BUY | F156: 500,000 | G156: 560 | H156: NSE
A157: 2024-08-08 | B157: TCNSBRANDS | C157: TCNS Clothing Co. Limited | D157: FLOWERS VALLEY PVT LTD | E157: BUY | F157: 600,000 | G157: 559.88 | H157: NSE
A158: 2024-08-08 | B158: TERASOFT | C158: Tera Software Limited | D158: MULTIPLIER SHARE & STOCK ADVISORS PRIVATE LIMITED | E158: BUY | F158: 75,000 | G158: 89.11 | H158: NSE
A159: 2024-08-08 | B159: VENKEYS | C159: Venky's (India) Limited | D159: GRAVITON RESEARCH CAPITAL LLP | E159: BUY | F159: 106,267 | G159: 2332.39 | H159: NSE
A160: 2024-08-08 | B160: VPRPL | C160: Vishnu Prakash R Pungli L | D160: GRAVITON RESEARCH CAPITAL LLP | E160: BUY | F160: 677,745 | G160: 281.55 | H160: NSE
A161: 2024-08-08 | B161: 20MICRONS | C161: 20 Microns Limited | D161: GRAVITON RESEARCH CAPITAL LLP | E161: SELL | F161: 189,927 | G161: 306.16 | H161: NSE
A162: 2024-08-08 | B162: AKASH | C162: Akash Infra-Projects Ltd | D162: KHANT PIYUSHKUMAR | E162: SELL | F162: 37,195 | G162: 42.02 | H162: NSE
A163: 2024-08-08 | B163: AKSHAR | C163: Akshar Spintex Limited | D163: SETU SECURITIES PVT LTD | E163: SELL | F163: 3,668,540 | G163: 2.18 | H163: NSE
A164: 2024-08-08 | B164: AKSHAR | C164: Akshar Spintex Limited | D164: MULTIPLIER SHARE & STOCK ADVISORS PRIVATE LIMITED | E164: SELL | F164: 6,003,170 | G164: 2.18 | H164: NSE
A165: 2024-08-08 | B165: AKSHAR | C165: Akshar Spintex Limited | D165: CHANDAN CHAURASIYA | E165: SELL | F165: 5,000,000 | G165: 2.18 | H165: NSE
A166: 2024-08-08 | B166: AKSHAR | C166: Akshar Spintex Limited | D166: REKHABEN HARIKRUSHNABHAI CHAUHAN | E166: SELL | F166: 22,200,000 | G166: 2.35 | H166: NSE
A167: 2024-08-08 | B167: AKSHAR | C167: Akshar Spintex Limited | D167: SILONI UPPAL | E167: SELL | F167: 5,596,823 | G167: 2.24 | H167: NSE
A168: 2024-08-08 | B168: AKSHAR | C168: Akshar Spintex Limited | D168: DHRUV GANJI | E168: SELL | F168: 12,228,655 | G168: 2.22 | H168: NSE
A169: 2024-08-08 | B169: AKSHAR | C169: Akshar Spintex Limited | D169: SHUBHAM ASHOKBHAI PATEL | E169: SELL | F169: 2,500,000 | G169: 2.18 | H169: NSE
A170: 2024-08-08 | B170: AKSHAR | C170: Akshar Spintex Limited | D170: VIKRAMBHAI GOKALBHAI CHAUDHARI | E170: SELL | F170: 15,854,515 | G170: 2.23 | H170: NSE
A171: 2024-08-08 | B171: AKSHAR | C171: Akshar Spintex Limited | D171: AMIT VALLABHBHAI GADHIYA | E171: SELL | F171: 5,500,000 | G171: 2.35 | H171: NSE
A172: 2024-08-08 | B172: AKSHAR | C172: Akshar Spintex Limited | D172: HARIKRISHNA SHAMJIBHAI CHAUHAN | E172: SELL | F172: 5,000,000 | G172: 2.35 | H172: NSE
A173: 2024-08-08 | B173: ANTGRAPHIC | C173: Antarctica Graphics Ltd | D173: VIBRANT SECURITIES PVT. LTD | E173: SELL | F173: 1,050,064 | G173: 1.52 | H173: NSE
A174: 2024-08-08 | B174: APOLLO | C174: Apollo Micro Systems Ltd | D174: NEXPACT LIMITED | E174: SELL | F174: 1,600,000 | G174: 111.95 | H174: NSE
A175: 2024-08-08 | B175: ARENTERP | C175: Rajdharshan Inds Ltd | D175: BONANZA PORTFOLIO LTD | E175: SELL | F175: 18,405 | G175: 77 | H175: NSE
A176: 2024-08-08 | B176: ARENTERP | C176: Rajdharshan Inds Ltd | D176: ARPIT JAIN HUF | E176: SELL | F176: 92,001 | G176: 78.34 | H176: NSE
A177: 2024-08-08 | B177: ARENTERP | C177: Rajdharshan Inds Ltd | D177: POOJA JAIN | E177: SELL | F177: 65,000 | G177: 77.27 | H177: NSE
A178: 2024-08-08 | B178: ARENTERP | C178: Rajdharshan Inds Ltd | D178: YUGA STOCKS AND COMMODITIES PRIVATE LIMITED . | E178: SELL | F178: 41,981 | G178: 77.71 | H178: NSE
A179: 2024-08-08 | B179: ARENTERP | C179: Rajdharshan Inds Ltd | D179: TRANSGLOBAL SECURITIES LTD | E179: SELL | F179: 40,359 | G179: 78.38 | H179: NSE
A180: 2024-08-08 | B180: ARENTERP | C180: Rajdharshan Inds Ltd | D180: KIRAN TRIVEDI HUF | E180: SELL | F180: 7,457 | G180: 76.92 | H180: NSE
A181: 2024-08-08 | B181: ARENTERP | C181: Rajdharshan Inds Ltd | D181: ACHINTYA SECURITIES PRIVATE LIMITED | E181: SELL | F181: 38,341 | G181: 78.3 | H181: NSE
A182: 2024-08-08 | B182: ARENTERP | C182: Rajdharshan Inds Ltd | D182: PRADEEP GUPTA | E182: SELL | F182: 16,535 | G182: 76.71 | H182: NSE
A183: 2024-08-08 | B183: ARENTERP | C183: Rajdharshan Inds Ltd | D183: MANISH VERMA | E183: SELL | F183: 17,000 | G183: 75.35 | H183: NSE
A184: 2024-08-08 | B184: ARENTERP | C184: Rajdharshan Inds Ltd | D184: LIESHA CORPORATION PRIVATE LIMITED . | E184: SELL | F184: 79,208 | G184: 77.58 | H184: NSE
A185: 2024-08-08 | B185: ARENTERP | C185: Rajdharshan Inds Ltd | D185: TRIMURTI CAPITAL BROKING LLP | E185: SELL | F185: 5,994 | G185: 76.48 | H185: NSE
A186: 2024-08-08 | B186: ASHALOG | C186: Ashapura Logistics Ltd | D186: MANSI SHARE AND STOCK ADVISORS PVT LTD | E186: SELL | F186: 60,000 | G186: 161.99 | H186: NSE
A187: 2024-08-08 | B187: ASHALOG | C187: Ashapura Logistics Ltd | D187: JITENDRA MULARAM CHOUDHARY | E187: SELL | F187: 71,000 | G187: 158.78 | H187: NSE
A188: 2024-08-08 | B188: ATAM | C188: Atam Valves Limited | D188: PARAG COMMOSALES | E188: SELL | F188: 80,000 | G188: 175 | H188: NSE
A189: 2024-08-08 | B189: BLS | C189: BLS Intl Servs Ltd | D189: SW CAPITAL PRIVATE LIMITED | E189: SELL | F189: 2,274,334 | G189: 398.18 | H189: NSE
A190: 2024-08-08 | B190: DCW | C190: DCW Ltd | D190: LTS INVESTMENT FUND LTD | E190: SELL | F190: 2,464,733 | G190: 71.35 | H190: NSE
A191: 2024-08-08 | B191: FUSION | C191: Fusion Micro Finance Ltd | D191: GRAVITON RESEARCH CAPITAL LLP | E191: SELL | F191: 607,151 | G191: 318.34 | H191: NSE
A192: 2024-08-08 | B192: GATECH-RE | C192: GACM Technologies Limited | D192: UMAKUMARI NANDURI | E192: SELL | F192: 2,000,000 | G192: 0.06 | H192: NSE
A193: 2024-08-08 | B193: GATECH-RE | C193: GACM Technologies Limited | D193: SATYAVENKATA SURYA RAMAKRISHNAMRAJU NAMBURI | E193: SELL | F193: 2,533,900 | G193: 0.06 | H193: NSE
A194: 2024-08-08 | B194: GATECH-RE | C194: GACM Technologies Limited | D194: BAGARIA PROPERTIES AND INVESTMENT PRIVATE LIMITED | E194: SELL | F194: 6,972,440 | G194: 0.05 | H194: NSE
A195: 2024-08-08 | B195: GATECH-RE | C195: GACM Technologies Limited | D195: PAREKH HARIT KARTIK | E195: SELL | F195: 3,028,349 | G195: 0.06 | H195: NSE
A196: 2024-08-08 | B196: GATECH-RE | C196: GACM Technologies Limited | D196: SAMBASIVA RAO NANDURI | E196: SELL | F196: 2,152,000 | G196: 0.06 | H196: NSE
A197: 2024-08-08 | B197: GATECH-RE | C197: GACM Technologies Limited | D197: NANDURI SATVIKA | E197: SELL | F197: 2,000,000 | G197: 0.06 | H197: NSE
A198: 2024-08-08 | B198: GATECH-RE | C198: GACM Technologies Limited | D198: SAHITHI KALYANA NANDURI | E198: SELL | F198: 2,699,300 | G198: 0.05 | H198: NSE
A199: 2024-08-08 | B199: HFCL | C199: HFCL Limited | D199: HRTI PRIVATE LIMITED | E199: SELL | F199: 8,146,652 | G199: 140.08 | H199: NSE
A200: 2024-08-08 | B200: IGARASHI | C200: Igarashi Motors India Lim | D200: GRAVITON RESEARCH CAPITAL LLP | E200: SELL | F200: 237,525 | G200: 649.87 | H200: NSE
A201: 2024-08-08 | B201: IITL | C201: Industrial Inv Trust Ltd | D201: MADHUKAR SHETH | E201: SELL | F201: 498,813 | G201: 245 | H201: NSE
A202: 2024-08-08 | B202: ITDCEM | C202: ITD Cementation India Lim | D202: QE SECURITIES LLP | E202: SELL | F202: 966,519 | G202: 539.49 | H202: NSE
A203: 2024-08-08 | B203: ITDCEM | C203: ITD Cementation India Lim | D203: GRAVITON RESEARCH CAPITAL LLP | E203: SELL | F203: 1,085,376 | G203: 532.46 | H203: NSE
A204: 2024-08-08 | B204: JALAN | C204: Jalan Transolu. India Ltd | D204: VINOD KUMAR | E204: SELL | F204: 93,000 | G204: 3.65 | H204: NSE
A205: 2024-08-08 | B205: JHS | C205: JHS Svendgaard Laboratori | D205: SIXTH SENSE INDIA OPPORTUNITIES 11 | E205: SELL | F205: 500,000 | G205: 24.44 | H205: NSE
A206: 2024-08-08 | B206: KSHITIJPOL | C206: Kshitij Polyline Limited | D206: YMD FINANCIAL CONSULTANCY PRIVATE LIMITED | E206: SELL | F206: 502,718 | G206: 6.77 | H206: NSE
... 35 more rows

Sheet Call Tracker (Equity & F&O)
M5: Back To Main Page
A6: Retail Research Technical Calls & Fundamental Performance Report for the month of July-2024
M7: =Main!B10 -> 2024-08-09
B8: Positional Call
A9: Sr.no | B9: Date | D9: Company | E9: Rec | F9: Rec Price | G9: Stop Loss*** | H9: Call Closed At | I9: Target | J9: Remark | K9: Profit / Loss per Share | L9: All charges | M9: Net Gain / Loss % | N9: Status | O9: Closed Date | P9: Market Closing Price | Q9: Second Buying Date
A10: 1 | B10: 2024-06-25 | D10: HAPPSTMNDS | E10: Accu | F10: 830 | G10: 795 | H10: 780 | I10: 900-950 | J10: Loss of Rs.50/- | K10: =H10-F10 -> -50 | L10: =(F10*-0.3)/100 -> -2.49 | M10: =(K10+L10)/F10 -> -6.32% | N10: Unsuccessful | O10: 2024-08-05 | R10: H
A11: 2 | B11: 2024-06-27 | D11: BAJAJ-AUTO | E11: Accu | F11: 9325 | G11: 8900 | H11: 9825 | I11: 10000-10400 | J11: Profit of Rs.500/- | K11: =H11-F11 -> 500 | L11: =(F11*-0.3)/100 -> -27.98 | M11: =(K11+L11)/F11 -> 5.06% | N11: Successful | O11: 2024-08-01 | R11: H
A12: 3 | B12: 2024-07-01 | D12: RELIANCE | E12: Accu | F12: 3075 | G12: 2940 | H12: 2900 | I12: 3300-3500 | J12: Loss of Rs.175/- | K12: -175 | L12: -9.23 | M12: -5.99% | N12: Unsuccessful | O12: 2024-08-05 | R12: H
A13: 4 | B13: 2024-07-19 | D13: BAJAJFINSV | E13: Accu | F13: 1617 | G13: 1560 | H13: 1555 | I13: 1720-1800 | J13: Loss of Rs.62/- | K13: =H13-F13 -> -62 | L13: =(F13*-0.3)/100 -> -4.85 | M13: =(K13+L13)/F13 -> -4.13% | N13: Unsuccessful | O13: 2024-08-08 | R13: H
A14: 5 | B14: 2024-07-25 | D14: NESTLEIND | E14: Accu | F14: 2390-2470 | G14: 2330 | I14: 2650-2800 | J14: Open | P14: =VLOOKUP(D14,'MidCap Intra'!$B$11:$C$571,2,0) -> 2489.10 | R14: H
A15: 6 | B15: 2024-07-26 | D15: LTF | E15: Accu | F15: 170.5-176.5 | G15: 164 | I15: 195-205 | J15: Open | P15: =VLOOKUP(D15,'MidCap Intra'!$B$11:$C$571,2,0) -> 165.65 | R15: H
A16: 7 | B16: 2024-07-26 | D16: RKFORGE | E16: Accu | F16: 840 | G16: 790 | H16: 882 | I16: 900-950 | J16: Profit of Rs.42/- | K16: =H16-F16 -> 42 | L16: =(F16*-0.3)/100 -> -2.52 | M16: =(K16+L16)/F16 -> 4.70% | N16: Successful | O16: 2024-08-02 | R16: H
A17: 8 | B17: 2024-07-29 | D17: CARBORUNIV | E17: Accu | F17: 1710 | G17: 1645 | H17: 1605 | I17: 1840-1940 | J17: Loss of Rs.105/- | K17: -105 | L17: -5.13 | M17: -6.44% | N17: Unsuccessful | O17: 2024-08-05 | R17: H
A18: 9 | B18: 2024-07-30 | D18: LTTS | E18: Accu | F18: 5040-5170 | G18: 4800 | I18: 5540-5900 | J18: Open | P18: =VLOOKUP(D18,'MidCap Intra'!$B$11:$C$571,2,0) -> 4896.35 | R18: K
A19: 10 | B19: 2024-07-30 | D19: VBL | E19: Accu | F19: 1565 | G19: 1495 | H19: 1490 | I19: 1700-1800 | J19: Loss of Rs.75/- | K19: =H19-F19 -> -75 | L19: =(F19*-0.3)/100 -> -4.70 | M19: =(K19+L19)/F19 -> -5.09% | N19: Unsuccessful | O19: 2024-08-06 | R19: H
A20: 11 | B20: 2024-07-30 | D20: IOC | E20: Accu | F20: 177.5 | G20: 167 | H20: 167 | I20: 195-210 | J20: Loss of Rs.10.5/- | K20: =H20-F20 -> -10.5 | L20: =(F20*-0.3)/100 -> -0.53 | M20: =(K20+L20)/F20 -> -6.22% | N20: Unsuccessful | O20: 2024-08-06 | R20: H
A21: 12 | B21: 2024-08-01 | D21: TRENT | E21: Accu | F21: 5700 | G21: 5400 | H21: 5375 | I21: 6200-6500 | J21: Loss of Rs.325/- | K21: =H21-F21 -> -325 | L21: =(F21*-0.3)/100 -> -17.10 | M21: =(K21+L21)/F21 -> -6.00% | N21: Unsuccessful | O21: 2024-08-05
A22: 13 | B22: 2024-08-06 | D22: TATAMOTORS | E22: Accu | F22: 969-1029 | G22: 948 | I22: 1120-1200 | J22: Open | P22: =VLOOKUP(D22,'MidCap Intra'!$B$11:$C$571,2,0) -> 1041.75
A23: 14 | B23: 2024-08-06 | D23: LT | E23: Accu | F23: 3495-3595 | G23: 3440 | I23: 3750-3900 | J23: Open | P23: =VLOOKUP(D23,'MidCap Intra'!$B$11:$C$571,2,0) -> 3553.55
A24: 15 | B24: 2024-08-06 | D24: NIACL | E24: Accu | F24: 259 | G24: 246 | H24: 271.5 | I24: 284-300 | J24: Profit of Rs.12.5/- | K24: =H24-F24 -> 12.5 | L24: =(F24*-0.3)/100 -> -0.78 | M24: =(K24+L24)/F24 -> 4.53% | N24: Successful | O24: 2024-08-08
A25: 16 | B25: 2024-08-06 | D25: BEL | E25: Accu | F25: 280-292 | G25: 268 | I25: 320-340 | J25: Open | P25: =VLOOKUP(D25,'MidCap Intra'!$B$11:$C$571,2,0) -> 298.25
A26: 17 | B26: 2024-08-08 | D26: BHARTIARTL | E26: Accu | F26: 1426-1456 | G26: 1390 | I26: 1530-1600 | J26: Open | P26: =VLOOKUP(D26,'MidCap Intra'!$B$11:$C$571,2,0) -> 1451.80
A27: 18 | B27: 2024-08-08 | D27: ASHOKLEY | E27: Accu | F27: 241.5-247.5 | G27: 232 | I27: 262-277 | J27: Open | P27: =VLOOKUP(D27,'MidCap Intra'!$B$11:$C$571,2,0) -> 246.30
A28: 19 | B28: 2024-08-08 | D28: POONAWALLA | E28: Accu | F28: 358-368 | G28: 345 | I28: 400-430 | J28: Open | P28: =VLOOKUP(D28,'MidCap Intra'!$B$11:$C$571,2,0) -> 368.80
A33: CLBS = Closing Basis ***
A34: Dividend adjusted <> | F34: Reinitiated $
A35: Part book {} | D35: s | F35: Revised stoploss #
A39: Master Trade High Risk
A40: Sr.no | B40: Date | D40: Company | E40: Rec | F40: Rec Price | G40: Stop Loss | H40: Call Closed At | I40: Target | J40: Remark | K40: Profit / Loss per share | L40: All charges | M40: Gain / Loss per Lot | N40: Lot | O40: Status | P40: Closed Date
A45: Master Trade Medium Risk
A46: Sr.no | B46: Date | D46: Company | E46: Rec | F46: Rec Price | G46: Stop Loss | H46: Call Closed At | I46: Target | J46: Remark | K46: Profit/ Loss per lot | L46: All charges | M46: Gain / Loss per Lot | N46: Lot | O46: Status | P46: Closed Date
A49: Techno -Funda (positional)
A50: Sr.no | B50: Date | D50: Company | E50: Rec | F50: Rec Price | G50: Stop Loss*** | H50: Call Closed At | I50: Target | J50: Remark | K50: Profit / Loss per Share/Lot | L50: All charges | M50: Net Gain / Loss % | N50: Status | O50: Closed Date | P50: Market Closing Price | Q50: Second Buying Date
A51: 1 | B51: 2024-03-05 | D51: TRIDENT | E51: Accu <> | F51: 38.94 | G51: 34.64 | I51: 47.64-51.64 | J51: Open | P51: =VLOOKUP(D51,'MidCap Intra'!$B$11:$C$571,2,0) -> 38.01 | R51: H
A52: 2 | B52: 2024-07-25 | D52: SCHAEFFLER | E52: Accu | F52: 3825-4025 | G52: 3600 | I52: 4500-5000 | J52: Open | P52: =VLOOKUP(D52,'MidCap Intra'!$B$11:$C$571,2,0) -> 3896.85 | R52: H
A55: CLBS = Closing Basis *** | F55: Reinitiated $
A56: Dividend adjusted <> | F56: Revised stoploss # | H56: .................
B65: Investment Idea
A66: Sr.no | B66: Date | D66: Company | E66: Rec | F66: Rec Price | G66: Point of Review | H66: Close Rate | I66: Target | J66: Remark | K66: Profit / Loss per Share | L66: Gain / Loss % | M66: Status | N66: Closed Date
A67: 1 | B67: 2013-11-01 | D67: L&T Finance Holding | E67: Accu | F67: 82.00 | G67: - | H67: 100 | I67: 100.00 | J67: Target Achieved | K67: =H67-F67 -> 18.00 | L67: =K67/F67 -> 21.95% | M67: Successful | N67: 2016-10-14
A68: 2 | B68: 2014-06-04 | D68: Finolex Inds | E68: Buy | F68: 257.00 | G68: - | H68: 300 | I68: 300.00 | J68: Target Achieved | K68: 43.00 | L68: 16.73% | M68: Successful | N68: 2014-07-02
A69: 3 | B69: 2014-07-08 | D69: JK Cement | E69: Buy | F69: 393.00 | G69: - | H69: 468 | I69: 468.00 | J69: Target Achieved | K69: 75.00 | L69: 19.08% | M69: Successful | N69: 2014-08-12
A70: 4 | B70: 2014-08-06 | D70: Finolex Cables | E70: Buy | F70: 205.00 | G70: - | H70: 275 | I70: 250.00 | J70: Target Achieved | K70: 70.00 | L70: 34.15% | M70: Successful | N70: 2014-11-19
A71: 5 | B71: 2014-09-04 | D71: Exide Inds | E71: Buy | F71: 162.00 | G71: - | H71: 190 | I71: 190.00 | J71: Target Achieved | K71: 28.00 | L71: 17.28% | M71: Successful | N71: 2015-01-02
A72: 6 | B72: 2014-09-04 | D72: Deepak Nitrite | E72: Buy | F72: 75.00 | G72: - | H72: 91.5 | I72: 95-100 | J72: Profit of Rs.16.50/- | K72: 16.50 | L72: 22.00% | M72: Successful | N72: 2014-11-11
A73: 7 | B73: 2014-10-01 | D73: Mercks | E73: Buy | F73: 850.00 | G73: - | H73: 982.5 | I73: 1050.00 | J73: Profit of Rs.132.50/- | K73: 132.50 | L73: 15.59% | M73: Successful | N73: 2015-02-04
A74: 8 | B74: 2014-10-01 | D74: Grindwell Norton | E74: Buy | F74: 475.00 | G74: - | H74: 515 | I74: 600.00 | J74: Profit of Rs.40/- | K74: 40.00 | L74: 8.42% | M74: Successful | N74: 2014-10-27
A75: 9 | B75: 2014-10-01 | D75: Snowman Logistics | E75: Buy | F75: 86.00 | G75: - | H75: 99 | I75: 140.00 | J75: Profit of Rs.13.00/- | K75: 13.00 | L75: 15.12% | M75: Successful | N75: 2014-10-27
A76: 10 | B76: 2014-10-14 | D76: Birla Corp | E76: Buy | F76: 496.60 | G76: - | H76: 621 | I76: 580.00 | J76: Target Achieved | K76: 124.40 | L76: 25.05% | M76: Successful | N76: 2016-08-23
A77: 11 | B77: 2014-10-14 | D77: Ultratech Cem | E77: Buy | F77: 2481.90 | G77: - | H77: 2840 | I77: 2870.00 | J77: Profit of Rs.358.10/- | K77: 358.10 | L77: 14.43% | M77: Successful | N77: 2015-01-13
A78: 12 | B78: 2014-10-16 | D78: Sintex Inds | E78: Buy | F78: 84.50 | G78: - | H78: 93 | I78: 110.00 | J78: Profit of Rs.8.50/- | K78: 8.50 | L78: 10.06% | M78: Successful | N78: 2014-10-27
A79: 13 | B79: 2014-10-16 | D79: HSIL | E79: Buy | F79: 401.00 | G79: - | H79: 428 | I79: 450.00 | J79: Profit of Rs.27.00/- | K79: 27.00 | L79: 6.73% | M79: Successful | N79: 2015-01-16
A80: 14 | B80: 2014-10-16 | D80: Eveready Inds | E80: Buy | F80: 101.00 | G80: - | H80: 112 | I80: 120.00 | J80: Profit of Rs.11.00/- | K80: 11.00 | L80: 10.89% | M80: Successful | N80: 2014-10-27
A81: 15 | B81: 2014-11-11 | D81: Pennar Inds | E81: Buy | F81: 59.00 | G81: - | H81: 76 | I81: 76.00 | J81: Target Achieved | K81: 17.00 | L81: 28.81% | M81: Successful | N81: 2017-10-24
A82: 16 | B82: 2014-11-11 | D82: Snowman Logistics | E82: Buy | F82: 99.00 | G82: - | H82: 120 | I82: 120.00 | J82: Profit of Rs.21/- | K82: 21.00 | L82: 21.21% | M82: Successful | N82: 2014-11-17
A83: 17 | B83: 2014-11-13 | D83: Dharamsi Morarji Chem | E83: Buy | F83: 22.00 | G83: - | H83: 33.55 | I83: 32.00 | J83: Profit of Rs 11.55/- | K83: 11.55 | L83: 52.50% | M83: Successful | N83: 2015-07-03
A84: 18 | B84: 2014-12-03 | D84: Tatachem | E84: Buy | F84: 440.00 | G84: - | H84: 520 | I84: 520.00 | J84: Profit of Rs 80.00/- | K84: 80.00 | L84: 18.18% | M84: Successful | N84: 2015-07-23
A85: 19 | B85: 2014-12-03 | D85: Advanta | E85: Buy | F85: 360.00 | G85: - | H85: 427 | I85: 425.00 | J85: Profit of Rs.67.00/- | K85: 67.00 | L85: 18.61% | M85: Successful | N85: 2015-02-23
A86: 20 | B86: 2015-01-08 | D86: GDL | E86: Buy | F86: 360.00 | G86: - | H86: 455 | I86: 420.00 | J86: Profit of Rs.95.00/- | K86: 95.00 | L86: 26.39% | M86: Successful | N86: 2015-01-20
A87: 21 | B87: 2015-01-08 | D87: NRB Bearing | E87: Buy | F87: 130.00 | H87: 175.5 | I87: 165.00 | J87: Profit of Rs 45.50/- | K87: 45.50 | L87: 35.00% | M87: Successful | N87: 2017-12-19
A88: 22 | B88: 2015-02-05 | D88: GSFC | E88: Accu | F88: 98.00 | H88: 120 | I88: 120.00 | J88: Target Achieved | K88: 22.00 | L88: 22.45% | M88: Successful | N88: 2017-01-18
A89: 23 | B89: 2015-02-05 | D89: Sundrmfast | E89: Accu | F89: 196.00 | H89: 262 | I89: 255.00 | J89: Target Achieved | K89: 66.00 | L89: 33.67% | M89: Successful | N89: 2016-08-17
A90: 24 | B90: 2015-03-04 | D90: GPPL | E90: Accu | F90: 235 | H90: 77.00 | I90: 280-285 | J90: Loss of Rs.158/- | K90: -158.00 | L90: -67.23% | M90: Unsuccessful | N90: 2019-02-26
A91: 25 | B91: 2015-03-04 | D91: ORIENTCEM | E91: Accu | F91: 185.00 | H91: 224 | I91: 220-225 | J91: Target Achieved | K91: 39.00 | L91: 21.08% | M91: Successful | N91: 2016-10-04
A92: 26 | B92: 2015-03-27 | D92: PFS | E92: Accu | F92: 49.5 | H92: 15.85 | I92: 67.00 | J92: Loss of Rs.33.65/- | K92: -33.65 | L92: -68% | M92: Unsuccessful | N92: 2019-06-11
A93: 27 | B93: 2015-03-30 | D93: Walchandnagar Ind Ltd | E93: Accu | F93: 183.50 | H93: 219 | I93: 218.00 | J93: Profit of Rs.35.50/- | K93: 35.50 | L93: 19.35% | M93: Successful | N93: 2015-04-09
A94: 28 | B94: 2015-04-20 | D94: Kalpataru Power Transmission Ltd | E94: Accu | F94: =(227+237)/2 -> 232.00 | H94: 298 | I94: 298.00 | J94: Target Achieved | K94: 66.00 | L94: 28.45% | M94: Successful | N94: 2017-03-29
A95: 29 | B95: 2015-05-04 | D95: Mastek Ltd | E95: Buy | F95: 385.00 | H95: =212.5+331 -> 543.5 | I95: 510.00 | J95: Profit of Rs 158.50/- | K95: 158.50 | L95: 41.17% | M95: Successful | N95: 2015-08-19
A96: 30 | B96: 2015-05-04 | D96: Suprajit Eng | E96: Buy | F96: 115.50 | H96: 146 | I96: 142.00 | J96: Profit of Rs 30.50/- | K96: 30.50 | L96: 26.41% | M96: Successful | N96: 2015-07-17
A97: 31 | B97: 2015-05-27 | D97: TCI | E97: Buy | F97: 237.50 | H97: 279.5 | I97: 278.00 | J97: Target Achieved | K97: 42.00 | L97: 17.68% | M97: Successful | N97: 2015-08-06
A98: 32 | B98: 2015-06-19 | D98: HSIL | E98: Accu | F98: 340.00 | H98: 448 | I98: 448.00 | J98: Target Achieved | K98: 108.00 | L98: 31.76% | M98: Successful | N98: 2017-10-10
A99: 33 | B99: 2015-07-06 | D99: Capital First | E99: Accu | F99: 390.00 | H99: 460 | I99: 460.00 | J99: Target Achieved | K99: =H99-F99 -> 70.00 | L99: =K99/F99 -> 17.95% | M99: Successful | N99: 2016-04-18
A100: 34 | B100: 2015-07-10 | D100: Dolphin OffShore | E100: Accu | F100: 122.5 | H100: 61.00 | I100: 172.00 | J100: Loss of Rs.61.50/- | K100: -61.50 | L100: -50.20% | M100: Unsuccessful | N100: 2018-08-21
A101: 35 | B101: 2015-08-03 | D101: Allcargo logistics | E101: Accu | F101: 297.50 | H101: 350 | I101: 360.00 | J101: Profit of Rs 52.50/- | K101: 52.50 | L101: 17.65% | M101: Successful | N101: 2015-08-16
A102: 36 | B102: 2015-08-03 | D102: Camline Fine | E102: Accu | F102: 115.50 | H102: 149 | I102: 140.00 | J102: Profit of Rs 33.50/- | K102: 33.50 | L102: 29.00% | M102: Successful | N102: 2017-01-05
A103: 37 | B103: 2015-09-04 | D103: TCI | E103: Accu | F103: 226.00 | H103: 292 | I103: 292.00 | J103: Target Achieved | K103: 66.00 | L103: 29.20% | M103: Successful | N103: 2015-10-09
A104: 38 | B104: 2015-09-07 | D104: Kalpataru Power Transmission Ltd | E104: Accu | F104: 232.50 | H104: 312.5 | I104: 310.00 | J104: Target Achieved | K104: 80.00 | L104: 34.41% | M104: Successful | N104: 2017-03-29
A105: 39 | B105: 2015-09-21 | D105: LLOYD ELECTRIC & ENG LTD | E105: Accu | F105: 196.50 | H105: 238 | I105: 238.00 | J105: Target Achieved | K105: 41.50 | L105: 21.12% | M105: Successful | N105: 2015-10-14
A106: 40 | B106: 2015-09-24 | D106: L&T Finance Holding | E106: Accu | F106: 65.00 | H106: 82 | I106: 82.00 | J106: Target Achieved | K106: 17.00 | L106: 26.15% | M106: Successful | N106: 2016-07-27
A107: 41 | B107: 2015-10-14 | D107: KEC International ltd | E107: Accu | F107: 144.00 | H107: 182.5 | I107: 181.00 | J107: Target Achieved | K107: 38.50 | L107: 26.74% | M107: Successful | N107: 2017-03-23
A108: 42 | B108: 2015-10-14 | D108: Gruh Finance | E108: Accu | F108: 264.00 | H108: 311 | I108: 311.00 | J108: Target Achieved | K108: 47.00 | L108: 17.80% | M108: Successful | N108: 2016-08-22
A109: 43 | B109: 2015-11-10 | D109: Pidilitind | E109: Buy | F109: 549.50 | H109: 630 | I109: 630.00 | J109: Target Achieved | K109: 80.50 | L109: 14.65% | M109: Successful | N109: 2016-02-19
A110: 44 | B110: 2015-12-04 | D110: Zensar Technology | E110: Accu | F110: 1027.50 | H110: 1315 | I110: 1250.00 | J110: Target Achieved | K110: 287.50 | L110: 27.98% | M110: Successful | N110: 2018-05-24
A111: 45 | B111: 2015-12-29 | D111: Vinati Organics Ltd | E111: Accu | F111: 465.00 | H111: 540 | I111: 540.00 | J111: Target Achieved | K111: 75.00 | L111: 16.13% | M111: Successful | N111: 2016-06-09
A112: 46 | B112: 2016-01-11 | D112: GSFC | E112: Buy | F112: 81.00 | H112: 110 | I112: 110.00 | J112: Target Achieved | K112: 29.00 | L112: 35.80% | M112: Successful | N112: 2017-01-10
A113: 47 | B113: 2016-01-13 | D113: SSWL | E113: Buy | F113: 417.50 | H113: 547 | I113: 535.00 | J113: Target Achieved | K113: 129.50 | L113: 31.02% | M113: Successful | N113: 2016-07-27
A114: 48 | B114: 2016-02-08 | D114: Persistent System Ltd | E114: Accu | F114: 650.00 | H114: 800 | I114: 800.00 | J114: Target Achieved | K114: 150.00 | L114: 23.08% | M114: Successful | N114: 2018-02-23
A115: 49 | B115: 2016-03-04 | D115: UPL | E115: Accu | F115: 437.50 | H115: 504.5 | I115: 522.00 | J115: Profit of Rs.67/- | K115: 67.00 | L115: 15.31% | M115: Successful | N115: 2016-04-20
A116: 50 | B116: 2016-03-09 | D116: Ashoka Buildcon Ltd | E116: Accu | F116: 189.50 | H116: 218 | I116: 218.00 | J116: Target Achieved | K116: 28.50 | L116: 15.04% | M116: Successful | N116: 2017-10-26
A117: 51 | B117: 2016-04-11 | D117: PTC INDIA FIN SERV LTD | E117: Accu | F117: 36.5 | H117: 15.85 | I117: 60.00 | J117: Loss of Rs.20.65/- | K117: -20.65 | L117: -56.58% | M117: Unsuccessful | N117: 2019-06-11
A118: 52 | B118: 2016-04-12 | D118: CAMLINFINE $ | E118: Accu | F118: 93.00 | H118: 149 | I118: 140.00 | J118: Profit of Rs 56/- | K118: 56.00 | L118: 60.22% | M118: Successful | N118: 2017-01-05
A119: 53 | B119: 2016-04-12 | D119: Greaves Cotton Ltd. | E119: Accu | F119: 130.00 | H119: 150 | I119: 150-155 | J119: Target Achieved | K119: 20.00 | L119: 15.38% | M119: Successful | N119: 2016-07-13
A120: 54 | B120: 2016-04-13 | D120: DHFL | E120: Accu | F120: 196.00 | H120: 299 | I120: 299.00 | J120: Target Achieved | K120: 103.00 | L120: 52.55% | M120: Successful | N120: 2016-09-07
A121: 55 | B121: 2016-04-13 | D121: Magma | E121: Accu | F121: 88.00 | H121: 103 | I121: 103.00 | J121: Target Achieved | K121: 15.00 | L121: 17.05% | M121: Successful | N121: 2016-06-09
A122: 56 | B122: 2016-05-02 | D122: KEC International ltd $ | E122: Accu | F122: 127.50 | H122: 148 | I122: 148-150 | J122: Target Achieved | K122: =H122-F122 -> 20.50 | L122: =K122/F122 -> 16.08% | M122: Successful | N122: 2016-07-13
A123: 57 | B123: 2016-05-03 | D123: Mindtree | E123: Accu | F123: 675.00 | H123: 815 | I123: 790-800 | J123: Target Achieved | K123: =H123-F123 -> 140.00 | L123: =K123/F123 -> 20.74% | M123: Successful | N123: 2018-02-23
A124: 58 | B124: 2016-06-01 | D124: Atulauto | E124: Accu | F124: 500 | H124: 232.50 | I124: 565-570 | J124: Loss of Rs.267.50 /- | K124: =H124-F124 -> -267.50 | L124: =K124/F124 -> -53.50% | M124: Unsuccessful | N124: 2019-09-27
A125: 59 | B125: 2016-06-06 | D125: TRITURBINE | E125: Accu | F125: 110.00 | H125: 126.5 | I125: 125.00 | J125: Profit of Rs.16.50/- | K125: =H125-F125 -> 16.50 | L125: =K125/F125 -> 15.00% | M125: Successful | N125: 2016-07-01
A126: 60 | B126: 2016-06-17 | D126: Pennar Industries Ltd | E126: Accu | F126: 44.00 | H126: 69.5 | I126: 69.50 | J126: Profit of Rs.25.50/- | K126: =H126-F126 -> 25.50 | L126: =K126/F126 -> 57.95% | M126: Successful | N126: 2017-08-30
A127: 61 | B127: 2016-06-28 | D127: EVEREADY | E127: Accu | F127: 262.50 | H127: 340 | I127: 333.00 | J127: Profit of Rs.77.50/- | K127: 77.50 | L127: 29.52% | M127: Successful | N127: 2017-10-09
A128: 62 | B128: 2016-06-28 | D128: FIEMIND | E128: Accu | F128: 840.00 | H128: 1230 | I128: 1230.00 | J128: Target Achieved | K128: 390.00 | L128: 46.43% | M128: Successful | N128: 2016-10-06
A129: 63 | B129: 2016-07-05 | D129: Bajaj Corp Ltd | E129: Accu | F129: 395 | H129: =(468.5+342.5)/2 -> 405.50 | I129: 510.00 | J129: Profit of Rs.10.50/- | K129: =H129-F129 -> 10.50 | L129: =K129/F129 -> 3% | M129: Neutral | N129: 2019-05-21
A130: 64 | B130: 2016-08-02 | D130: GPPL $ | E130: Buy | F130: =169.5-12.8 -> 156.7 | H130: 77.00 | I130: 198-200 | J130: Loss of Rs.79.7/- | K130: -79.70 | L130: -50.86% | M130: Unsuccessful | N130: 2019-02-26
A131: 65 | B131: 2016-08-04 | D131: WONDERLA HOLIDAYS LTD | E131: Accu | F131: 400 | H131: 305.00 | I131: 475.00 | J131: Loss of Rs.95/- | K131: -95.00 | L131: -23.75% | M131: Unsuccessful | N131: 2019-05-21
A132: 66 | B132: 2016-08-11 | D132: CAMLINFINE | E132: Accu | F132: 86.50 | H132: 130 | I132: 130.00 | J132: Profit of Rs.43.50/- | K132: 43.50 | L132: 50.29% | M132: Successful | N132: 2017-12-22
A133: 67 | B133: 2016-08-18 | D133: GRANULES | E133: Accu | F133: 133.5 | H133: 126.50 | I133: 178.00 | J133: Exit | K133: -7.00 | L133: -5.24% | M133: Unsuccessful | N133: 2016-09-02
A134: 68 | B134: 2016-08-31 | D134: VA TECH WABAG | E134: Accu | F134: 560.00 | H134: 725 | I134: 725.00 | J134: Target Achieved | K134: 165.00 | L134: 29.46% | M134: Successful | N134: 2016-03-27
A135: 69 | B135: 2016-09-01 | D135: SKIPPER LIMITED | E135: Accu | F135: 160.50 | H135: 210 | I135: 210.00 | J135: Target Achieved | K135: 49.50 | L135: 30.84% | M135: Successful | N135: 2017-05-16
A136: 70 | B136: 2016-10-03 | D136: IFBIND | E136: Accu | F136: 430.00 | H136: 596 | I136: 575.00 | J136: Profit of Rs.166/- | K136: 166.00 | L136: 38.60% | M136: Successful | N136: 2017-02-03
A137: 71 | B137: 2016-10-14 | D137: ASIANTILES | E137: Accu | F137: 280.00 | H137: 345 | I137: 345.00 | J137: Target Achieved | K137: =H137-F137 -> 65.00 | L137: =K137/F137 -> 23.21% | M137: Successful | N137: 2017-03-20
A138: 72 | B138: 2016-10-14 | D138: DEEPIND | E138: Accu | F138: 245.00 | H138: 325.5 | I138: 330.00 | J138: Profit of Rs.80.5/- | K138: 80.50 | L138: =K138/F138 -> 32.86% | M138: Successful | N138: 2017-02-03
A139: 73 | B139: 2016-10-17 | D139: DCBBANK | E139: Accu | F139: 125.00 | H139: 160 | I139: 160.00 | J139: Target Achieved | K139: 35.00 | L139: 28.00% | M139: Successful | N139: 2017-03-09
A140: 74 | B140: 2016-10-17 | D140: ORIENTREF | E140: Accu | F140: 114.00 | H140: 145 | I140: 145.00 | J140: Target Achieved | K140: 31.00 | L140: =K140/F140 -> 27.19% | M140: Successful | N140: 2017-05-04
A141: 75 | B141: 2016-10-17 | D141: GANECOS | E141: Accu | F141: 212.00 | H141: 280 | I141: 276.00 | J141: Profit of Rs.68/- | K141: 68.00 | L141: =K141/F141 -> 32.08% | M141: Successful | N141: 2017-05-03
A142: 76 | B142: 2016-11-04 | D142: NBCC | E142: Accu | F142: 155.00 | H142: 210 | I142: 210.00 | J142: Profit of Rs.55/- | K142: 55.00 | L142: =K142/F142 -> 35.48% | M142: Successful | N142: 2017-07-28
A143: 77 | B143: 2016-12-06 | D143: PRECAM | E143: Accu | F143: 150.5 | H143: 72.50 | I143: 174.00 | J143: Loss of Rs.78/- | K143: -78.00 | L143: -51.83% | M143: Unsuccessful | N143: 2018-08-21
A144: 78 | B144: 2016-12-08 | D144: INFRATEL | E144: Accu | F144: 380.00 | H144: 478 | I144: 468.00 | J144: Target Achieved | K144: =H144-F144 -> 98.00 | L144: =K144/F144 -> 25.79% | M144: Successful | N144: 2017-10-17
A145: 79 | B145: 2016-12-30 | D145: GODREJPROP | E145: Accu | F145: 305.00 | H145: 375 | I145: 375.00 | J145: Target Achieved | K145: =H145-F145 -> 70.00 | L145: =K145/F145 -> 22.95% | M145: Successful | N145: 2017-02-02
A146: 80 | B146: 2017-01-04 | D146: DEEPAKNTR | E146: Accu | F146: 99.50 | H146: 158 | I146: 158.00 | J146: Target Achieved | K146: =H146-F146 -> 58.50 | L146: =K146/F146 -> 58.79% | M146: Successful | N146: 2017-06-12
A147: 81 | B147: 2017-01-04 | D147: DEEPAKNTR | E147: Accu | F147: 99.50 | H147: 158 | I147: 158.00 | J147: Target Achieved | K147: 58.50 | L147: 58.79% | M147: Successful | N147: 2017-06-12
A148: 82 | B148: 2017-02-20 | D148: RECLTD | E148: Accu | F148: 140.50 | H148: 220 | I148: 220.00 | J148: Target Achieved | K148: =H148-F148 -> 79.50 | L148: =K148/F148 -> 56.58% | M148: Successful | N148: 2017-05-09
A149: 83 | B149: 2017-02-20 | D149: SUBROS | E149: Accu | F149: 202.50 | H149: 234 | I149: 234.00 | J149: Target Achieved | K149: 31.50 | L149: 15.56% | M149: Successful | N149: 2017-04-11
A150: 84 | B150: 2017-03-24 | D150: VRLLOG | E150: Accu | F150: 300.50 | H150: 417.5 | I150: 420.00 | J150: Profit of Rs.117/- | K150: =H150-F150 -> 117.00 | L150: =K150/F150 -> 38.94% | M150: Successful | N150: 2017-12-01
A151: 85 | B151: 2017-03-24 | D151: FIEMIND | E151: Accu | F151: 850.00 | H151: 1042.5 | I151: 1023.00 | J151: Profit of Rs 192.50/- | K151: 192.50 | L151: 22.65% | M151: Successful | N151: 2017-04-05
A152: 86 | B152: 2017-04-05 | D152: RATNAMANI | E152: Accu | F152: 785.00 | H152: 930 | I152: 920.00 | J152: Profit of Rs.145/- | K152: =H152-F152 -> 145.00 | L152: =K152/F152 -> 18.47% | M152: Successful | N152: 2017-08-29
A153: 87 | B153: 2017-04-06 | D153: ZEEMEDIA | E153: Accu | F153: 40 | H153: 13.10 | I153: 60.00 | J153: Loss of Rs.26.9/- | K153: -26.90 | L153: -67.25% | M153: Unsuccessful | N153: 2018-02-07
A154: 88 | B154: 2017-04-12 | D154: DABUR | E154: Accu | F154: 289.50 | H154: 354 | I154: 360.00 | J154: Profit of Rs.64.5/- | K154: =H154-F154 -> 64.50 | L154: =K154/F154 -> 22.28% | M154: Successful | N154: 2017-11-01
A155: 89 | B155: 2017-04-20 | D155: KPRMILL | E155: Accu | F155: 700.00 | H155: 840 | I155: 840.00 | J155: Profit of Rs.140/- | K155: 140.00 | L155: 20.00% | M155: Successful | N155: 2017-06-07
A156: 90 | B156: 2017-06-01 | D156: ESSELPACK | E156: Accu | F156: 130.00 | H156: 144.25 | I156: 170.00 | J156: Profit of Rs.14.25/- | K156: 14.25 | L156: 10.96% | M156: Successful | N156: 2019-07-29
A157: 91 | B157: 2017-06-15 | D157: KEI | E157: Accu | F157: 214.50 | H157: 262 | I157: 262.00 | J157: Profit of Rs.47.5/- | K157: 47.50 | L157: 22.14% | M157: Successful | N157: 2017-08-30
A158: 92 | B158: 2017-07-17 | D158: MAYURUNIQ | E158: Accu | F158: 370.00 | H158: 447.5 | I158: 450.00 | J158: Target Achieved | K158: 77.50 | L158: 20.95% | M158: Successful | N158: 2017-10-27
A159: 93 | B159: 2017-07-27 | D159: RAMCOCEM | E159: Accu | F159: 657.50 | H159: 825 | I159: 820.00 | J159: Target Achieved | K159: 167.50 | L159: 25.48% | M159: Successful | N159: 2017-12-21
A160: 94 | B160: 2017-08-17 | D160: FINPIPE | E160: Accu | F160: 605.00 | H160: 750 | I160: 750.00 | J160: Profit of Rs.145/- | K160: 145.00 | L160: 23.97% | M160: Successful | N160: 2017-10-19
A161: 95 | B161: 2017-09-01 | D161: SHK | E161: Accu | F161: 255 | H161: 217.25 | I161: 320.00 | J161: Loss of Rs.37.75/- | K161: -37.75 | L161: -15% | M161: Unsuccessful | N161: 2019-07-15
A162: 96 | B162: 2017-09-19 | D162: SKIPPER | E162: Accu | F162: 215.00 | H162: 258 | I162: 258.00 | J162: Target Achieved | K162: 43.00 | L162: 20.00% | M162: Successful | N162: 2017-11-01
A163: 97 | B163: 2017-09-19 | D163: SKIPPER | E163: Accu | F163: 215.00 | H163: 258 | I163: 258.00 | J163: Target Achieved | K163: 43.00 | L163: 20.00% | M163: Successful | N163: 2017-11-01
A164: 98 | B164: 2017-09-20 | D164: CAMLINFINE$ | E164: Accu | F164: 75.00 | H164: 90 | I164: 90.00 | J164: Profit of Rs.15.00/- | K164: =H164-F164 -> 15.00 | L164: =K164/F164 -> 20.00% | M164: Successful | N164: 2017-10-11
A165: 99 | B165: 2017-10-03 | D165: GNA | E165: Accu | F165: 315.00 | H165: 392 | I165: 384.00 | J165: Profit of Rs.77/- | K165: 77.00 | L165: 24.44% | M165: Successful | N165: 2017-10-09
A166: 100 | B166: 2017-10-05 | D166: NOCIL | E166: Accu | F166: 145.00 | H166: 179 | I166: 180.00 | J166: Profit of Rs.34/- | K166: 34.00 | L166: 23.45% | M166: Successful | N166: 2017-10-17
A167: 101 | B167: 2017-10-06 | D167: CENTURYPLY | E167: Accu | F167: 256.00 | H167: 323 | I167: 320.00 | J167: Target Achieved | K167: 67.00 | L167: 26.17% | M167: Successful | N167: 2017-11-28
A168: 102 | B168: 2017-10-09 | D168: EIHOTEL | E168: Accu | F168: 137.50 | H168: 184 | I168: 183.00 | J168: Profit of Rs.46.5/- | K168: 46.50 | L168: 33.82% | M168: Successful | N168: 2018-01-08
A169: 103 | B169: 2017-10-10 | D169: NRBBEARING | E169: Accu | F169: 125.50 | H169: 158 | I169: 155.00 | J169: Profit of Rs.32.5/- | K169: 32.50 | L169: 25.90% | M169: Successful | N169: 2017-11-28
A170: 104 | B170: 2017-10-10 | D170: BOROSIL | E170: Accu | F170: 895.00 | H170: 1122.5 | I170: 1078.00 | J170: Profit of Rs.227.5/- | K170: 227.50 | L170: 25.42% | M170: Successful | N170: 2018-01-17
A171: 105 | B171: 2017-10-12 | D171: CYIENT | E171: Accu | F171: 525.00 | H171: 629 | I171: 629.00 | J171: Target Achieved | K171: 104.00 | L171: 19.81% | M171: Successful | N171: 2018-01-19
A172: 106 | B172: 2017-11-07 | D172: HATSUN | E172: Accu | F172: 740.00 | H172: 892.5 | I172: 900.00 | J172: Profit of Rs.152.5/- | K172: =H172-F172 -> 152.50 | L172: =K172/F172 -> 20.61% | M172: Successful | N172: 2017-11-13
A173: 107 | B173: 2017-12-04 | D173: SANGHIIND | E173: Accu | F173: 118.50 | H173: 143.5 | I173: 145.00 | J173: Profit of Rs.25/- | K173: =H173-F173 -> 25.00 | L173: =K173/F173 -> 21.10% | M173: Successful | N173: 2017-12-28
A174: 108 | B174: 2017-12-21 | D174: KAJARIACER | E174: Accu | F174: 715 | H174: 500.00 | I174: 872.00 | J174: Loss of Rs.215/- | K174: =H174-F174 -> -215.00 | L174: =K174/F174 -> -30.07% | M174: Unsuccessful | N174: 2019-07-24
A175: 109 | B175: 2017-12-29 | D175: GNA | E175: Accu | F175: 435.00 | H175: 542.5 | I175: 539.00 | J175: Target Achieved | K175: 107.50 | L175: 24.71% | M175: Successful | N175: 2018-04-16
A176: 110 | B176: 2017-12-29 | D176: ZENSARTECH | E176: Accu | F176: 885.00 | H176: 1090 | I176: 1084.00 | J176: Target Achieved | K176: 205.00 | L176: 23.16% | M176: Successful | N176: 2018-04-23
A177: 111 | B177: 2018-04-02 | D177: EVERESTIND | E177: Accu | F177: 478.50 | H177: 442 | I177: 613.00 | J177: Loss of Rs.36.50 /- | K177: =H177-F177 -> -36.50 | L177: =K177/F177 -> -7.63% | M177: Unsuccessful | N177: 2019-10-24
A178: 112 | B178: 2018-04-04 | D178: GPPL$ | E178: Accu | F178: =141.5-7.3 -> 134.2 | H178: 77.00 | I178: 180.00 | J178: Loss of Rs.57.2/- | K178: =H178-F178 -> -57.20 | L178: =K178/F178 -> -42.62% | M178: Unsuccessful | N178: 2019-02-26
A179: 113 | B179: 2018-04-19 | D179: MANPASAND | E179: Accu | F179: 430 | H179: 220.00 | I179: 537.00 | J179: Loss of Rs.210/- | K179: =H179-F179 -> -210.00 | L179: =K179/F179 -> -48.84% | M179: Unsuccessful | N179: 2018-06-01
A180: 114 | B180: 2018-04-30 | D180: HEIDELBERG | E180: Accu | F180: 153.5 | H180: 196 | I180: 196.00 | J180: Profit of Rs.42.50/- | K180: =H180-F180 -> 42.50 | L180: =K180/F180 -> 27.69% | M180: Successful | N180: 2019-05-20
A181: 115 | B181: 2018-07-25 | D181: ZEEMEDIA | E181: Accu | F181: 27.5 | H181: 13.10 | I181: 60.00 | J181: Loss of Rs.14.40/- | K181: -14.40 | L181: -52.36% | M181: Unsuccessful | N181: 2018-02-07
A182: 116 | B182: 2018-08-06 | D182: GABRIEL | E182: Accu | F182: 148.5 | H182: 102 | I182: 182.00 | J182: Loss of Rs.46.50/- | K182: =H182-F182 -> -46.50 | L182: =K182/F182 -> -31.31% | M182: Unsuccessful | N182: 2019-07-15
A183: 117 | B183: 2018-08-23 | D183: INDIANHUME | E183: Accu | F183: 285 | H183: 355 | I183: 364.00 | J183: Profit of Rs.70/- | K183: 70.00 | L183: 24.56% | M183: Successful | N183: 2018-12-21
A184: 118 | B184: 2018-08-29 | D184: GRINDWELL | E184: Accu | F184: 525 | H184: 585 | I184: 635.00 | J184: Profit of Rs.60- | K184: =H184-F184 -> 60.00 | L184: =K184/F184 -> 11.43% | M184: Successful | N184: 2019-07-16
A185: 119 | B185: 2018-10-22 | D185: FINPIPE | E185: Accu | F185: 475 | H185: 574 | I185: 570.00 | J185: Target Achieved | K185: 99.00 | L185: 20.84% | M185: Successful | N185: 2018-10-30
A186: 120 | B186: 2018-10-24 | D186: GULFOILLUB | E186: Accu | F186: 707.5 | H186: 872 | I186: 872.00 | J186: Target Achieved | K186: 164.50 | L186: 23.25% | M186: Successful | N186: 2019-01-17
A187: 121 | B187: 2018-10-25 | D187: DBCORP | E187: Accu | F187: 162 | H187: 204 | I187: 209.00 | J187: Profit of Rs.42/- | K187: 42.00 | L187: 25.93% | M187: Successful | N187: 2019-03-15
A188: 122 | B188: 2018-10-26 | D188: RITES | E188: Accu | F188: 240 | H188: 297 | I188: 297.00 | J188: Target Achieved | K188: 57.00 | L188: 23.75% | M188: Successful | N188: 2018-11-13
A189: 123 | B189: 2018-12-05 | D189: BRIGADE | E189: Accu | F189: 202.5 | H189: 255 | I189: 252.00 | J189: Target Achieved | K189: 52.50 | L189: 25.93% | M189: Successful | N189: 2019-03-18
A190: 124 | B190: 2018-12-31 | D190: JKCEMENT | E190: Accu | F190: 710 | H190: 866 | I190: 866.00 | J190: Target Achieved | K190: 156.00 | L190: 21.97% | M190: Successful | N190: 2019-03-29
A191: 125 | B191: 2019-02-26 | D191: MARICO | E191: Accu | F191: 337.25 | H191: 398.5 | I191: 411.00 | J191: Profit of Rs.61.25/- | K191: 61.25 | L191: 18.16% | M191: Successful | N191: 2019-10-22
A192: 126 | B192: 2019-04-04 | D192: ITDCEM | E192: Accu | F192: 130 | H192: 65 | I192: 158.00 | J192: Loss of Rs.65 /- | K192: -65.00 | L192: -50.00% | M192: Unsuccessful | N192: 2019-09-18
A193: 127 | B193: 2017-10-09 | D193: RECLTD | E193: Accu | F193: 141.5 | H193: 183.5 | I193: 210.00 | J193: Profit of Rs.42/- | K193: 42.00 | L193: 29.68% | M193: Successful | N193: 2017-11-03
A194: 128 | B194: 2017-12-05 | D194: ALLCARGO | E194: Accu | F194: 172.00 | H194: 155.25 | I194: 230.00 | J194: Loss of Rs.16.75/- | K194: -16.75 | L194: -9.74% | M194: Unsuccessful | N194: 2019-11-18
A195: 129 | B195: 2018-10-25 | D195: GODREJCP | E195: Accu | F195: 698.5 | H195: 890 | I195: 890.00 | J195: Profit of Rs.191.50/- | K195: 191.50 | L195: 27.42% | M195: Successful | N195: 2021-05-12
A196: 130 | B196: 2017-05-22 | D196: GREAVESCOT | E196: Accu | F196: 127.6 | H196: 138 | I196: 190.00 | J196: Profit of Rs.10.40 | K196: 10.40 | L196: 8.15% | M196: Successful | N196: 2019-11-05
A197: 131 | B197: 2018-02-27 | D197: MOLDTKPAC | E197: Accu | F197: 317 | H197: 382.5 | I197: 398.00 | J197: Profit of Rs.65.5 | K197: 65.50 | L197: 20.66% | M197: Successful | N197: 2021-02-11
A198: 132 | B198: 2018-03-05 | D198: LICHSGFIN | E198: Accu | F198: =510-14.4 -> 495.60 | H198: 350 | I198: 672.00 | J198: Loss of Rs.145.60/- | K198: -145.60 | L198: -29.38% | M198: Unsuccessful | N198: 2020-02-26
A199: 133 | B199: 2018-05-17 | D199: PHILIPCARB | E199: Accu | F199: 230.30 | H199: 102.5 | I199: 348.00 | J199: Loss of Rs.127.80/- | K199: -127.80 | L199: -55.49% | M199: Unsuccessful | N199: 2020-03-06
A200: 134 | B200: 2018-06-07 | D200: KEC | E200: Accu | F200: =342.5-5.1 -> 337.4 | H200: 412.5 | I200: 439.00 | J200: Profit of Rs.75.10 | K200: 75.10 | L200: 22.26% | M200: Successful | N200: 2021-02-03
A201: 135 | B201: 2018-07-04 | D201: ASHOKLEY | E201: Accu | F201: =127.5-5.53 -> 121.97 | H201: 122.50 | I201: 170.00 | J201: Profit of Rs.0.53/- | K201: 0.53 | L201: 0% | M201: Neutral | N201: 2021-08-23 | R201: V
A202: 136 | B202: 2018-07-13 | D202: FCONSUMER | E202: Accu | F202: 46.50 | H202: 17 | I202: 59.00 | J202: Loss of Rs.29.50/- | K202: -29.50 | L202: -63.44% | M202: Unsuccessful | N202: 2020-02-26 | R202: V
A203: 137 | B203: 2018-10-23 | D203: JKPAPER | E203: Accu | F203: 156.5 | H203: 207.5 | I203: 191.00 | J203: Target Achieved | K203: 51.00 | L203: 32.59% | M203: Successful | N203: 2021-06-22 | R203: V
A204: 138 | B204: 2018-12-05 | D204: CCL | E204: Accu | F204: 259.5 | H204: 320 | I204: 320.00 | J204: Target Achieved | K204: 60.50 | L204: 23.31% | M204: Successful | N204: 2021-05-07 | R204: K
A205: 139 | B205: 2018-12-05 | D205: VARROC | E205: Accu | F205: 715 | H205: 445 | I205: 840.00 | J205: Loss of Rs.270/- | K205: -270.00 | L205: -37.76% | M205: Unsuccessful | N205: 2019-12-01 | R205: K
A206: 140 | B206: 2019-01-04 | D206: MGL | E206: Accu | F206: 875 | H206: 1165 | I206: 1185.00 | J206: Profit of Rs.290/- | K206: 290.00 | L206: 33.14% | M206: Successful | N206: 2020-01-17 | R206: K
A207: 141 | B207: 2019-04-04 | D207: COCHINSHIP | E207: Accu | F207: =387-14.63 -> 372.37 | H207: 490 | I207: 490.00 | J207: Target Achieved | K207: 117.63 | L207: 31.59% | M207: Successful | N207: 2020-01-20 | R207: V
A208: 142 | B208: 2019-04-23 | D208: MAHINDCIE | E208: Buy | F208: 220 | H208: 127.5 | I208: 284.00 | J208: Loss of Rs.92.50/- | K208: -92.50 | L208: -42.05% | M208: Unsuccessful | N208: 2020-03-06 | R208: K
A209: 143 | B209: 2019-06-06 | D209: RADICO | E209: Buy | F209: 332.8 | H209: 405 | I209: 419.00 | J209: Profit of Rs.72.20/- | K209: 72.20 | L209: 21.69% | M209: Successful | N209: 2020-01-30 | R209: K
A210: 144 | B210: 2019-06-25 | D210: M&MFIN | E210: Accu | F210: 386 | H210: 395.00 | I210: 452.00 | J210: Profit of Rs.9/- | K210: 9.00 | L210: 2% | M210: Neutral | N210: 2020-02-07 | R210: V
A211: 145 | B211: 2019-08-30 | D211: INDHOTEL | E211: Accu | F211: 137.5 | H211: 138.50 | I211: 190.00 | J211: Profit of Rs.1/- | K211: 1.00 | L211: 1% | M211: Neutral | N211: 2021-08-24 | R211: V
A212: 146 | B212: 2019-09-23 | D212: KNRCON | E212: Accu | F212: 235 | H212: 295 | I212: 296.00 | J212: Profit of Rs.60/- | K212: 60.00 | L212: 25.53% | M212: Successful | N212: 2020-01-14 | R212: K
A213: 147 | B213: 2019-10-14 | D213: KEC$ | E213: Accu | F213: 277.5 | H213: 333 | I213: 333.00 | J213: Profit of Rs.55.50/- | K213: 55.50 | L213: 20.00% | M213: Successful | N213: 2020-01-16 | R213: V
A214: 148 | B214: 2019-10-14 | D214: MGL$ | E214: Accu | F214: 930 | H214: 1165 | I214: 1200.00 | J214: Profit of Rs.235/- | K214: 235.00 | L214: 25.27% | M214: Successful | N214: 2020-01-17 | R214: V
A215: 149 | B215: 2019-10-15 | D215: JKPAPER$ | E215: Accu | F215: 111.00 | H215: 141 | I215: 141.00 | J215: Profit of Rs.30/- | K215: 30.00 | L215: 27.03% | M215: Successful | N215: 2021-05-12 | R215: V
A216: 150 | B216: 2019-10-15 | D216: RADICO$ | E216: Accu | F216: 296.00 | H216: 370 | I216: 370.00 | J216: Target Achieved | K216: =H216-F216 -> 74.00 | L216: =K216/F216 -> 25.00% | M216: Successful | N216: 2020-01-23 | R216: V
A217: 151 | B217: 2019-10-16 | D217: MOLDTKPAC$ | E217: Accu | F217: 300.00 | H217: 382.5 | I217: 344.00 | J217: Profit of Rs.82.5/- | K217: 82.50 | L217: 27.50% | M217: Successful | N217: 2021-02-11 | R217: V
A218: 152 | B218: 2020-01-02 | D218: PSPPROJECT | E218: Accu | F218: 495.00 | H218: 595 | I218: 590.00 | J218: Profit of Rs.100/- | K218: 100.00 | L218: 20.20% | M218: Successful | N218: 2022-01-28 | R218: V
A219: 153 | B219: 2020-05-15 | D219: BEL | E219: Accu | F219: 67.50 | H219: 86 | I219: 86.00 | J219: Profit of Rs.18.50/- | K219: 18.50 | L219: 27.41% | M219: Successful | N219: 2020-06-26 | R219: V
A220: 154 | B220: 2020-07-23 | D220: RITES | E220: Accu | F220: 231.00 | H220: 281 | I220: 281.00 | J220: Target Achieved | K220: 50.00 | L220: 21.65% | M220: Successful | N220: 2021-06-11 | R220: V
A221: 155 | B221: 2020-09-18 | D221: IEX | E221: Accu | F221: 206 | H221: 248 | I221: 248.00 | J221: Target Achieved | K221: 42.00 | L221: 20.39% | M221: Successful | N221: 2021-01-18 | R221: K
A222: 156 | B222: 2020-11-05 | D222: IEX | E222: Accu | F222: 182.5 | H222: 248 | I222: 248.00 | J222: Target Achieved | K222: 65.50 | L222: 35.89% | M222: Successful | N222: 2021-01-18 | R222: K
A223: 157 | B223: 2020-11-05 | D223: CCL | E223: Accu | F223: 247.5 | H223: 320 | I223: 320.00 | J223: Target Achieved | K223: 72.50 | L223: 29.29% | M223: Successful | N223: 2021-05-07 | R223: V
A224: 158 | B224: 2020-11-05 | D224: POLYCAB | E224: Accu | F224: 925.00 | H224: 1095 | I224: 1093.00 | J224: Profit of Rs.170/- | K224: 170.00 | L224: 18.38% | M224: Successful | N224: 2021-01-05 | R224: K
A225: 159 | B225: 2020-11-05 | D225: COCHINSHIP | E225: Accu | F225: 332.50 | H225: 393 | I225: 406.00 | J225: Profit of Rs.60.50/- | K225: 60.50 | L225: 18.20% | M225: Successful | N225: 2021-03-01 | R225: V
A226: 160 | B226: 2020-11-06 | D226: RITES | E226: Accu | F226: 231.00 | H226: 281 | I226: 281.00 | J226: Target Achieved | K226: 50.00 | L226: 21.65% | M226: Successful | N226: 2021-06-11 | R226: K
A227: 161 | B227: 2020-12-22 | D227: MIDHANI | E227: Accu | F227: 190.00 | H227: 239 | I227: 239.00 | J227: Profit of Rs.49/- | K227: 49.00 | L227: 25.79% | M227: Successful | N227: 2022-10-10 | R227: K
... 65 more rows
